Workbook

Sheet Table of Contents
A1: Max Sizes and Hanging Weights
A2: Table of Contents
A3: Tensioned | E3: Non-Tensioned
A4: Tensioned Advantage® (with Closure Door) | E4: Advantage® (with Closure Door)
A5: Tensioned Advantage | E5: Advantage
A6: Tensioned Contour | E6: Contour Electrol
A7: Tensioned Cosmopolitan | E7: Cosmopolitan
A8: Tensioned Large Cosmo | E8: Large Cosmo
A9: Tensioned Advantage (over 14' W with Closure Door) | E9: Advantage (over 14' W with Closure Door)
A10: Tensioned Advantage (over 16' W) | E10: Advantage (over 16’ W)
A11: Tensioned Professional | E11: Professional

Sheet Tensioned_Advantage_Deluxe
A1: Tensioned Advantage® (with Closure Door)
D2: Centimeters | F2: Note: cm will update inches, inches will not update cm
A3: Enter Viewing Area Height: | B3: 0 | C3: inches | D3: 0 | E3: cm | G3: =IF(B15 < 93,"Small_Curve",IF(AND(B15<145,B4<160),"Medium_Curve",IF(OR(B15>=145,B4>=160),"Large_Curve",0))) -> Small_Curve
A4: Enter Viewing Area Width: | B4: 0 | C4: inches | D4: 0 | E4: cm
A5: Enter Top Black Drop: | B5: 12 | C5: inches | D5: 30.5 | E5: cm
A6: Enter Bottom Black Drop: | B6: 2 | C6: inches | D6: 5 | E6: cm
A7: Material:
G8: 0
A11: "ALL THREE FIELDS TO THE RIGHT MUST BE GREEN" | B11: =IF(OR(B3=0,B4=0),"Enter VA",IF(G8=0,"SELECT FABRIC",IF(AND(B15<=192,B16<=172.5,B15>=25,B16>=36.5),"Feasible","Not Feasible"))) -> Enter VA
A12: APPROX. HANGING WEIGHT | B12: =IF(OR(B3=0,B4=0),"Enter VA",IF(G8=0,"SELECT FABRIC",IF(B5<=B82,"TOP BLACK DROP OK","TOO MUCH TOP BLACK DROP"))) -> Enter VA
A13: =IF(OR(B3=0,B4=0),"Enter VA",IF(OR(B11="Not Feasible",B12="TOO MUCH TOP BLACK DROP",B13="TOO MUCH BTM BLACK DROP"),"Not Feasible",(IF(OR(B11="SELECT FABRIC",B12="SELECT FABRIC",B13="SELECT FABRIC"),"SELECT FABRIC",ROUNDUP(J37,0)&" LBS / "&ROUNDUP(J37*0.453592,0)&" KG")))) -> Enter VA | B13: =IF(OR(B3=0,B4=0),"Enter VA",IF(G8=0,"SELECT FABRIC",IF(B6<=B83,"BTM BLACK DROP OK","TOO MUCH BTM BLACK DROP"))) -> Enter VA
A14: Table of Contents
A15: Total_Screen_Height | B15: =B3+B5+B6+3 -> 17
A16: Fabric Width | B16: =IF(G3="Small_Curve",B25,IF(G3="Medium_Curve",B40,IF(G3="Large_Curve",B61,0))) -> 4.5
A20: **** Equations for Small Curve Border *******
B21: =280.34-SQRT(280.34*280.34-0.25*B15*B15) -> 0.1288910125 | H21: DIMENSIONS
B22: =B21-ROUNDDOWN(B21,0) -> 0.1288910125 | H22: Enter Viewing Area Width | J22: =B4 -> 0
B23: =IF(B22>=0.875,1,IF(B22>=0.625,0.75,IF(B22>=0.375,0.5,IF(B22>=0.125,0.25,0)))) -> 0.25 | H23: Enter Viewing Area Height | J23: =B3 -> 0
A24: Small_Curve_Border | B24: =ROUNDDOWN(B21,0)+B23+2 -> 2.25 | H24: Enter Amount Black Drop | J24: =B5+B6 -> 14
A25: Small_Curve_Fabric_Width | B25: =(B24*2)+B4 -> 4.5 | H25: Enter Amount of Side Border | J25: =IF(G3="Small_Curve",B24,IF(G3="Medium_Curve",B39,IF(G3="Large_Curve",B60,""))) -> 2.25
A26: Square_Inches_Small_Curve | B26: =B25*B15 -> 76.5 | H26: Square Feet of Fabric | J26: =((J22+(J25*2))*(J23+J24+25)/144) -> 1.21875
A27: Fabric_Weight_oz/sq in. | B27: =28/9/144 -> 0.02160493827 | H27: Weight of Fabric | J27: =((J26*2.5)/16) -> 0.1904296875
A28: Fabric_Weight | B28: =B26*B27*0.0625 -> 0.1032986111 | C28: lbs. | H28: Weight of Slat | J28: =((J22+(J25*2)+0.5)/12)*(0.69) -> 0.2875
A29: Slat_Weight | B29: =((B25+0.5)/12)*0.806 -> 0.3358333333 | C29: lbs. | G29: (0.806 / lbs. ft.) | H29: Weight of Case | J29: =(((J22+(J25*2)+15)/12)*6.2) -> 10.075
A30: Total_Small_Curve_Weight | B30: =(B28+B29)*1.05 -> 0.4610885417 | C30: lbs. | H30: Weight of Roller | J30: =((J22+(J25*2)+4.25)/12)*1.7 -> 1.239583333
A31: Roller Diameter | B31: =3.25 -> 3.25 | H31: Miscellanous Items | J31: 22
A32: Motor_Torque_Required_Small_Curve | B32: =(B31*25.4/2) * (B30/2.20462262) / 100 -> 0.08632511245 | C32: N/m | H32: Weight of Access Door | J32: =((J22+(J25*2)+14.88) / 12) * 0.7707 -> 1.2446805
A33: Motor_Torque_Small_Curve | B33: =IF(B32 >= 10,20,IF(B32>6,10,IF(B32>3,6,3))) -> 3 | C33: N/m | H33: Weight of Fabric Door | J33: =((J22+(J25*2)+14.88) / 12) * 0.7224 -> 1.166676
A35: **** Equations for Medium Curve Border *******
B36: =512.5-SQRT(512.5*512.5-0.25*B15*B15)+1.75 -> 1.820492653
B37: =B36-ROUNDDOWN(B36,0) -> 0.8204926529 | H37: Total Weight | J37: =SUM(J27:J35) -> 36.20386952
B38: =IF(B37>=0.875,1,IF(B37>=0.625,0.75,IF(B37>=0.375,0.5,IF(B37>=0.125,0.25,0)))) -> 0.75
A39: Medium_Curve_Border | B39: =ROUNDDOWN(B36,0)+B38 -> 1.75
A40: Medium_Curve_Fabric_Width | B40: =(B39*2)+B4+2 -> 5.5
A41: Square_Inches_Medium_Curve | B41: =B40*B15 -> 93.5
A42: Fabric_Weight_oz/sq in. | B42: =28/9/144 -> 0.02160493827
A43: Fabric_Weight | B43: =B41*B42*0.0625 -> 0.126253858 | C43: lbs.
A44: Slat_Weight | B44: =((B40+0.5)/12)*0.806 -> 0.403 | C44: lbs. | G44: (0.806 / lbs. ft.)
A45: Total_Medium_Curve_Weight | B45: =(B43+B44)*1.05 -> 0.5557165509 | C45: lbs.
A46: Roller_Diameter | B46: 3.25
A47: Motor_Torque_Required_Medium_Curve | B47: =(B46*25.4/2) * (B45/2.20462262) / 100 -> 0.1040413921 | C47: N/m
A48: Motor_Torque_Medium_Curve | B48: =IF(B47 >= 10,20,IF(B47>6,10,IF(B47>3,6,3))) -> 3 | C48: N/m
A51: **** Equations for Large Top Curve Border *******
A52: y | B52: =B15*0.75 -> 12.75
A53: r | B53: 1175
A54: n | B54: =B52 * B52 -> 162.5625
A55: P | B55: =B53*B53 -> 1380625
A56: s | B56: =SQRT(B55-B54) -> 1174.930822
B57: =B53-B56 -> 0.06917756831
B58: =B57-ROUNDDOWN(B57,0) -> 0.06917756831
B59: =IF(B58>=0.875,1,IF(B58>=0.625,0.75,IF(B58>=0.375,0.5,IF(B58>=0.125,0.25,0)))) -> 0
A60: Large_Curve_Top_Border | B60: =ROUNDDOWN(B57,0)+B59+2 -> 2
A61: Large_Curve_Top_Width | B61: =(B60*2)+B4 -> 4
A62: Square_Inches_Large_Curve | B62: =B61*B15 -> 68
A63: Fabric_Weight_oz/sq in. | B63: =28/9/144 -> 0.02160493827
A64: Fabric_Weight | B64: =B62*B63*0.0625 -> 0.09182098765 | C64: lbs.
A65: Slat_Weight | B65: =((B61+0.5)/12)*0.806 -> 0.30225 | C65: lbs. | G65: (0.806 / lbs. ft.)
A66: Total_Large_Curve_Weight | B66: =(B64+B65)*1.05 -> 0.413774537 | C66: lbs.
A67: Roller_Diameter | B67: 3.25
A68: Motor_Torque_Required_Large_Curve | B68: =(B67*25.4/2) * (B66/2.20462262) / 100 -> 0.07746697263 | C68: N/m
A69: Motor_Torque_Large_Curve | B69: =IF(B68 >= 10,20,IF(B68>6,10,IF(B68>3,6,3))) -> 3 | C69: N/m
A72: Square_Inches_Non_Tensioned | B72: =B16*(B15-3) -> 63
A73: 3/8_Slat_Weight | B73: =(PI()*(0.1875*0.1875)*(B16+0.5))*0.284 -> 0.1568341958 | C73: lbs.
A74: Fabric_Weight_oz/sq in. | B74: =21/9/144 -> 0.0162037037
A75: Fabric_Weight | B75: =B72*B74*0.0625 -> 0.06380208333 | C75: lbs.
A76: Total_Non_Tens_Weight | B76: =(B73+B75)*1.05 -> 0.231668093 | C76: lbs.
A77: Aspect Ratio | B77: =B4/B3 -> 
A78: Roller Diameter | B78: =IF(AND(B16<=108,B77<1.45),3,3.25) -> 
A79: Motor_Torque_Required_N/m | B79: =(B78*25.4/2) * (B76/2.20462262) / 100 ->  | C79: N/m
A80: Motor_Torque_Non_Tensioned | B80: =IF(B79 >= 10,20,IF(B79>6,10,IF(B79>3,6,3))) ->  | C80: N/m
A82: Max Top Black Drop | B82: =IF(G8=1,84,60) -> 60
A83: Max Bottom Black Drop | B83: =IF(G8=1,48,24) -> 24

Sheet Advantage_Deluxe
A1: Advantage® (with Closure Door)
D2: Centimeters | F2: Note: cm will update inches, inches will not update cm
A3: Enter Viewing Area Height: | B3: =ROUND((D3/2.54)*4,0)/4 -> 0 | C3: inches | D3: 0 | E3: cm | G3: =IF(B13 < 93,"Small_Curve",IF(AND(B13<145,B4<160),"Medium_Curve",IF(OR(B13>=145,B4>=160),"Large_Curve",0))) -> Small_Curve
A4: Enter Viewing Area Width: | B4: =ROUND((D4/2.54)*4,0)/4 -> 0 | C4: inches | D4: 0 | E4: cm
A5: Enter Top Black Drop: | B5: =ROUND((D5/2.54)*4,0)/4 -> 2 | C5: inches | D5: 5 | E5: cm
A6: Enter Border Width: | B6: =ROUND((D6/2.54)*4,0)/4 -> 2 | C6: inches | D6: 5 | E6: cm
A7: Enter Bottom Black Drop: (not including pocket) | B7: =ROUND((D7/2.54)*4,0)/4 -> 0 | C7: inches | D7: 0 | E7: cm
A9: =IF(OR(B3=0,B4=0),"Enter VA",IF(AND(B13<=156,B14<=164,B6<=6,B13>=25,B14>=39.5),"Feasible","Not Feasible")) -> Enter VA
A10: =IF(OR(B3=0,B4=0),"Enter VA","APPROX. HANGING WEIGHT") -> Enter VA
A11: =IF(OR(B3=0,B4=0),"Enter VA",IF(AND(B13<=156,B14<=164,B6<=6,B13>=25,B14>=39.5),ROUNDUP(J36,0)&" LBS / "&ROUNDUP(J36*0.453592,0)&" KG","Not Feasible")) -> Enter VA
A12: Table of Contents
A13: Total_Screen_Height | B13: =B3+B5+B7 -> 2
A14: Fabric Width | B14: =B4+(B6*2) -> 4
A18: **** Equations for Small Curve Border *******
B19: =280.34-SQRT(280.34*280.34-0.25*B13*B13) -> 0.001783554222 | H19: DIMENSIONS
B20: =B19-ROUNDDOWN(B19,0) -> 0.001783554222 | H20: Enter Viewing Area Width | J20: =B4 -> 0
B21: =IF(B20>=0.875,1,IF(B20>=0.625,0.75,IF(B20>=0.375,0.5,IF(B20>=0.125,0.25,0)))) -> 0 | H21: Enter Viewing Area Height | J21: =B3 -> 0
A22: Small_Curve_Border | B22: =ROUNDDOWN(B19,0)+B21+2 -> 2 | H22: Enter Amount Black Drop | J22: =B5 -> 2
A23: Small_Curve_Fabric_Width | B23: =(B22*2)+B4 -> 4 | H23: Enter Amount of Side Border | J23: =B6 -> 2
A24: Square_Inches_Small_Curve | B24: =B23*B13 -> 8 | H24: Enter Amount of Bottom Drop | J24: =B7 -> 0
A25: Fabric_Weight_oz/sq in. | B25: =28/9/144 -> 0.02160493827 | H25: Square Feet of Fabric | J25: =((J20+(J23*2))*(J21+J22+19+J24)/144) -> 0.5833333333
A26: Fabric_Weight | B26: =B24*B25*0.0625 -> 0.01080246914 | C26: lbs. | H26: Weight of Fabric | J26: =((J25*2.5)/16) -> 0.09114583333
A27: Slat_Weight | B27: =((B23+0.5)/12)*0.806 -> 0.30225 | C27: lbs. | G27: (0.806 / lbs. ft.) | H27: Weight of Slat | J27: =((J20+(J23*2)+0.5)/12)*0.3565 -> 0.1336875
A28: Total_Small_Curve_Weight | B28: =(B26+B27)*1.05 -> 0.3287050926 | C28: lbs. | H28: Weight of Case | J28: =(((J20+(J23*2)+12)/12)*6.2) -> 8.266666667
A29: Roller Diameter | B29: =3.25 -> 3.25 | H29: Weight of Roller | J29: =((J20+(J23*2)+1.25)/12)*2.16 -> 0.945
A30: Motor_Torque_Required_Small_Curve | B30: =(B29*25.4/2) * (B28/2.20462262) / 100 -> 0.0615402499 | C30: N/m | H30: Miscellanous Items | J30: 20
A31: Motor_Torque_Small_Curve | B31: =IF(B30 >= 10,20,IF(B30>6,10,IF(B30>3,6,3))) -> 3 | C31: N/m | H31: Weight of Access Door | J31: =((J20+(J23*2)+11.88) / 12) * 0.7707 -> 1.019893
H32: Weight of Fabric Door | J32: =((J20+(J23*2)+11.88) / 12) * 0.7224 -> 0.955976
A33: **** Equations for Medium Curve Border *******
B34: =512.5-SQRT(512.5*512.5-0.25*B13*B13)+1.75 -> 1.750975611
B35: =B34-ROUNDDOWN(B34,0) -> 0.7509756107
B36: =IF(B35>=0.875,1,IF(B35>=0.625,0.75,IF(B35>=0.375,0.5,IF(B35>=0.125,0.25,0)))) -> 0.75 | H36: Total Weight | J36: =SUM(J26:J34) -> 31.412369
A37: Medium_Curve_Border | B37: =ROUNDDOWN(B34,0)+B36 -> 1.75
A38: Medium_Curve_Fabric_Width | B38: =(B37*2)+B4+2 -> 5.5
A39: Square_Inches_Medium_Curve | B39: =B38*B13 -> 11
A40: Fabric_Weight_oz/sq in. | B40: =28/9/144 -> 0.02160493827
A41: Fabric_Weight | B41: =B39*B40*0.0625 -> 0.01485339506 | C41: lbs.
A42: Slat_Weight | B42: =((B38+0.5)/12)*0.806 -> 0.403 | C42: lbs. | G42: (0.806 / lbs. ft.)
A43: Total_Medium_Curve_Weight | B43: =(B41+B42)*1.05 -> 0.4387460648 | C43: lbs.
A44: Roller_Diameter | B44: 3.25
A45: Motor_Torque_Required_Medium_Curve | B45: =(B44*25.4/2) * (B43/2.20462262) / 100 -> 0.08214214832 | C45: N/m
A46: Motor_Torque_Medium_Curve | B46: =IF(B45 >= 10,20,IF(B45>6,10,IF(B45>3,6,3))) -> 3 | C46: N/m
A49: **** Equations for Large Top Curve Border *******
A50: y | B50: =B13*0.75 -> 1.5
A51: r | B51: 1175
A52: n | B52: =B50 * B50 -> 2.25
A53: P | B53: =B51*B51 -> 1380625
A54: s | B54: =SQRT(B53-B52) -> 1174.999043
B55: =B51-B54 -> 0.0009574471985
B56: =B55-ROUNDDOWN(B55,0) -> 0.0009574471985
B57: =IF(B56>=0.875,1,IF(B56>=0.625,0.75,IF(B56>=0.375,0.5,IF(B56>=0.125,0.25,0)))) -> 0
A58: Large_Curve_Top_Border | B58: =ROUNDDOWN(B55,0)+B57+2 -> 2
A59: Large_Curve_Top_Width | B59: =(B58*2)+B4 -> 4
A60: Square_Inches_Large_Curve | B60: =B59*B13 -> 8
A61: Fabric_Weight_oz/sq in. | B61: =28/9/144 -> 0.02160493827
A62: Fabric_Weight | B62: =B60*B61*0.0625 -> 0.01080246914 | C62: lbs.
A63: Slat_Weight | B63: =((B59+0.5)/12)*0.806 -> 0.30225 | C63: lbs. | G63: (0.806 / lbs. ft.)
A64: Total_Large_Curve_Weight | B64: =(B62+B63)*1.05 -> 0.3287050926 | C64: lbs.
A65: Roller_Diameter | B65: 3.25
A66: Motor_Torque_Required_Large_Curve | B66: =(B65*25.4/2) * (B64/2.20462262) / 100 -> 0.0615402499 | C66: N/m
A67: Motor_Torque_Large_Curve | B67: =IF(B66 >= 10,20,IF(B66>6,10,IF(B66>3,6,3))) -> 3 | C67: N/m
A70: Square_Inches_Non_Tensioned | B70: =B14*(B13-3) -> -4
A71: 3/8_Slat_Weight | B71: =(PI()*(0.1875*0.1875)*(B14+0.5))*0.284 -> 0.1411507762 | C71: lbs.
A72: Fabric_Weight_oz/sq in. | B72: =21/9/144 -> 0.0162037037
A73: Fabric_Weight | B73: =B70*B72*0.0625 -> -0.004050925926 | C73: lbs.
A74: Total_Non_Tens_Weight | B74: =(B71+B73)*1.05 -> 0.1439548428 | C74: lbs.
A75: Aspect Ratio | B75: =B4/B3 -> 
A76: Roller Diameter | B76: =IF(AND(B14<=108,B75<1.45),3,3.25) -> 
A77: Motor_Torque_Required_N/m | B77: =(B76*25.4/2) * (B74/2.20462262) / 100 ->  | C77: N/m
A78: Motor_Torque_Non_Tensioned | B78: =IF(B77 >= 10,20,IF(B77>6,10,IF(B77>3,6,3))) ->  | C78: N/m
A80: Max Top Black Drop | B80: =IF(#REF!=1,84,60) -> 
A81: Max Bottom Black Drop | B81: =IF(#REF!=1,48,24) -> 

Sheet Tensioned_Advantage
A1: TENSIONED ADVANTAGE
D2: Centimeters | K2: Note: cm will update inches, inches will not update cm
A3: Enter Viewing Area Height: | B3: 0 | C3: inches | D3: 0 | E3: cm | F3: =IF(B15 < 93,"Small_Curve",IF(AND(B15<145,B4<160),"Medium_Curve",IF(OR(B15>=145,B4>=160),"Large_Curve",0))) -> Small_Curve
A4: Enter Viewing Area Width: | B4: 0 | C4: inches | D4: 0 | E4: cm
A5: Enter Top Black Drop: | B5: 12 | C5: inches | D5: 30.5 | E5: cm
A6: Enter Bottom Black Drop: | B6: =ROUND((D6/2.54)*4,0)/4 -> 2 | C6: inches | D6: 5 | E6: cm
A7: Material:
F8: 0
A11: "ALL THREE FIELDS TO THE RIGHT MUST BE GREEN" | B11: =IF(OR(B3=0,B4=0),"Enter VA",IF(F8=0,"SELECT FABRIC",IF(AND(B15>=25,B15<=192,B16>=36.5,B16<=174),"Feasible",IF(AND(B16<=205,B16>174,B15<=137),"Feasible","Not Feasible")))) -> Enter VA
A12: APPROX. HANGING WEIGHT | B12: =IF(OR(B3=0,B4=0),"Enter VA",IF(F8=0,"SELECT FABRIC",IF(B5<=B82,"TOP BLACK DROP OK","TOO MUCH TOP BLACK DROP"))) -> Enter VA
A13: =IF(OR(B3=0,B4=0),"Enter VA",IF(OR(B11="Not Feasible",B12="TOO MUCH TOP BLACK DROP",B13="TOO MUCH BTM BLACK DROP"),"Not Feasible",(IF(OR(B11="SELECT FABRIC",B12="SELECT FABRIC",B13="SELECT FABRIC"),"SELECT FABRIC",ROUNDUP(J37,0)&" LBS / "&ROUNDUP(J37*0.453592,0)&" KG")))) -> Enter VA | B13: =IF(OR(B3=0,B4=0),"Enter VA",IF(F8=0,"SELECT FABRIC",IF(B6<=B83,"BTM BLACK DROP OK","TOO MUCH BTM BLACK DROP"))) -> Enter VA
A14: Table of Contents
A15: Total_Screen_Height | B15: =B3+B5+B6+3 -> 17
A16: Fabric Width | B16: =IF(F3="Small_Curve",B25,IF(F3="Medium_Curve",B40,IF(F3="Large_Curve",B61,0))) -> 4.5
A20: **** Equations for Small Curve Border *******
B21: =280.34-SQRT(280.34*280.34-0.25*B15*B15) -> 0.1288910125 | G21: FORMULAS | H21: DIMENSIONS
B22: =B21-ROUNDDOWN(B21,0) -> 0.1288910125 | G22: Enter Viewing Area Width | J22: =B4 -> 0
B23: =IF(B22>=0.875,1,IF(B22>=0.625,0.75,IF(B22>=0.375,0.5,IF(B22>=0.125,0.25,0)))) -> 0.25 | G23: Enter Viewing Area Height | J23: =B3 -> 0
A24: Small_Curve_Border | B24: =ROUNDDOWN(B21,0)+B23+2 -> 2.25 | G24: Enter Amount Black Drop | J24: =B5+B6 -> 14
A25: Small_Curve_Fabric_Width | B25: =(B24*2)+B4 -> 4.5 | G25: Enter Amount of Side Border | J25: =IF(F3="Small_Curve",B24,IF(F3="Medium_Curve",B39,IF(F3="Large_Curve",B60,""))) -> 2.25
A26: Square_Inches_Small_Curve | B26: =B25*B15 -> 76.5 | G26: Square Feet of Fabric | J26: =((J22+(J25*2))*(J23+J24+21+4.5)/144) -> 1.234375
A27: Fabric_Weight_oz/sq in. | B27: =28/9/144 -> 0.02160493827 | G27: Weight of Fabric | J27: =((J26*2.5)/16) -> 0.1928710938
A28: Fabric_Weight | B28: =B26*B27*0.0625 -> 0.1032986111 | C28: lbs. | G28: Weight of Slat | J28: =((J22+0.5+(J25*2))/12)*0.693856479 -> 0.2891068663
A29: Slat_Weight | B29: =((B25+0.5)/12)*0.806 -> 0.3358333333 | C29: lbs. | F29: (0.806 / lbs. ft.) | G29: Weight of Case | J29: =(((J22+(J25*2)+8.5)/12)*4.5674) -> 4.948016667
A30: Total_Small_Curve_Weight | B30: =(B28+B29)*1.05 -> 0.4610885417 | C30: lbs. | G30: Weight of Roller | J30: =((J22+(J25*2)+2)/12)*1.7 -> 0.9208333333
A31: Roller Diameter | B31: =3.25 -> 3.25 | G31: Miscellanous Items | J31: 15.55
A32: Motor_Torque_Required_Small_Curve | B32: =(B31*25.4/2) * (B30/2.20462262) / 100 -> 0.08632511245 | C32: N/m | H32: Weight of Door | J32: =((J22+(J25*2)+8)/12)*0.56 -> 0.5833333333
A33: Motor_Torque_Small_Curve | B33: =IF(B32 >= 10,20,IF(B32>6,10,IF(B32>3,6,3))) -> 3 | C33: N/m
A35: **** Equations for Medium Curve Border *******
B36: =512.5-SQRT(512.5*512.5-0.25*B15*B15)+1.75 -> 1.820492653
B37: =B36-ROUNDDOWN(B36,0) -> 0.8204926529 | H37: Total Weight | J37: =SUM(J27:J31)*1.05 -> 22.99586936
B38: =IF(B37>=0.875,1,IF(B37>=0.625,0.75,IF(B37>=0.375,0.5,IF(B37>=0.125,0.25,0)))) -> 0.75
A39: Medium_Curve_Border | B39: =ROUNDDOWN(B36,0)+B38 -> 1.75
A40: Medium_Curve_Fabric_Width | B40: =(B39*2)+B4+2 -> 5.5
A41: Square_Inches_Medium_Curve | B41: =B40*B15 -> 93.5
A42: Fabric_Weight_oz/sq in. | B42: =28/9/144 -> 0.02160493827
A43: Fabric_Weight | B43: =B41*B42*0.0625 -> 0.126253858 | C43: lbs.
A44: Slat_Weight | B44: =((B40+0.5)/12)*0.806 -> 0.403 | C44: lbs. | F44: (0.806 / lbs. ft.)
A45: Total_Medium_Curve_Weight | B45: =(B43+B44)*1.05 -> 0.5557165509 | C45: lbs.
A46: Roller_Diameter | B46: 3.25
A47: Motor_Torque_Required_Medium_Curve | B47: =(B46*25.4/2) * (B45/2.20462262) / 100 -> 0.1040413921 | C47: N/m
A48: Motor_Torque_Medium_Curve | B48: =IF(B47 >= 10,20,IF(B47>6,10,IF(B47>3,6,3))) -> 3 | C48: N/m
A51: **** Equations for Large Top Curve Border *******
A52: y | B52: =B15*0.75 -> 12.75
A53: r | B53: 1175
A54: n | B54: =B52 * B52 -> 162.5625
A55: P | B55: =B53*B53 -> 1380625
A56: s | B56: =SQRT(B55-B54) -> 1174.930822
B57: =B53-B56 -> 0.06917756831
B58: =B57-ROUNDDOWN(B57,0) -> 0.06917756831
B59: =IF(B58>=0.875,1,IF(B58>=0.625,0.75,IF(B58>=0.375,0.5,IF(B58>=0.125,0.25,0)))) -> 0
A60: Large_Curve_Top_Border | B60: =ROUNDDOWN(B57,0)+B59+2 -> 2
A61: Large_Curve_Top_Width | B61: =(B60*2)+B4 -> 4
A62: Square_Inches_Large_Curve | B62: =B61*B15 -> 68
A63: Fabric_Weight_oz/sq in. | B63: =28/9/144 -> 0.02160493827
A64: Fabric_Weight | B64: =B62*B63*0.0625 -> 0.09182098765 | C64: lbs.
A65: Slat_Weight | B65: =((B61+0.5)/12)*0.806 -> 0.30225 | C65: lbs. | F65: (0.806 / lbs. ft.)
A66: Total_Large_Curve_Weight | B66: =(B64+B65)*1.05 -> 0.413774537 | C66: lbs.
A67: Roller_Diameter | B67: 3.25
A68: Motor_Torque_Required_Large_Curve | B68: =(B67*25.4/2) * (B66/2.20462262) / 100 -> 0.07746697263 | C68: N/m
A69: Motor_Torque_Large_Curve | B69: =IF(B68 >= 10,20,IF(B68>6,10,IF(B68>3,6,3))) -> 3 | C69: N/m
A72: Square_Inches_Non_Tensioned | B72: =B16*(B15-3) -> 63
A73: 3/8_Slat_Weight | B73: =(PI()*(0.1875*0.1875)*(B16+0.5))*0.284 -> 0.1568341958 | C73: lbs.
A74: Fabric_Weight_oz/sq in. | B74: =21/9/144 -> 0.0162037037
A75: Fabric_Weight | B75: =B72*B74*0.0625 -> 0.06380208333 | C75: lbs.
A76: Total_Non_Tens_Weight | B76: =(B73+B75)*1.05 -> 0.231668093 | C76: lbs.
A77: Aspect Ratio | B77: =B4/B3 -> 
A78: Roller Diameter | B78: =IF(AND(B16<=108,B77<1.45),3,3.25) -> 
A79: Motor_Torque_Required_N/m | B79: =(B78*25.4/2) * (B76/2.20462262) / 100 ->  | C79: N/m
A80: Motor_Torque_Non_Tensioned | B80: =IF(B79 >= 10,20,IF(B79>6,10,IF(B79>3,6,3))) ->  | C80: N/m
A82: Max Top Black Drop | B82: =IF(F8=1,84,60) -> 60
A83: Max Bottom Black Drop | B83: =IF(F8=1,48,24) -> 24

Sheet Advantage
A1: ADVANTAGE
D2: Centimeters | F2: Note: cm will update inches, inches will not update cm
A3: Enter Viewing Area Height: | B3: 0 | C3: inches | D3: 0 | E3: cm | G3: =IF(B13 < 93,"Small_Curve",IF(AND(B13<145,B4<160),"Medium_Curve",IF(OR(B13>=145,B4>=160),"Large_Curve",0))) -> Small_Curve
A4: Enter Viewing Area Width: | B4: 0 | C4: inches | D4: 0 | E4: cm
A5: Enter Top Black Drop: | B5: 2 | C5: inches | D5: 5 | E5: cm
A6: Enter Border Width: | B6: =ROUND((D6/2.54)*4,0)/4 -> 2 | C6: inches | D6: 5 | E6: cm
A7: Enter Bottom Black Drop: (not including pocket) | B7: =ROUND((D7/2.54)*4,0)/4 -> 0 | C7: inches | D7: 0 | E7: cm
A9: =IF(OR(B3=0,B4=0),"Enter VA",IF(AND(B13<=168,B13>=25,B14>=39.5,B14<=164,B6<=6),"Feasible",IF(AND(B13<=132,B14<=196,B14>=168,B6<=6),"Feasible","Not Feasible"))) -> Enter VA
A10: =IF(OR(B3=0,B4=0),"Enter VA","APPROX. HANGING WEIGHT") -> Enter VA
A11: =IF(A9="Feasible",ROUNDUP(J37,0)&" LBS / "&ROUNDUP(J37*0.453592,0)&" KG",IF(A9="Enter VA","Enter VA","Not Feasible")) -> Enter VA
A12: Table of Contents
A13: Total_Screen_Height | B13: =B3+B5+B7 -> 2
A14: Fabric Width | B14: =B4+(B6*2) -> 4
A18: **** Equations for Small Curve Border *******
B19: =280.34-SQRT(280.34*280.34-0.25*B13*B13) -> 0.001783554222 | H19: DIMENSIONS
B20: =B19-ROUNDDOWN(B19,0) -> 0.001783554222 | H20: Enter Viewing Area Width | J20: =B4 -> 0
B21: =IF(B20>=0.875,1,IF(B20>=0.625,0.75,IF(B20>=0.375,0.5,IF(B20>=0.125,0.25,0)))) -> 0 | H21: Enter Viewing Area Height | J21: =B3 -> 0
A22: Small_Curve_Border | B22: =ROUNDDOWN(B19,0)+B21+2 -> 2 | H22: Enter Amount Black Drop | J22: =B5 -> 2
A23: Small_Curve_Fabric_Width | B23: =(B22*2)+B4 -> 4 | H23: Enter Amount of Side Border | J23: =B6 -> 2
A24: Square_Inches_Small_Curve | B24: =B23*B13 -> 8 | H24: Enter Amount of Bottom Drop | J24: =B7 -> 0
A25: Fabric_Weight_oz/sq in. | B25: =28/9/144 -> 0.02160493827 | H25: Square Feet of Fabric | J25: =((J20+(J23*2))*(J21+J22+19+J24)/144) -> 0.5833333333
A26: Fabric_Weight | B26: =B24*B25*0.0625 -> 0.01080246914 | C26: lbs. | H26: Weight of Fabric | J26: =((J25*2)/16) -> 0.07291666667
A27: Slat_Weight | B27: =((B23+0.5)/12)*0.806 -> 0.30225 | C27: lbs. | G27: (0.806 / lbs. ft.) | H27: Weight of Slat | J27: =((J20+(J23*2)+0.5)/12)*(0.36) -> 0.135
A28: Total_Small_Curve_Weight | B28: =(B26+B27)*1.05 -> 0.3287050926 | C28: lbs. | H28: Weight of Case | J28: =((J20+(J23*2)+5.25)/12)*4.4 -> 3.391666667
A29: Roller Diameter | B29: =3.25 -> 3.25 | H29: Weight of Door | J29: =((J20+(J23*2)+5)/12)*0.56 -> 0.42
A30: Motor_Torque_Required_Small_Curve | B30: =(B29*25.4/2) * (B28/2.20462262) / 100 -> 0.0615402499 | C30: N/m | H30: Weight of Roller | J30: =((J20+(J23*2)+1.25)/12)*2 -> 0.875
A31: Motor_Torque_Small_Curve | B31: =IF(B30 >= 10,20,IF(B30>6,10,IF(B30>3,6,3))) -> 3 | C31: N/m | H31: Miscellanous Items | J31: 15
A33: **** Equations for Medium Curve Border *******
B34: =512.5-SQRT(512.5*512.5-0.25*B13*B13)+1.75 -> 1.750975611
B35: =B34-ROUNDDOWN(B34,0) -> 0.7509756107
B36: =IF(B35>=0.875,1,IF(B35>=0.625,0.75,IF(B35>=0.375,0.5,IF(B35>=0.125,0.25,0)))) -> 0.75
A37: Medium_Curve_Border | B37: =ROUNDDOWN(B34,0)+B36 -> 1.75 | H37: Total Weight | J37: =SUM(J26:J35)*1.05 -> 20.8893125
A38: Medium_Curve_Fabric_Width | B38: =(B37*2)+B4+2 -> 5.5
A39: Square_Inches_Medium_Curve | B39: =B38*B13 -> 11
A40: Fabric_Weight_oz/sq in. | B40: =28/9/144 -> 0.02160493827
A41: Fabric_Weight | B41: =B39*B40*0.0625 -> 0.01485339506 | C41: lbs.
A42: Slat_Weight | B42: =((B38+0.5)/12)*0.806 -> 0.403 | C42: lbs. | G42: (0.806 / lbs. ft.)
A43: Total_Medium_Curve_Weight | B43: =(B41+B42)*1.05 -> 0.4387460648 | C43: lbs.
A44: Roller_Diameter | B44: 3.25
A45: Motor_Torque_Required_Medium_Curve | B45: =(B44*25.4/2) * (B43/2.20462262) / 100 -> 0.08214214832 | C45: N/m
A46: Motor_Torque_Medium_Curve | B46: =IF(B45 >= 10,20,IF(B45>6,10,IF(B45>3,6,3))) -> 3 | C46: N/m
A49: **** Equations for Large Top Curve Border *******
A50: y | B50: =B13*0.75 -> 1.5
A51: r | B51: 1175
A52: n | B52: =B50 * B50 -> 2.25
A53: P | B53: =B51*B51 -> 1380625
A54: s | B54: =SQRT(B53-B52) -> 1174.999043
B55: =B51-B54 -> 0.0009574471985
B56: =B55-ROUNDDOWN(B55,0) -> 0.0009574471985
B57: =IF(B56>=0.875,1,IF(B56>=0.625,0.75,IF(B56>=0.375,0.5,IF(B56>=0.125,0.25,0)))) -> 0
A58: Large_Curve_Top_Border | B58: =ROUNDDOWN(B55,0)+B57+2 -> 2
A59: Large_Curve_Top_Width | B59: =(B58*2)+B4 -> 4
A60: Square_Inches_Large_Curve | B60: =B59*B13 -> 8
A61: Fabric_Weight_oz/sq in. | B61: =28/9/144 -> 0.02160493827
A62: Fabric_Weight | B62: =B60*B61*0.0625 -> 0.01080246914 | C62: lbs.
A63: Slat_Weight | B63: =((B59+0.5)/12)*0.806 -> 0.30225 | C63: lbs. | G63: (0.806 / lbs. ft.)
A64: Total_Large_Curve_Weight | B64: =(B62+B63)*1.05 -> 0.3287050926 | C64: lbs.
A65: Roller_Diameter | B65: 3.25
A66: Motor_Torque_Required_Large_Curve | B66: =(B65*25.4/2) * (B64/2.20462262) / 100 -> 0.0615402499 | C66: N/m
A67: Motor_Torque_Large_Curve | B67: =IF(B66 >= 10,20,IF(B66>6,10,IF(B66>3,6,3))) -> 3 | C67: N/m
A70: Square_Inches_Non_Tensioned | B70: =B14*(B13-3) -> -4
A71: 3/8_Slat_Weight | B71: =(PI()*(0.1875*0.1875)*(B14+0.5))*0.284 -> 0.1411507762 | C71: lbs.
A72: Fabric_Weight_oz/sq in. | B72: =21/9/144 -> 0.0162037037
A73: Fabric_Weight | B73: =B70*B72*0.0625 -> -0.004050925926 | C73: lbs.
A74: Total_Non_Tens_Weight | B74: =(B71+B73)*1.05 -> 0.1439548428 | C74: lbs.
A75: Aspect Ratio | B75: =B4/B3 -> 
A76: Roller Diameter | B76: =IF(AND(B14<=108,B75<1.45),3,3.25) -> 
A77: Motor_Torque_Required_N/m | B77: =(B76*25.4/2) * (B74/2.20462262) / 100 ->  | C77: N/m
A78: Motor_Torque_Non_Tensioned | B78: =IF(B77 >= 10,20,IF(B77>6,10,IF(B77>3,6,3))) ->  | C78: N/m
A80: Max Top Black Drop | B80: =IF(#REF!=1,84,60) -> 
A81: Max Bottom Black Drop | B81: =IF(#REF!=1,48,24) -> 

Sheet Tensioned_Contour
A1: TENSIONED CONTOUR ELECTROL
D2: Centimeters | F2: Note: cm will update inches, inches will not update cm
A3: Enter Viewing Area Height: | B3: =ROUND((D3/2.54)*4,0)/4 -> 0 | C3: inches | D3: 0 | E3: cm | G3: =IF(B15 < 93,"Small_Curve",IF(AND(B15<145,B4<160),"Medium_Curve",IF(OR(B15>=145,B4>=160),"Large_Curve",0))) -> Small_Curve
A4: Enter Viewing Area Width: | B4: =ROUND((D4/2.54)*4,0)/4 -> 0 | C4: inches | D4: 0 | E4: cm
A5: Enter Top Black Drop: | B5: =ROUND((D5/2.54)*4,0)/4 -> 12 | C5: inches | D5: 30.5 | E5: cm
A6: Enter Bottom Black Drop: | B6: =ROUND((D6/2.54)*4,0)/4 -> 2 | C6: inches | D6: 5 | E6: cm
A7: Material:
G8: 0
A11: "ALL THREE FIELDS TO THE RIGHT MUST BE GREEN" | B11: =IF(OR(B3=0,B4=0),"Enter VA",IF(G8=0,"SELECT FABRIC",IF(AND(B15>25,B16>=39.5,B15<=168,B16<=174),"Feasible","Not Feasible"))) -> Enter VA
A12: APPROX. HANGING WEIGHT | B12: =IF(OR(B3=0,B4=0),"Enter VA",IF(G8=0,"SELECT FABRIC",IF(B5<=B82,"TOP BLACK DROP OK","TOO MUCH TOP BLACK DROP"))) -> Enter VA
A13: =IF(OR(B3=0,B4=0),"Enter VA",IF(G8=0,"SELECT FABRIC",IF(AND(B15>25,B16>=39.5,B15<=168,B16<=174),ROUNDUP(J36,0)&" LBS / "&ROUNDUP(J36*0.453592,0)&" KG","Not Feasible"))) -> Enter VA | B13: =IF(OR(B3=0,B4=0),"Enter VA",IF(G8=0,"SELECT FABRIC",IF(B6<=B83,"BTM BLACK DROP OK","TOO MUCH BTM BLACK DROP"))) -> Enter VA
A14: Table of Contents
A15: Total_Screen_Height | B15: =B3+B5+B6+3 -> 17
A16: Fabric Width | B16: =IF(G3="Small_Curve",B25,IF(G3="Medium_Curve",B40,IF(G3="Large_Curve",B61,0))) -> 4.5
A20: **** Equations for Small Curve Border ******* | H20: DIMENSIONS
B21: =280.34-SQRT(280.34*280.34-0.25*B15*B15) -> 0.1288910125 | H21: Enter Viewing Area Width | J21: =B4 -> 0
B22: =B21-ROUNDDOWN(B21,0) -> 0.1288910125 | H22: Enter Viewing Area Height | J22: =B3 -> 0
B23: =IF(B22>=0.875,1,IF(B22>=0.625,0.75,IF(B22>=0.375,0.5,IF(B22>=0.125,0.25,0)))) -> 0.25 | H23: Enter Amount Black Drop | J23: =B5+B6 -> 14
A24: Small_Curve_Border | B24: =ROUNDDOWN(B21,0)+B23+2 -> 2.25 | H24: Enter Amount of Side Border | J24: =IF(G3="Small_Curve",B24,IF(G3="Medium_Curve",B39,IF(G3="Large_Curve",B60,""))) -> 2.25
A25: Small_Curve_Fabric_Width | B25: =(B24*2)+B4 -> 4.5 | H25: Square Feet of Fabric | J25: =((J21+(J24*2))*(J22+J23+25+15)/144) -> 1.6875
A26: Square_Inches_Small_Curve | B26: =B25*B15 -> 76.5 | H26: Weight of Fabric | J26: =((J25*2)/16) -> 0.2109375
A27: Fabric_Weight_oz/sq in. | B27: =28/9/144 -> 0.02160493827 | H27: Weight of Slat | J27: =((J21+(J24*2))/12)*(0.69+0.141) -> 0.311625
A28: Fabric_Weight | B28: =B26*B27*0.0625 -> 0.1032986111 | C28: lbs. | H28: Weight of Case | J28: =(((J21+(J24*2)+11.75)/12)*2.43) -> 3.290625
A29: Slat_Weight | B29: =((B25+0.5)/12)*0.806 -> 0.3358333333 | C29: lbs. | G29: (0.806 / lbs. ft.) | H29: Weight of Roller | J29: =((J21+(J24*2)+4.25)/12)*2.16 -> 1.575
A30: Total_Small_Curve_Weight | B30: =(B28+B29)*1.05 -> 0.4610885417 | C30: lbs. | H30: Miscellanous Items | J30: 10
A31: Roller Diameter | B31: =3.25 -> 3.25
A32: Motor_Torque_Required_Small_Curve | B32: =(B31*25.4/2) * (B30/2.20462262) / 100 -> 0.08632511245 | C32: N/m
A33: Motor_Torque_Small_Curve | B33: =IF(B32 >= 10,20,IF(B32>6,10,IF(B32>3,6,3))) -> 3 | C33: N/m
A35: **** Equations for Medium Curve Border *******
B36: =512.5-SQRT(512.5*512.5-0.25*B15*B15)+1.75 -> 1.820492653 | H36: Total Weight | J36: =SUM(J26:J34) -> 15.3881875
B37: =B36-ROUNDDOWN(B36,0) -> 0.8204926529
B38: =IF(B37>=0.875,1,IF(B37>=0.625,0.75,IF(B37>=0.375,0.5,IF(B37>=0.125,0.25,0)))) -> 0.75
A39: Medium_Curve_Border | B39: =ROUNDDOWN(B36,0)+B38 -> 1.75
A40: Medium_Curve_Fabric_Width | B40: =(B39*2)+B4+2 -> 5.5
A41: Square_Inches_Medium_Curve | B41: =B40*B15 -> 93.5
A42: Fabric_Weight_oz/sq in. | B42: =28/9/144 -> 0.02160493827
A43: Fabric_Weight | B43: =B41*B42*0.0625 -> 0.126253858 | C43: lbs.
A44: Slat_Weight | B44: =((B40+0.5)/12)*0.806 -> 0.403 | C44: lbs. | G44: (0.806 / lbs. ft.)
A45: Total_Medium_Curve_Weight | B45: =(B43+B44)*1.05 -> 0.5557165509 | C45: lbs.
A46: Roller_Diameter | B46: 3.25
A47: Motor_Torque_Required_Medium_Curve | B47: =(B46*25.4/2) * (B45/2.20462262) / 100 -> 0.1040413921 | C47: N/m
A48: Motor_Torque_Medium_Curve | B48: =IF(B47 >= 10,20,IF(B47>6,10,IF(B47>3,6,3))) -> 3 | C48: N/m
A51: **** Equations for Large Top Curve Border *******
A52: y | B52: =B15*0.75 -> 12.75
A53: r | B53: 1175
A54: n | B54: =B52 * B52 -> 162.5625
A55: P | B55: =B53*B53 -> 1380625
A56: s | B56: =SQRT(B55-B54) -> 1174.930822
B57: =B53-B56 -> 0.06917756831
B58: =B57-ROUNDDOWN(B57,0) -> 0.06917756831
B59: =IF(B58>=0.875,1,IF(B58>=0.625,0.75,IF(B58>=0.375,0.5,IF(B58>=0.125,0.25,0)))) -> 0
A60: Large_Curve_Top_Border | B60: =ROUNDDOWN(B57,0)+B59+2 -> 2
A61: Large_Curve_Top_Width | B61: =(B60*2)+B4 -> 4
A62: Square_Inches_Large_Curve | B62: =B61*B15 -> 68
A63: Fabric_Weight_oz/sq in. | B63: =28/9/144 -> 0.02160493827
A64: Fabric_Weight | B64: =B62*B63*0.0625 -> 0.09182098765 | C64: lbs.
A65: Slat_Weight | B65: =((B61+0.5)/12)*0.806 -> 0.30225 | C65: lbs. | G65: (0.806 / lbs. ft.)
A66: Total_Large_Curve_Weight | B66: =(B64+B65)*1.05 -> 0.413774537 | C66: lbs.
A67: Roller_Diameter | B67: 3.25
A68: Motor_Torque_Required_Large_Curve | B68: =(B67*25.4/2) * (B66/2.20462262) / 100 -> 0.07746697263 | C68: N/m
A69: Motor_Torque_Large_Curve | B69: =IF(B68 >= 10,20,IF(B68>6,10,IF(B68>3,6,3))) -> 3 | C69: N/m
A72: Square_Inches_Non_Tensioned | B72: =B16*(B15-3) -> 63
A73: 3/8_Slat_Weight | B73: =(PI()*(0.1875*0.1875)*(B16+0.5))*0.284 -> 0.1568341958 | C73: lbs.
A74: Fabric_Weight_oz/sq in. | B74: =21/9/144 -> 0.0162037037
A75: Fabric_Weight | B75: =B72*B74*0.0625 -> 0.06380208333 | C75: lbs.
A76: Total_Non_Tens_Weight | B76: =(B73+B75)*1.05 -> 0.231668093 | C76: lbs.
A77: Aspect Ratio | B77: =B4/B3 -> 
A78: Roller Diameter | B78: =IF(AND(B16<=108,B77<1.45),3,3.25) -> 
A79: Motor_Torque_Required_N/m | B79: =(B78*25.4/2) * (B76/2.20462262) / 100 ->  | C79: N/m
A80: Motor_Torque_Non_Tensioned | B80: =IF(B79 >= 10,20,IF(B79>6,10,IF(B79>3,6,3))) ->  | C80: N/m
A82: Max Top Black Drop | B82: =IF(G8=1,84,60) -> 60
A83: Max Bottom Black Drop | B83: =IF(G8=1,48,24) -> 24

Sheet Contour
A1: CONTOUR ELECTROL
D2: Centimeters | F2: Note: cm will update inches, inches will not update cm
A3: Enter Viewing Area Height: | B3: =ROUND((D3/2.54)*4,0)/4 -> 0 | C3: inches | D3: 0 | E3: cm | G3: =IF(B13 < 93,"Small_Curve",IF(AND(B13<145,B4<160),"Medium_Curve",IF(OR(B13>=145,B4>=160),"Large_Curve",0))) -> Small_Curve
A4: Enter Viewing Area Width: | B4: =ROUND((D4/2.54)*4,0)/4 -> 0 | C4: inches | D4: 0 | E4: cm
A5: Enter Top Black Drop: | B5: =ROUND((D5/2.54)*4,0)/4 -> 2 | C5: inches | D5: 5 | E5: cm
A6: Enter Border Width: | B6: =ROUND((D6/2.54)*4,0)/4 -> 2 | C6: inches | D6: 5 | E6: cm
A7: Enter Bottom Black Drop: (not including pocket) | B7: =ROUND((D7/2.54)*4,0)/4 -> 0 | C7: inches | D7: 0 | E7: cm
A9: =IF(OR(B3=0,B4=0),"Enter VA",IF(AND(B13>25,B14>39.5,B13<=168,B14<=164,B6<=6),"Feasible","Not Feasible")) -> Enter VA
A10: =IF(OR(B3=0,B4=0),"Enter VA","APPROX. HANGING WEIGHT") -> Enter VA
A11: =IF(OR(B3=0,B4=0),"Enter VA",IF(AND(B13>25,B14>39.5,B13<=168,B14<=164,B6<=6),ROUNDUP(J35,0)&" LBS / "&ROUNDUP(J35*0.453592,0)&" KG","Not Feasible")) -> Enter VA
A13: Total_Screen_Height | B13: =B3+B5+B7 -> 2
A14: Fabric Width | B14: =B4+(B6*2) -> 4
A18: **** Equations for Small Curve Border *******
B19: =280.34-SQRT(280.34*280.34-0.25*B13*B13) -> 0.001783554222 | H19: DIMENSIONS
B20: =B19-ROUNDDOWN(B19,0) -> 0.001783554222 | H20: Enter Viewing Area Width | J20: =B4 -> 0
B21: =IF(B20>=0.875,1,IF(B20>=0.625,0.75,IF(B20>=0.375,0.5,IF(B20>=0.125,0.25,0)))) -> 0 | H21: Enter Viewing Area Height | J21: =B3 -> 0
A22: Small_Curve_Border | B22: =ROUNDDOWN(B19,0)+B21+2 -> 2 | H22: Enter Amount Black Drop | J22: =B5+B7 -> 2
A23: Small_Curve_Fabric_Width | B23: =(B22*2)+B4 -> 4 | H23: Enter Amount of Side Border | J23: =B6 -> 2
A24: Square_Inches_Small_Curve | B24: =B23*B13 -> 8 | H24: Square Feet of Fabric | J24: =((J20+(J23*2))*(J21+J22+32)/144) -> 0.9444444444
A25: Fabric_Weight_oz/sq in. | B25: =28/9/144 -> 0.02160493827 | H25: Weight of Fabric | J25: =((J24*2)/16) -> 0.1180555556
A26: Fabric_Weight | B26: =B24*B25*0.0625 -> 0.01080246914 | C26: lbs. | H26: Weight of Slat | J26: =((J20+(J23*2)+0.5)/12)*0.3565 -> 0.1336875
A27: Slat_Weight | B27: =((B23+0.5)/12)*0.806 -> 0.30225 | C27: lbs. | G27: (0.806 / lbs. ft.) | H27: Weight of Case | J27: =(((J20+(J23*2)+11.75)/12)*2.43) -> 3.189375
A28: Total_Small_Curve_Weight | B28: =(B26+B27)*1.05 -> 0.3287050926 | C28: lbs. | H28: Weight of Roller | J28: =((J20+(J23*2)+4.25)/12)*2.16 -> 1.485
A29: Roller Diameter | B29: =3.25 -> 3.25 | H29: Miscellanous Items | J29: 10
A30: Motor_Torque_Required_Small_Curve | B30: =(B29*25.4/2) * (B28/2.20462262) / 100 -> 0.0615402499 | C30: N/m | H30: Hanger Bracket | J30: =IF((J20+(J23*2)+11.75) > 152,7.205,IF((J20+(J23*2)+11.75) > 117.75,4.804,2.399)) -> 2.399
A31: Motor_Torque_Small_Curve | B31: =IF(B30 >= 10,20,IF(B30>6,10,IF(B30>3,6,3))) -> 3 | C31: N/m
A33: **** Equations for Medium Curve Border *******
B34: =512.5-SQRT(512.5*512.5-0.25*B13*B13)+1.75 -> 1.750975611
B35: =B34-ROUNDDOWN(B34,0) -> 0.7509756107 | H35: Total Weight | J35: =SUM(J25:J33) -> 17.32511806
B36: =IF(B35>=0.875,1,IF(B35>=0.625,0.75,IF(B35>=0.375,0.5,IF(B35>=0.125,0.25,0)))) -> 0.75
A37: Medium_Curve_Border | B37: =ROUNDDOWN(B34,0)+B36 -> 1.75
A38: Medium_Curve_Fabric_Width | B38: =(B37*2)+B4+2 -> 5.5
A39: Square_Inches_Medium_Curve | B39: =B38*B13 -> 11
A40: Fabric_Weight_oz/sq in. | B40: =28/9/144 -> 0.02160493827
A41: Fabric_Weight | B41: =B39*B40*0.0625 -> 0.01485339506 | C41: lbs.
A42: Slat_Weight | B42: =((B38+0.5)/12)*0.806 -> 0.403 | C42: lbs. | G42: (0.806 / lbs. ft.)
A43: Total_Medium_Curve_Weight | B43: =(B41+B42)*1.05 -> 0.4387460648 | C43: lbs.
A44: Roller_Diameter | B44: 3.25
A45: Motor_Torque_Required_Medium_Curve | B45: =(B44*25.4/2) * (B43/2.20462262) / 100 -> 0.08214214832 | C45: N/m
A46: Motor_Torque_Medium_Curve | B46: =IF(B45 >= 10,20,IF(B45>6,10,IF(B45>3,6,3))) -> 3 | C46: N/m
A49: **** Equations for Large Top Curve Border *******
A50: y | B50: =B13*0.75 -> 1.5
A51: r | B51: 1175
A52: n | B52: =B50 * B50 -> 2.25
A53: P | B53: =B51*B51 -> 1380625
A54: s | B54: =SQRT(B53-B52) -> 1174.999043
B55: =B51-B54 -> 0.0009574471985
B56: =B55-ROUNDDOWN(B55,0) -> 0.0009574471985
B57: =IF(B56>=0.875,1,IF(B56>=0.625,0.75,IF(B56>=0.375,0.5,IF(B56>=0.125,0.25,0)))) -> 0
A58: Large_Curve_Top_Border | B58: =ROUNDDOWN(B55,0)+B57+2 -> 2
A59: Large_Curve_Top_Width | B59: =(B58*2)+B4 -> 4
A60: Square_Inches_Large_Curve | B60: =B59*B13 -> 8
A61: Fabric_Weight_oz/sq in. | B61: =28/9/144 -> 0.02160493827
A62: Fabric_Weight | B62: =B60*B61*0.0625 -> 0.01080246914 | C62: lbs.
A63: Slat_Weight | B63: =((B59+0.5)/12)*0.806 -> 0.30225 | C63: lbs. | G63: (0.806 / lbs. ft.)
A64: Total_Large_Curve_Weight | B64: =(B62+B63)*1.05 -> 0.3287050926 | C64: lbs.
A65: Roller_Diameter | B65: 3.25
A66: Motor_Torque_Required_Large_Curve | B66: =(B65*25.4/2) * (B64/2.20462262) / 100 -> 0.0615402499 | C66: N/m
A67: Motor_Torque_Large_Curve | B67: =IF(B66 >= 10,20,IF(B66>6,10,IF(B66>3,6,3))) -> 3 | C67: N/m
A70: Square_Inches_Non_Tensioned | B70: =B14*(B13-3) -> -4
A71: 3/8_Slat_Weight | B71: =(PI()*(0.1875*0.1875)*(B14+0.5))*0.284 -> 0.1411507762 | C71: lbs.
A72: Fabric_Weight_oz/sq in. | B72: =21/9/144 -> 0.0162037037
A73: Fabric_Weight | B73: =B70*B72*0.0625 -> -0.004050925926 | C73: lbs.
A74: Total_Non_Tens_Weight | B74: =(B71+B73)*1.05 -> 0.1439548428 | C74: lbs.
A75: Aspect Ratio | B75: =B4/B3 -> 
A76: Roller Diameter | B76: =IF(AND(B14<=108,B75<1.45),3,3.25) -> 
A77: Motor_Torque_Required_N/m | B77: =(B76*25.4/2) * (B74/2.20462262) / 100 ->  | C77: N/m
A78: Motor_Torque_Non_Tensioned | B78: =IF(B77 >= 10,20,IF(B77>6,10,IF(B77>3,6,3))) ->  | C78: N/m
A80: Max Top Black Drop | B80: =IF(#REF!=1,84,60) -> 
A81: Max Bottom Black Drop | B81: =IF(#REF!=1,48,24) -> 
A82: Table of Contents

Sheet Tensioned_Cosmopolitan
A1: TENSIONED COSMOPOLITAN ELECTROL
D2: Centimeters | F2: Note: cm will update inches, inches will not update cm
A3: Enter Viewing Area Height: | B3: =ROUND((D3/2.54)*4,0)/4 -> 0 | C3: inches | D3: 0 | E3: cm | G3: =IF(B15 < 93,"Small_Curve",IF(AND(B15<145,B4<160),"Medium_Curve",IF(OR(B15>=145,B4>=160),"Large_Curve",0))) -> Small_Curve
A4: Enter Viewing Area Width: | B4: =ROUND((D4/2.54)*4,0)/4 -> 0 | C4: inches | D4: 0 | E4: cm
A5: Enter Top Black Drop: | B5: =ROUND((D5/2.54)*4,0)/4 -> 12 | C5: inches | D5: 30.5 | E5: cm
A6: Enter Bottom Black Drop: | B6: =ROUND((D6/2.54)*4,0)/4 -> 2 | C6: inches | D6: 5 | E6: cm
A7: Material:
G8: 0
A11: "ALL THREE FIELDS TO THE RIGHT MUST BE GREEN" | B11: =IF(OR(B3=0,B4=0),"Enter VA",IF(G8=0,"SELECT FABRIC",IF(AND(B15<=144,B16<=154.5,B15>=25,B16>=36.5),"Feasible","Not Feasible"))) -> Enter VA
A12: APPROX. HANGING WEIGHT | B12: =IF(OR(B3=0,B4=0),"Enter VA",IF(G8=0,"SELECT FABRIC",IF(B5<=B82,"TOP BLACK DROP OK","TOO MUCH TOP BLACK DROP"))) -> Enter VA
A13: =IF(OR(B3=0,B4=0),"Enter VA",IF(G8=0,"SELECT FABRIC",IF(AND(B15<=144,B16<=154.5,B15>=25,B16>=36.5),ROUNDUP(K37,0)&" LBS / "&ROUNDUP(K37*0.453592,0)&" KG","Not Feasible"))) -> Enter VA | B13: =IF(OR(B3=0,B4=0),"Enter VA",IF(G8=0,"SELECT FABRIC",IF(B6<=B83,"BTM BLACK DROP OK","TOO MUCH BTM BLACK DROP"))) -> Enter VA
A14: Table of Contents
A15: Total_Screen_Height | B15: =B3+B5+B6+3 -> 17
A16: Fabric Width | B16: =IF(G3="Small_Curve",B25,IF(G3="Medium_Curve",B40,IF(G3="Large_Curve",B61,0))) -> 4.5
A20: **** Equations for Small Curve Border *******
B21: =280.34-SQRT(280.34*280.34-0.25*B15*B15) -> 0.1288910125 | H21: FORMULAS | I21: DIMENSIONS
B22: =B21-ROUNDDOWN(B21,0) -> 0.1288910125 | H22: Viewing Area Width | I22: Enter Viewing Area Width | K22: =B4 -> 0
B23: =IF(B22>=0.875,1,IF(B22>=0.625,0.75,IF(B22>=0.375,0.5,IF(B22>=0.125,0.25,0)))) -> 0.25 | H23: Viewing Area Height | I23: Enter Viewing Area Height | K23: =B3 -> 0
A24: Small_Curve_Border | B24: =ROUNDDOWN(B21,0)+B23+2 -> 2.25 | H24: Enter Amount Black Drop | I24: Enter Amount Black Drop | K24: =B5+B6 -> 14
A25: Small_Curve_Fabric_Width | B25: =(B24*2)+B4 -> 4.5 | H25: Enter Amount of Side Border | I25: Enter Amount of Side Border | K25: =IF(G3="Small_Curve",B24,IF(G3="Medium_Curve",B39,IF(G3="Large_Curve",B60,""))) -> 2.25
A26: Square_Inches_Small_Curve | B26: =B25*B15 -> 76.5 | H26: Square Feet of Fabric | K26: =((K22+(K25*2))*(K23+K24+21+4.5)/144) -> 1.234375
A27: Fabric_Weight_oz/sq in. | B27: =28/9/144 -> 0.02160493827 | H27: Weight of Fabric | K27: =((K26*3)/16) -> 0.2314453125
A28: Fabric_Weight | B28: =B26*B27*0.0625 -> 0.1032986111 | C28: lbs. | H28: Weight of Slat | K28: =((K22+0.5+(K25*2))/12)*(0.693856479) -> 0.2891068663
A29: Slat_Weight | B29: =((B25+0.5)/12)*0.806 -> 0.3358333333 | C29: lbs. | G29: (0.806 / lbs. ft.) | H29: Weight of Case | K29: =(((K22+(K25*2)+8.5)/12)*1.71) -> 1.8525
A30: Total_Small_Curve_Weight | B30: =(B28+B29)*1.05 -> 0.4610885417 | C30: lbs. | H30: Weight of Roller | K30: =((K22+(K25*2)+2)/12)*2.16 -> 1.17
A31: Roller Diameter | B31: =3.25 -> 3.25 | H31: Miscellanous Items | K31: 13
A32: Motor_Torque_Required_Small_Curve | B32: =(B31*25.4/2) * (B30/2.20462262) / 100 -> 0.08632511245 | C32: N/m
A33: Motor_Torque_Small_Curve | B33: =IF(B32 >= 10,20,IF(B32>6,10,IF(B32>3,6,3))) -> 3 | C33: N/m
A35: **** Equations for Medium Curve Border *******
B36: =512.5-SQRT(512.5*512.5-0.25*B15*B15)+1.75 -> 1.820492653
B37: =B36-ROUNDDOWN(B36,0) -> 0.8204926529 | I37: Total Weight | K37: =SUM(K27:K35) -> 16.54305218
B38: =IF(B37>=0.875,1,IF(B37>=0.625,0.75,IF(B37>=0.375,0.5,IF(B37>=0.125,0.25,0)))) -> 0.75
A39: Medium_Curve_Border | B39: =ROUNDDOWN(B36,0)+B38 -> 1.75
A40: Medium_Curve_Fabric_Width | B40: =(B39*2)+B4+2 -> 5.5
A41: Square_Inches_Medium_Curve | B41: =B40*B15 -> 93.5
A42: Fabric_Weight_oz/sq in. | B42: =28/9/144 -> 0.02160493827
A43: Fabric_Weight | B43: =B41*B42*0.0625 -> 0.126253858 | C43: lbs.
A44: Slat_Weight | B44: =((B40+0.5)/12)*0.806 -> 0.403 | C44: lbs. | G44: (0.806 / lbs. ft.)
A45: Total_Medium_Curve_Weight | B45: =(B43+B44)*1.05 -> 0.5557165509 | C45: lbs.
A46: Roller_Diameter | B46: 3.25
A47: Motor_Torque_Required_Medium_Curve | B47: =(B46*25.4/2) * (B45/2.20462262) / 100 -> 0.1040413921 | C47: N/m
A48: Motor_Torque_Medium_Curve | B48: =IF(B47 >= 10,20,IF(B47>6,10,IF(B47>3,6,3))) -> 3 | C48: N/m
A51: **** Equations for Large Top Curve Border *******
A52: y | B52: =B15*0.75 -> 12.75
A53: r | B53: 1175
A54: n | B54: =B52 * B52 -> 162.5625
A55: P | B55: =B53*B53 -> 1380625
A56: s | B56: =SQRT(B55-B54) -> 1174.930822
B57: =B53-B56 -> 0.06917756831
B58: =B57-ROUNDDOWN(B57,0) -> 0.06917756831
B59: =IF(B58>=0.875,1,IF(B58>=0.625,0.75,IF(B58>=0.375,0.5,IF(B58>=0.125,0.25,0)))) -> 0
A60: Large_Curve_Top_Border | B60: =ROUNDDOWN(B57,0)+B59+2 -> 2
A61: Large_Curve_Top_Width | B61: =(B60*2)+B4 -> 4
A62: Square_Inches_Large_Curve | B62: =B61*B15 -> 68
A63: Fabric_Weight_oz/sq in. | B63: =28/9/144 -> 0.02160493827
A64: Fabric_Weight | B64: =B62*B63*0.0625 -> 0.09182098765 | C64: lbs.
A65: Slat_Weight | B65: =((B61+0.5)/12)*0.806 -> 0.30225 | C65: lbs. | G65: (0.806 / lbs. ft.)
A66: Total_Large_Curve_Weight | B66: =(B64+B65)*1.05 -> 0.413774537 | C66: lbs.
A67: Roller_Diameter | B67: 3.25
A68: Motor_Torque_Required_Large_Curve | B68: =(B67*25.4/2) * (B66/2.20462262) / 100 -> 0.07746697263 | C68: N/m
A69: Motor_Torque_Large_Curve | B69: =IF(B68 >= 10,20,IF(B68>6,10,IF(B68>3,6,3))) -> 3 | C69: N/m
A72: Square_Inches_Non_Tensioned | B72: =B16*(B15-3) -> 63
A73: 3/8_Slat_Weight | B73: =(PI()*(0.1875*0.1875)*(B16+0.5))*0.284 -> 0.1568341958 | C73: lbs.
A74: Fabric_Weight_oz/sq in. | B74: =21/9/144 -> 0.0162037037
A75: Fabric_Weight | B75: =B72*B74*0.0625 -> 0.06380208333 | C75: lbs.
A76: Total_Non_Tens_Weight | B76: =(B73+B75)*1.05 -> 0.231668093 | C76: lbs.
A77: Aspect Ratio | B77: =B4/B3 -> 
A78: Roller Diameter | B78: =IF(AND(B16<=108,B77<1.45),3,3.25) -> 
A79: Motor_Torque_Required_N/m | B79: =(B78*25.4/2) * (B76/2.20462262) / 100 ->  | C79: N/m
A80: Motor_Torque_Non_Tensioned | B80: =IF(B79 >= 10,20,IF(B79>6,10,IF(B79>3,6,3))) ->  | C80: N/m
A82: Max Top Black Drop | B82: =IF(G8=1,84,60) -> 60
A83: Max Bottom Black Drop | B83: =IF(G8=1,48,24) -> 24

Sheet Cosmopolitan
A1: COSMOPOLITAN ELECTROL
D2: Centimeters | F2: Note: cm will update inches, inches will not update cm
A3: Enter Viewing Area Height: | B3: =ROUND((D3/2.54)*4,0)/4 -> 0 | C3: inches | D3: 0 | E3: cm | G3: =IF(B13 < 93,"Small_Curve",IF(AND(B13<145,B4<160),"Medium_Curve",IF(OR(B13>=145,B4>=160),"Large_Curve",0))) -> Small_Curve
A4: Enter Viewing Area Width: | B4: =ROUND((D4/2.54)*4,0)/4 -> 0 | C4: inches | D4: 0 | E4: cm
A5: Enter Top Black Drop: | B5: =ROUND((D5/2.54)*4,0)/4 -> 2 | C5: inches | D5: 5 | E5: cm
A6: Enter Border Width: | B6: =ROUND((D6/2.54)*4,0)/4 -> 2 | C6: inches | D6: 5 | E6: cm
A7: Enter Bottom Black Drop: (not including pocket) | B7: =ROUND((D7/2.54)*4,0)/4 -> 0 | C7: inches | D7: 0 | E7: cm
A9: =IF(OR(B3=0,B4=0),"Enter VA",IF(AND(B13<=156,B14<=144,B6<=6,B13>=25,B14>=39.5),"Feasible","Not Feasible")) -> Enter VA
A10: =IF(OR(B3=0,B4=0),"Enter VA","APPROX. HANGING WEIGHT") -> Enter VA
A11: =IF(OR(B3=0,B4=0),"Enter VA",IF(AND(B14<=144,B13<=156,B6<=6,B13>=25,B14>=39.5),ROUNDUP(J36,0)&" LBS / "&ROUNDUP(J36*0.453592,0)&" KG","Not Feasible")) -> Enter VA
A12: Table of Contents
A13: Fabric Height | B13: =B3+B5+B7 -> 2
A14: Fabric Width | B14: =B4+(B6*2) -> 4
A18: **** Equations for Small Curve Border *******
B19: =280.34-SQRT(280.34*280.34-0.25*B13*B13) -> 0.001783554222 | H19: DIMENSIONS
B20: =B19-ROUNDDOWN(B19,0) -> 0.001783554222 | H20: Enter Viewing Area Width | J20: =B4 -> 0
B21: =IF(B20>=0.875,1,IF(B20>=0.625,0.75,IF(B20>=0.375,0.5,IF(B20>=0.125,0.25,0)))) -> 0 | H21: Enter Viewing Area Height | J21: =B3 -> 0
A22: Small_Curve_Border | B22: =ROUNDDOWN(B19,0)+B21+2 -> 2 | H22: Enter Amount Black Drop | J22: =B5 -> 2
A23: Small_Curve_Fabric_Width | B23: =(B22*2)+B4 -> 4 | H23: Enter Amount of Side Border | J23: =B6 -> 2
A24: Square_Inches_Small_Curve | B24: =B23*B13 -> 8 | H24: Enter Amount of Bottom Drop | J24: =B7 -> 0
A25: Fabric_Weight_oz/sq in. | B25: =28/9/144 -> 0.02160493827 | H25: Square Feet of Fabric | J25: =((J20+(J23*2))*(J21+J22+21+4.5)/144) -> 0.7638888889
A26: Fabric_Weight | B26: =B24*B25*0.0625 -> 0.01080246914 | C26: lbs. | H26: Weight of Fabric | J26: =((J25*2.5)/16) -> 0.1193576389
A27: Slat_Weight | B27: =((B23+0.5)/12)*0.806 -> 0.30225 | C27: lbs. | G27: (0.806 / lbs. ft.) | H27: Weight of Slat | J27: =((J20+0.5+(J23*2))/12)*0.3565 -> 0.1336875
A28: Total_Small_Curve_Weight | B28: =(B26+B27)*1.05 -> 0.3287050926 | C28: lbs. | H28: Weight of Case | J28: =(((J20+(J23*2)+8.5)/12)*1.7341046) -> 1.806358958
A29: Roller Diameter | B29: =3.25 -> 3.25 | H29: Weight of Roller | J29: =((J20+(J23*2)+2)/12)*2 -> 1
A30: Motor_Torque_Required_Small_Curve | B30: =(B29*25.4/2) * (B28/2.20462262) / 100 -> 0.0615402499 | C30: N/m | H30: Miscellanous Items | J30: 9.27
A31: Motor_Torque_Small_Curve | B31: =IF(B30 >= 10,20,IF(B30>6,10,IF(B30>3,6,3))) -> 3 | C31: N/m
A33: **** Equations for Medium Curve Border *******
B34: =512.5-SQRT(512.5*512.5-0.25*B13*B13)+1.75 -> 1.750975611
B35: =B34-ROUNDDOWN(B34,0) -> 0.7509756107
B36: =IF(B35>=0.875,1,IF(B35>=0.625,0.75,IF(B35>=0.375,0.5,IF(B35>=0.125,0.25,0)))) -> 0.75 | H36: Total Weight | J36: =SUM(J26:J30) -> 12.3294041
A37: Medium_Curve_Border | B37: =ROUNDDOWN(B34,0)+B36 -> 1.75
A38: Medium_Curve_Fabric_Width | B38: =(B37*2)+B4+2 -> 5.5
A39: Square_Inches_Medium_Curve | B39: =B38*B13 -> 11
A40: Fabric_Weight_oz/sq in. | B40: =28/9/144 -> 0.02160493827
A41: Fabric_Weight | B41: =B39*B40*0.0625 -> 0.01485339506 | C41: lbs.
A42: Slat_Weight | B42: =((B38+0.5)/12)*0.806 -> 0.403 | C42: lbs. | G42: (0.806 / lbs. ft.)
A43: Total_Medium_Curve_Weight | B43: =(B41+B42)*1.05 -> 0.4387460648 | C43: lbs.
A44: Roller_Diameter | B44: 3.25
A45: Motor_Torque_Required_Medium_Curve | B45: =(B44*25.4/2) * (B43/2.20462262) / 100 -> 0.08214214832 | C45: N/m
A46: Motor_Torque_Medium_Curve | B46: =IF(B45 >= 10,20,IF(B45>6,10,IF(B45>3,6,3))) -> 3 | C46: N/m
A49: **** Equations for Large Top Curve Border *******
A50: y | B50: =B13*0.75 -> 1.5
A51: r | B51: 1175
A52: n | B52: =B50 * B50 -> 2.25
A53: P | B53: =B51*B51 -> 1380625
A54: s | B54: =SQRT(B53-B52) -> 1174.999043
B55: =B51-B54 -> 0.0009574471985
B56: =B55-ROUNDDOWN(B55,0) -> 0.0009574471985
B57: =IF(B56>=0.875,1,IF(B56>=0.625,0.75,IF(B56>=0.375,0.5,IF(B56>=0.125,0.25,0)))) -> 0
A58: Large_Curve_Top_Border | B58: =ROUNDDOWN(B55,0)+B57+2 -> 2
A59: Large_Curve_Top_Width | B59: =(B58*2)+B4 -> 4
A60: Square_Inches_Large_Curve | B60: =B59*B13 -> 8
A61: Fabric_Weight_oz/sq in. | B61: =28/9/144 -> 0.02160493827
A62: Fabric_Weight | B62: =B60*B61*0.0625 -> 0.01080246914 | C62: lbs.
A63: Slat_Weight | B63: =((B59+0.5)/12)*0.806 -> 0.30225 | C63: lbs. | G63: (0.806 / lbs. ft.)
A64: Total_Large_Curve_Weight | B64: =(B62+B63)*1.05 -> 0.3287050926 | C64: lbs.
A65: Roller_Diameter | B65: 3.25
A66: Motor_Torque_Required_Large_Curve | B66: =(B65*25.4/2) * (B64/2.20462262) / 100 -> 0.0615402499 | C66: N/m
A67: Motor_Torque_Large_Curve | B67: =IF(B66 >= 10,20,IF(B66>6,10,IF(B66>3,6,3))) -> 3 | C67: N/m
A70: Square_Inches_Non_Tensioned | B70: =B14*(B13-3) -> -4
A71: 3/8_Slat_Weight | B71: =(PI()*(0.1875*0.1875)*(B14+0.5))*0.284 -> 0.1411507762 | C71: lbs.
A72: Fabric_Weight_oz/sq in. | B72: =21/9/144 -> 0.0162037037
A73: Fabric_Weight | B73: =B70*B72*0.0625 -> -0.004050925926 | C73: lbs.
A74: Total_Non_Tens_Weight | B74: =(B71+B73)*1.05 -> 0.1439548428 | C74: lbs.
A75: Aspect Ratio | B75: =B4/B3 -> 
A76: Roller Diameter | B76: =IF(AND(B14<=108,B75<1.45),3,3.25) -> 
A77: Motor_Torque_Required_N/m | B77: =(B76*25.4/2) * (B74/2.20462262) / 100 ->  | C77: N/m
A78: Motor_Torque_Non_Tensioned | B78: =IF(B77 >= 10,20,IF(B77>6,10,IF(B77>3,6,3))) ->  | C78: N/m
A80: Max Top Black Drop | B80: =IF(#REF!=1,84,60) -> 
A81: Max Bottom Black Drop | B81: =IF(#REF!=1,48,24) -> 

Sheet Tensioned_Large_Cosmopolitan
A1: TENSIONED LARGE COSMOPOLITAN ELECTROL
D2: Centimeters | F2: Note: cm will update inches, inches will not update cm
A3: Enter Viewing Area Height: | B3: 0 | C3: inches | D3: 0 | E3: cm | G3: =IF(B15 < 93,"Small_Curve",IF(AND(B15<145,B4<160),"Medium_Curve",IF(OR(B15>=145,B4>=160),"Large_Curve",0))) -> Small_Curve
A4: Enter Viewing Area Width: | B4: 0 | C4: inches | D4: 0 | E4: cm
A5: Enter Top Black Drop: | B5: =ROUND((D5/2.54)*4,0)/4 -> 12 | C5: inches | D5: 30.5 | E5: cm
A6: Enter Bottom Black Drop: | B6: =ROUND((D6/2.54)*4,0)/4 -> 2 | C6: inches | D6: 5 | E6: cm
A7: Material:
G8: 0
A11: "ALL THREE FIELDS TO THE RIGHT MUST BE GREEN" | B11: =IF(OR(B3=0,B4=0),"Enter VA",IF(G8=0,"SELECT FABRIC",IF(AND(B15>=60,B16>=99,B15<=192,B16<=211.75),IF(AND(B15>161,B16>192),"SEE DESIGN CENTER","Feasible"),"Not Feasible"))) -> Enter VA
A12: APPROX. HANGING WEIGHT | B12: =IF(OR(B3=0,B4=0),"Enter VA",IF(G8=0,"SELECT FABRIC",IF(B5<=B82,"TOP BLACK DROP OK","TOO MUCH TOP BLACK DROP"))) -> Enter VA
A13: =IF(OR(B3=0,B4=0),"Enter VA",IF(G8=0,"SELECT FABRIC",IF(AND(B15>60,B16>99,B15<=192,B5<=B82,B6<=B83,B16<=211.75),ROUNDUP(K37,0)&" LBS / "&ROUNDUP(K37*0.453592,0)&" KG","Not Feasible"))) -> Enter VA | B13: =IF(OR(B3=0,B4=0),"Enter VA",IF(G8=0,"SELECT FABRIC",IF(B6<=B83,"BTM BLACK DROP OK","TOO MUCH BTM BLACK DROP"))) -> Enter VA
A14: Table of Contents
A15: Total_Screen_Height | B15: =B3+B5+B6+3 -> 17
A16: Fabric Width | B16: =IF(G3="Small_Curve",B25,IF(G3="Medium_Curve",B40,IF(G3="Large_Curve",B61,0))) -> 4.5
A20: **** Equations for Small Curve Border *******
B21: =280.34-SQRT(280.34*280.34-0.25*B15*B15) -> 0.1288910125 | H21: FORMULAS | I21: DIMENSIONS
B22: =B21-ROUNDDOWN(B21,0) -> 0.1288910125 | H22: Enter Viewing Area Width | K22: =B4 -> 0
B23: =IF(B22>=0.875,1,IF(B22>=0.625,0.75,IF(B22>=0.375,0.5,IF(B22>=0.125,0.25,0)))) -> 0.25 | H23: Enter Viewing Area Height | K23: =B3 -> 0
A24: Small_Curve_Border | B24: =ROUNDDOWN(B21,0)+B23+2 -> 2.25 | H24: Enter Amount Black Drop | K24: =B5+B6 -> 14
A25: Small_Curve_Fabric_Width | B25: =(B24*2)+B4 -> 4.5 | H25: Enter Amount of Side Border | K25: =IF(G3="Small_Curve",B24,IF(G3="Medium_Curve",B39,IF(G3="Large_Curve",B60,""))) -> 2.25
A26: Square_Inches_Small_Curve | B26: =B25*B15 -> 76.5 | H26: Square Feet of Fabric | K26: =((K22+(K25*2))*(K23+K24+31)/144) -> 1.40625
A27: Fabric_Weight_oz/sq in. | B27: =28/9/144 -> 0.02160493827 | H27: Weight of Fabric | K27: =((K26/9) * 32)/16 -> 0.3125
A28: Fabric_Weight | B28: =B26*B27*0.0625 -> 0.1032986111 | C28: lbs. | H28: Weight of Slat | K28: =((K22+0.5+(K25*2))/12)*0.9435 -> 0.393125
A29: Slat_Weight | B29: =((B25+0.5)/12)*0.806 -> 0.3358333333 | C29: lbs. | G29: (0.806 / lbs. ft.) | H29: Weight of Case | K29: =(((K22+(K25*2)+8.5)/12)*1.95791231253)+(((K22+(K25*2)+8.5)/12)*2.5022633719) -> 4.831856991
A30: Total_Small_Curve_Weight | B30: =(B28+B29)*1.05 -> 0.4610885417 | C30: lbs. | H30: Weight of Roller | K30: =((K22+(K25*2)+2)/12)*2.19 -> 1.18625
A31: Roller Diameter | B31: =3.25 -> 3.25 | H31: Miscellanous Items | K31: 33
A32: Motor_Torque_Required_Small_Curve | B32: =(B31*25.4/2) * (B30/2.20462262) / 100 -> 0.08632511245 | C32: N/m
A33: Motor_Torque_Small_Curve | B33: =IF(B32 >= 10,20,IF(B32>6,10,IF(B32>3,6,3))) -> 3 | C33: N/m
A35: **** Equations for Medium Curve Border *******
B36: =512.5-SQRT(512.5*512.5-0.25*B15*B15)+1.75 -> 1.820492653
B37: =B36-ROUNDDOWN(B36,0) -> 0.8204926529 | I37: Total Weight | K37: =SUM(K27:K31) -> 39.72373199
B38: =IF(B37>=0.875,1,IF(B37>=0.625,0.75,IF(B37>=0.375,0.5,IF(B37>=0.125,0.25,0)))) -> 0.75
A39: Medium_Curve_Border | B39: =ROUNDDOWN(B36,0)+B38 -> 1.75
A40: Medium_Curve_Fabric_Width | B40: =(B39*2)+B4+2 -> 5.5
A41: Square_Inches_Medium_Curve | B41: =B40*B15 -> 93.5
A42: Fabric_Weight_oz/sq in. | B42: =28/9/144 -> 0.02160493827
A43: Fabric_Weight | B43: =B41*B42*0.0625 -> 0.126253858 | C43: lbs.
A44: Slat_Weight | B44: =((B40+0.5)/12)*0.806 -> 0.403 | C44: lbs. | G44: (0.806 / lbs. ft.)
A45: Total_Medium_Curve_Weight | B45: =(B43+B44)*1.05 -> 0.5557165509 | C45: lbs.
A46: Roller_Diameter | B46: 3.25
A47: Motor_Torque_Required_Medium_Curve | B47: =(B46*25.4/2) * (B45/2.20462262) / 100 -> 0.1040413921 | C47: N/m
A48: Motor_Torque_Medium_Curve | B48: =IF(B47 >= 10,20,IF(B47>6,10,IF(B47>3,6,3))) -> 3 | C48: N/m
A51: **** Equations for Large Top Curve Border *******
A52: y | B52: =B15*0.75 -> 12.75
A53: r | B53: 1175
A54: n | B54: =B52 * B52 -> 162.5625
A55: P | B55: =B53*B53 -> 1380625
A56: s | B56: =SQRT(B55-B54) -> 1174.930822
B57: =B53-B56 -> 0.06917756831
B58: =B57-ROUNDDOWN(B57,0) -> 0.06917756831
B59: =IF(B58>=0.875,1,IF(B58>=0.625,0.75,IF(B58>=0.375,0.5,IF(B58>=0.125,0.25,0)))) -> 0
A60: Large_Curve_Top_Border | B60: =ROUNDDOWN(B57,0)+B59+2 -> 2
A61: Large_Curve_Top_Width | B61: =(B60*2)+B4 -> 4
A62: Square_Inches_Large_Curve | B62: =B61*B15 -> 68
A63: Fabric_Weight_oz/sq in. | B63: =28/9/144 -> 0.02160493827
A64: Fabric_Weight | B64: =B62*B63*0.0625 -> 0.09182098765 | C64: lbs.
A65: Slat_Weight | B65: =((B61+0.5)/12)*0.806 -> 0.30225 | C65: lbs. | G65: (0.806 / lbs. ft.)
A66: Total_Large_Curve_Weight | B66: =(B64+B65)*1.05 -> 0.413774537 | C66: lbs.
A67: Roller_Diameter | B67: 3.25
A68: Motor_Torque_Required_Large_Curve | B68: =(B67*25.4/2) * (B66/2.20462262) / 100 -> 0.07746697263 | C68: N/m
A69: Motor_Torque_Large_Curve | B69: =IF(B68 >= 10,20,IF(B68>6,10,IF(B68>3,6,3))) -> 3 | C69: N/m
A72: Square_Inches_Non_Tensioned | B72: =B16*(B15-3) -> 63
A73: 3/8_Slat_Weight | B73: =(PI()*(0.1875*0.1875)*(B16+0.5))*0.284 -> 0.1568341958 | C73: lbs.
A74: Fabric_Weight_oz/sq in. | B74: =21/9/144 -> 0.0162037037
A75: Fabric_Weight | B75: =B72*B74*0.0625 -> 0.06380208333 | C75: lbs.
A76: Total_Non_Tens_Weight | B76: =(B73+B75)*1.05 -> 0.231668093 | C76: lbs.
A77: Aspect Ratio | B77: =B4/B3 -> 
A78: Roller Diameter | B78: =IF(AND(B16<=108,B77<1.45),3,3.25) -> 
A79: Motor_Torque_Required_N/m | B79: =(B78*25.4/2) * (B76/2.20462262) / 100 ->  | C79: N/m
A80: Motor_Torque_Non_Tensioned | B80: =IF(B79 >= 10,20,IF(B79>6,10,IF(B79>3,6,3))) ->  | C80: N/m
A82: Max Top Black Drop | B82: =IF(G8=1,84,60) -> 60
A83: Max Bottom Black Drop | B83: =IF(G8=1,48,24) -> 24

Sheet Large Cosmopolitan
A1: LARGE COSMOPOLITAN ELECTROL
D2: Centimeters | F2: Note: cm will update inches, inches will not update cm
A3: Enter Viewing Area Height: | B3: =ROUND((D3/2.54)*4,0)/4 -> 0 | C3: inches | D3: 0 | E3: cm | G3: =IF(B13 < 93,"Small_Curve",IF(AND(B13<145,B4<160),"Medium_Curve",IF(OR(B13>=145,B4>=160),"Large_Curve",0))) -> Small_Curve
A4: Enter Viewing Area Width: | B4: =ROUND((D4/2.54)*4,0)/4 -> 0 | C4: inches | D4: 0 | E4: cm
A5: Enter Top Black Drop: | B5: =ROUND((D5/2.54)*4,0)/4 -> 2 | C5: inches | D5: 5 | E5: cm
A6: Enter Border Width: | B6: =ROUND((D6/2.54)*4,0)/4 -> 2 | C6: inches | D6: 5 | E6: cm
A7: Enter Bottom Black Drop: (not including pocket) | B7: =ROUND((D7/2.54)*4,0)/4 -> 0 | C7: inches | D7: 0 | E7: cm
A9: =IF(OR(B3=0,B4=0),"Enter VA",IF(AND(B13>60,B14>99,B13<=196.25,B14<=192,B6<=6),"Feasible","Not Feasible")) -> Enter VA
A10: =IF(OR(B3=0,B4=0),"Enter VA","APPROX. HANGING WEIGHT") -> Enter VA
A11: =IF(OR(B3=0,B4=0),"Enter VA",IF(AND(B13>60,B14>99,B13<=192,B14<=192,B6<=6),ROUNDUP(J34,0)&" LBS / "&ROUNDUP((J34*0.453592),0)&" KG","Not Feasible")) -> Enter VA
A12: Table of Contents
A13: Total_Screen_Height | B13: =B3+B5+B7 -> 2
A14: Fabric Width | B14: =B4+(B6*2) -> 4
A18: **** Equations for Small Curve Border *******
B19: =280.34-SQRT(280.34*280.34-0.25*B13*B13) -> 0.001783554222 | H19: DIMENSIONS
B20: =B19-ROUNDDOWN(B19,0) -> 0.001783554222 | H20: Enter Viewing Area Width | J20: =B4 -> 0
B21: =IF(B20>=0.875,1,IF(B20>=0.625,0.75,IF(B20>=0.375,0.5,IF(B20>=0.125,0.25,0)))) -> 0 | H21: Enter Viewing Area Height | J21: =B3 -> 0
A22: Small_Curve_Border | B22: =ROUNDDOWN(B19,0)+B21+2 -> 2 | H22: Enter Amount Black Drop | J22: =B5 -> 2
A23: Small_Curve_Fabric_Width | B23: =(B22*2)+B4 -> 4 | H23: Enter Amount of Side Border | J23: =B6 -> 2
A24: Square_Inches_Small_Curve | B24: =B23*B13 -> 8 | H24: Enter Amount of Bottom Drop | J24: =B7 -> 0
A25: Fabric_Weight_oz/sq in. | B25: =28/9/144 -> 0.02160493827 | H25: Square Feet of Fabric | J25: =((J20+(J23*2))*(J21+J22+32+2+J24)/144) -> 1
A26: Fabric_Weight | B26: =B24*B25*0.0625 -> 0.01080246914 | C26: lbs. | H26: Weight of Fabric | J26: =((J25/9) * 32)/16 -> 0.2222222222
A27: Slat_Weight | B27: =((B23+0.5)/12)*0.806 -> 0.30225 | C27: lbs. | G27: (0.806 / lbs. ft.) | H27: Weight of Slat | J27: =((J20+0.5+(J23*2))/12)*0.3565 -> 0.1336875
A28: Total_Small_Curve_Weight | B28: =(B26+B27)*1.05 -> 0.3287050926 | C28: lbs. | H28: Weight of Case | J28: =(((J20+(J23*2)+8.5)/12)*1.95791231253)+(((J20+(J23*2)+8.5)/12)*2.5022633719) -> 4.646016338
A29: Roller Diameter | B29: =3.25 -> 3.25 | H29: Weight of Roller | J29: =((J20+(J23*2)+2)/12)*2.19 -> 1.095
A30: Motor_Torque_Required_Small_Curve | B30: =(B29*25.4/2) * (B28/2.20462262) / 100 -> 0.0615402499 | C30: N/m | H30: Miscellanous Items | J30: 33.65
A31: Motor_Torque_Small_Curve | B31: =IF(B30 >= 10,20,IF(B30>6,10,IF(B30>3,6,3))) -> 3 | C31: N/m | H31: Weight of Ironing Board | J31: =((J20+(J23*2))/12)*0.1365 -> 0.0455
A33: **** Equations for Medium Curve Border *******
B34: =512.5-SQRT(512.5*512.5-0.25*B13*B13)+1.75 -> 1.750975611 | H34: Total Weight | J34: =SUM(J26:J32) -> 39.79242606
B35: =B34-ROUNDDOWN(B34,0) -> 0.7509756107
B36: =IF(B35>=0.875,1,IF(B35>=0.625,0.75,IF(B35>=0.375,0.5,IF(B35>=0.125,0.25,0)))) -> 0.75
A37: Medium_Curve_Border | B37: =ROUNDDOWN(B34,0)+B36 -> 1.75
A38: Medium_Curve_Fabric_Width | B38: =(B37*2)+B4+2 -> 5.5
A39: Square_Inches_Medium_Curve | B39: =B38*B13 -> 11
A40: Fabric_Weight_oz/sq in. | B40: =28/9/144 -> 0.02160493827
A41: Fabric_Weight | B41: =B39*B40*0.0625 -> 0.01485339506 | C41: lbs.
A42: Slat_Weight | B42: =((B38+0.5)/12)*0.806 -> 0.403 | C42: lbs. | G42: (0.806 / lbs. ft.)
A43: Total_Medium_Curve_Weight | B43: =(B41+B42)*1.05 -> 0.4387460648 | C43: lbs.
A44: Roller_Diameter | B44: 3.25
A45: Motor_Torque_Required_Medium_Curve | B45: =(B44*25.4/2) * (B43/2.20462262) / 100 -> 0.08214214832 | C45: N/m
A46: Motor_Torque_Medium_Curve | B46: =IF(B45 >= 10,20,IF(B45>6,10,IF(B45>3,6,3))) -> 3 | C46: N/m
A49: **** Equations for Large Top Curve Border *******
A50: y | B50: =B13*0.75 -> 1.5
A51: r | B51: 1175
A52: n | B52: =B50 * B50 -> 2.25
A53: P | B53: =B51*B51 -> 1380625
A54: s | B54: =SQRT(B53-B52) -> 1174.999043
B55: =B51-B54 -> 0.0009574471985
B56: =B55-ROUNDDOWN(B55,0) -> 0.0009574471985
B57: =IF(B56>=0.875,1,IF(B56>=0.625,0.75,IF(B56>=0.375,0.5,IF(B56>=0.125,0.25,0)))) -> 0
A58: Large_Curve_Top_Border | B58: =ROUNDDOWN(B55,0)+B57+2 -> 2
A59: Large_Curve_Top_Width | B59: =(B58*2)+B4 -> 4
A60: Square_Inches_Large_Curve | B60: =B59*B13 -> 8
A61: Fabric_Weight_oz/sq in. | B61: =28/9/144 -> 0.02160493827
A62: Fabric_Weight | B62: =B60*B61*0.0625 -> 0.01080246914 | C62: lbs.
A63: Slat_Weight | B63: =((B59+0.5)/12)*0.806 -> 0.30225 | C63: lbs. | G63: (0.806 / lbs. ft.)
A64: Total_Large_Curve_Weight | B64: =(B62+B63)*1.05 -> 0.3287050926 | C64: lbs.
A65: Roller_Diameter | B65: 3.25
A66: Motor_Torque_Required_Large_Curve | B66: =(B65*25.4/2) * (B64/2.20462262) / 100 -> 0.0615402499 | C66: N/m
A67: Motor_Torque_Large_Curve | B67: =IF(B66 >= 10,20,IF(B66>6,10,IF(B66>3,6,3))) -> 3 | C67: N/m
A70: Square_Inches_Non_Tensioned | B70: =B14*(B13-3) -> -4
A71: 3/8_Slat_Weight | B71: =(PI()*(0.1875*0.1875)*(B14+0.5))*0.284 -> 0.1411507762 | C71: lbs.
A72: Fabric_Weight_oz/sq in. | B72: =21/9/144 -> 0.0162037037
A73: Fabric_Weight | B73: =B70*B72*0.0625 -> -0.004050925926 | C73: lbs.
A74: Total_Non_Tens_Weight | B74: =(B71+B73)*1.05 -> 0.1439548428 | C74: lbs.
A75: Aspect Ratio | B75: =B4/B3 -> 
A76: Roller Diameter | B76: =IF(AND(B14<=108,B75<1.45),3,3.25) -> 
A77: Motor_Torque_Required_N/m | B77: =(B76*25.4/2) * (B74/2.20462262) / 100 ->  | C77: N/m
A78: Motor_Torque_Non_Tensioned | B78: =IF(B77 >= 10,20,IF(B77>6,10,IF(B77>3,6,3))) ->  | C78: N/m
A80: Max Top Black Drop | B80: =IF(#REF!=1,84,60) -> 
A81: Max Bottom Black Drop | B81: =IF(#REF!=1,48,24) -> 

Sheet Tensioned_Large_Advantage_Delux
A1: Tensioned Advantage (over 14' W with Closure Door)
D2: Centimeters | F2: Note: cm will update inches, inches will not update cm
A3: Enter Viewing Area Height: | B3: 0 | C3: inches | D3: 0 | E3: cm | G3: =IF(B15 < 93,"Small_Curve",IF(AND(B15<145,B4<160),"Medium_Curve",IF(OR(B15>=145,B4>=160),"Large_Curve",0))) -> Small_Curve
A4: Enter Viewing Area Width: | B4: 0 | C4: inches | D4: 0 | E4: cm
A5: Enter Top Black Drop: | B5: =ROUND((D5/2.54)*4,0)/4 -> 12 | C5: inches | D5: 30.5 | E5: cm
A6: Enter Bottom Black Drop: | B6: =ROUND((D6/2.54)*4,0)/4 -> 2 | C6: inches | D6: 5 | E6: cm
A7: Material:
G8: 0
A11: "ALL THREE FIELDS TO THE RIGHT MUST BE GREEN" | B11: =IF(OR(B3=0,B4=0),"Enter VA",IF(G8=0,"SELECT FABRIC",IF(AND(B15>60,B16>100,B15<=215),IF(B16<=285.75,IF(OR(B15>195,B4>260),"SEE DESIGN CENTER",IF(AND(B15>169,B16>192),"SEE DESIGN CENTER","Feasible")),"Not Feasible"),"Not Feasible"))) -> Enter VA | I11: Test Calculations:
A12: APPROX. HANGING WEIGHT | B12: =IF(OR(B3=0,B4=0),"Enter VA",IF(G8=0,"SELECT FABRIC",IF(B5<=B82,"TOP BLACK DROP OK","TOO MUCH TOP BLACK DROP"))) -> Enter VA | I12: Roller Diameter: | J12: =IF(AND(B4<=260,(((B3+B5)*(B4+4))/144<350)),5.75, 7) -> 5.75
A13: =IF(OR(B3=0,B4=0),"Enter VA",IF(G8=0,"SELECT FABRIC",IF(OR(B11="Not Feasible",B12="TOO MUCH TOP BLACK DROP",B13="TOO MUCH BTM BLACK DROP"),"Not Feasible",ROUNDUP(L40,0)&" LBS / "&ROUNDUP(L40*0.453592,0)&" KG"))) -> Enter VA | B13: =IF(OR(B3=0,B4=0),"Enter VA",IF(G8=0,"SELECT FABRIC",IF(B6<=B83,"BTM BLACK DROP OK","TOO MUCH BTM BLACK DROP"))) -> Enter VA | I13: Roller Asm Parts | J13: =IF(AND(B4<=260,(((B3+B5)*(B4+4))/144<350)),AB73,AN73) -> 11.9922
A14: Table of Contents | I14: 7" Roller weight | J14: =(((L22+(L26*2))+4.25)/12)*4.02 -> 2.93125
A15: Total_Screen_Height | B15: =B3+B5+B6+3 -> 17 | I15: 5.75" Roller Weight | J15: =(((L22+(L26*2))+4.25)/12)*2.536 -> 1.849166667
A16: Fabric Width | B16: =IF(G3="Small_Curve",B25,IF(G3="Medium_Curve",B40,IF(G3="Large_Curve",B61,0))) -> 4.5
A20: **** Equations for Small Curve Border ******* | I20: Weight of 5.75" & 7" Diameter Roller Screen Calculator
B21: =280.34-SQRT(280.34*280.34-0.25*B15*B15) -> 0.1288910125 | I21: FORMULAS | J21: DIMENSIONS
B22: =B21-ROUNDDOWN(B21,0) -> 0.1288910125 | I22: Viewing Area Width | J22: Enter Viewing Area Width | L22: =B4 -> 0 | S22: Screen Housing Miscellanous Items | Y22: 5.75" Roller Assembly Miscellanous Items | AE22: Closing Door Assembly Miscellanous Items | AK22: 7.00" Roller Assembly Miscellanous Items
B23: =IF(B22>=0.875,1,IF(B22>=0.625,0.75,IF(B22>=0.375,0.5,IF(B22>=0.125,0.25,0)))) -> 0.25 | I23: Viewing Area Height | J23: Enter Viewing Area Height | L23: =B3 -> 0 | S23: Part | T23: Weight | U23: Qty. | V23: Total: | Y23: Part | Z23: Weight | AA23: Qty. | AB23: Total: | AE23: Part | AF23: Weight | AG23: Qty. | AH23: Total: | AK23: Part | AL23: Weight | AM23: Qty. | AN23: Total:
A24: Small_Curve_Border | B24: =ROUNDDOWN(B21,0)+B23+2 -> 2.25 | I24: Enter Amount Black Drop | J24: Enter Amount Black Drop | L24: =B5+B6 -> 14 | S24: EndCap Bolt #35907 | T24: 0.017 | U24: 8 | V24: =U24*T24 -> 0.136 | W24: lbs. | Y24: Roller Hub #73525 | Z24: 1.1238 | AA24: 1 | AB24: =AA24*Z24 -> 1.1238 | AC24: lbs. | AE24: Door Bracket #23336 | AF24: 0.1207 | AG24: 5 | AH24: =AG24*AF24 -> 0.6035 | AI24: lbs. | AK24: Roller Hub #95515 | AL24: 1.3221 | AM24: 1 | AN24: =AM24*AL24 -> 1.3221 | AO24: lbs.
A25: Small_Curve_Fabric_Width | B25: =(B24*2)+B4 -> 4.5 | I25: Enter Bottom Fabric Width | J25: Enter Bottom Fabric Width | L25: =B4+L26 -> 2.25 | S25: EndCap #35885 | T25: 6.4264 | U25: 1 | V25: 6.4264 | W25: lbs. | Y25: Screw #89592 | Z25: 0.0036 | AA25: 8 | AB25: =AA25*Z25 -> 0.0288 | AC25: lbs. | AE25: Hex Bolt #24270 | AF25: 0.0898 | AG25: 5 | AH25: =AG25*AF25 -> 0.449 | AI25: lbs. | AK25: Screw #89592 | AL25: 0.0036 | AM25: 8 | AN25: =AM25*AL25 -> 0.0288 | AO25: lbs.
A26: Square_Inches_Small_Curve | B26: =B25*B15 -> 76.5 | I26: Enter Amount of Side Border | J26: Enter Amount of Side Border | L26: =IF(G3="Small_Curve",B24,IF(G3="Medium_Curve",B39,IF(G3="Large_Curve",(B60/1.9),""))) -> 2.25 | S26: Stud #6167 | T26: 0.0077 | U26: 6 | V26: 0.0462 | W26: lbs. | Y26: Mtr Adaptor #81649 | Z26: 4.8446 | AA26: 1 | AB26: =AA26*Z26 -> 4.8446 | AC26: lbs. | AE26: Door Bracket #35910 | AF26: 0.3183 | AG26: 1 | AH26: 0.3183 | AI26: lbs. | AK26: Mtr Adaptor #88799 | AL26: 5.42 | AM26: 1 | AN26: =AM26*AL26 -> 5.42 | AO26: lbs.
A27: Fabric_Weight_oz/sq in. | B27: =28/9/144 -> 0.02160493827 | I27: Square Feet of Fabric | L27: =((L22+(L26*2))*(L23+L24+28+4.5)/144) -> 1.453125 | M27: sq. ft. | S27: Endcap #35883 | T27: 5.9645 | U27: 1 | V27: 5.9645 | W27: lbs. | Y27: Screen Mtr Asm #39875 | Z27: 5.995 | AA27: 1 | AB27: =AA27*Z27 -> 5.995 | AC27: lbs. | AE27: Nut Clinch #4372 | AF27: 0.0061 | AG27: 2 | AH27: 0.0122 | AI27: lbs. | AK27: Screen Mtr Asm #39875 | AL27: 5.554 | AM27: 1 | AN27: =AM27*AL27 -> 5.554 | AO27: lbs.
A28: Fabric_Weight | B28: =B26*B27*0.0625 -> 0.1032986111 | C28: lbs. | I28: Weight of Fabric | L28: =((L27/9) * 26)/16 -> 0.2623697917 | M28: lbs. | S28: J-Box Cover #35915 | T28: 0.1406 | U28: 1 | V28: 0.1406 | W28: lbs. | AB28: =AA28*Z28 -> 0 | AC28: lbs. | AE28: Screw Hex Cap #35913 | AF28: 0.02 | AG28: 2 | AH28: 0.04 | AI28: lbs. | AN28: =AM28*AL28 -> 0 | AO28: lbs.
A29: Slat_Weight | B29: =((B25+0.5)/12)*0.806 -> 0.3358333333 | C29: lbs. | G29: (0.806 / lbs. ft.) | I29: Weight of Slat | L29: =((L25+0.5)/12) * 0.9435 -> 0.21621875 | M29: lbs. | N29: 0.9435 lbs. / ft. | S29: J-Box #35914 | T29: 0.4152 | U29: 1 | V29: 0.4152 | W29: lbs. | AB29: 0 | AC29: lbs. | AE29: Door Slide #24269 | AF29: 0.0219 | AG29: 5 | AH29: 0.1095 | AI29: lbs. | AN29: 0 | AO29: lbs.
A30: Total_Small_Curve_Weight | B30: =(B28+B29)*1.05 -> 0.4610885417 | C30: lbs. | I30: Weight of Case | L30: =(((L22+(L26*2))+17.25)/12)*8.9606 -> 16.2410875 | M30: lbs. | N30: 8.961 lbs. / ft. | S30: Pin End Brkt #35917 | T30: 2.5829 | U30: 1 | V30: 2.5829 | W30: lbs. | AB30: 0 | AC30: lbs. | AE30: Screw Mach #77459 | AF30: 0.009 | AG30: 10 | AH30: 0.09 | AI30: lbs. | AN30: 0 | AO30: lbs.
A31: Roller Diameter | B31: =3.25 -> 3.25 | I31: Weight of Roller | L31: =IF(AND(B4<=260,(((B3+B5)*(B4+4))/144<350)),(((L22+(L26*2))+4.25)/12)*2.536,(((L22+(L26*2))+4.25)/12)*4.02) -> 1.849166667 | M31: lbs. | N31: 2.536 lbs. / ft. or 4.02 | S31: LockWasher #44733 | T31: 0.006 | U31: 2 | V31: 0.012 | W31: lbs. | AB31: 0 | AC31: lbs. | AE31: Door Mtr Bracket #35886 | AF31: 0.222 | AG31: 1 | AH31: 0.222 | AI31: lbs. | AN31: 0 | AO31: lbs.
A32: Motor_Torque_Required_Small_Curve | B32: =(B31*25.4/2) * (B30/2.20462262) / 100 -> 0.08632511245 | C32: N/m | I32: Weight of Access Door | L32: =(((L22+(L26*2))+17)/12)*1.548 -> 2.7735 | M32: lbs. | N32: 1.548 lbs. / ft. | S32: Hex Bolt #44731 | T32: 0.047 | U32: 2 | V32: 0.094 | W32: lbs. | AB32: 0 | AC32: lbs. | AE32: Door Pin Bracket #35887 | AF32: 0.224 | AG32: 1 | AH32: 0.224 | AI32: lbs. | AN32: 0 | AO32: lbs.
A33: Motor_Torque_Small_Curve | B33: =IF(B32 >= 10,20,IF(B32>6,10,IF(B32>3,6,3))) -> 3 | C33: N/m | I33: Weight of Spring Door | L33: =(((L22+(L26*2))+17)/12)*0.562 -> 1.006916667 | M33: lbs. | N33: 0.562 lbs. / ft. | S33: Hex Bolt #35905 | T33: 0.0278 | U33: 10 | V33: 0.278 | W33: lbs. | AB33: 0 | AC33: lbs. | AE33: Screw Mach #87059 | AF33: 0.0051 | AG33: 15 | AH33: 0.0765 | AI33: lbs. | AN33: 0 | AO33: lbs.
I34: Spring Door Parts / Hardware | L34: =AH73 -> 20.4905 | M34: lbs. | S34: Bearing #83107 | T34: 0.2046 | U34: 1 | V34: 0.2046 | W34: lbs. | AB34: 0 | AC34: lbs. | AE34: Square Nut #35903 | AF34: 0.02 | AG34: 1 | AH34: 0.02 | AI34: lbs. | AN34: 0 | AO34: lbs.
A35: **** Equations for Medium Curve Border ******* | I35: Screen Parts / Hardware | L35: =V73 -> 31.4205 | M35: lbs. | S35: Square Nut #35903 | T35: 0.02 | U35: 9 | V35: 0.18 | W35: lbs. | AB35: 0 | AC35: lbs. | AE35: Washer Lock #95073 | AF35: 0.004 | AG35: 2 | AH35: 0.008 | AI35: lbs. | AN35: 0 | AO35: lbs.
B36: =512.5-SQRT(512.5*512.5-0.25*B15*B15)+1.75 -> 1.820492653 | I36: Roller Asm Parts | L36: =IF(AND(B4<=260,(((B3+B5)*(B4+4))/144<350)),AB73,AN73) -> 11.9922 | M36: lbs. | S36: LockWasher #95073 | T36: 0.004 | U36: 10 | V36: 0.04 | W36: lbs. | AB36: 0 | AC36: lbs. | AE36: Screw #72537 | AF36: 0.006 | AG36: 1 | AH36: 0.006 | AI36: lbs. | AN36: 0 | AO36: lbs.
B37: =B36-ROUNDDOWN(B36,0) -> 0.8204926529 | M37: lbs. | S37: Motor Bracket #35916 | T37: 3.0455 | U37: 1 | V37: 3.0455 | W37: lbs. | AB37: 0 | AC37: lbs. | AE37: Door Bracket #11317 | AF37: 0.0451 | AG37: 1 | AH37: 0.0451 | AI37: lbs. | AN37: 0 | AO37: lbs.
B38: =IF(B37>=0.875,1,IF(B37>=0.625,0.75,IF(B37>=0.375,0.5,IF(B37>=0.125,0.25,0)))) -> 0.75 | S38: Motor Adaptor Brkt #37866 | T38: 0.2434 | U38: 1 | V38: 0.2434 | W38: lbs. | AB38: 0 | AC38: lbs. | AE38: Nut Clinch #11321 | AF38: 0.001 | AG38: 4 | AH38: 0.004 | AI38: lbs. | AN38: 0 | AO38: lbs.
A39: Medium_Curve_Border | B39: =ROUNDDOWN(B36,0)+B38 -> 1.75 | S39: Hex Bolt #38739 | T39: 0.0368 | U39: 2 | V39: 0.0736 | W39: lbs. | AB39: 0 | AC39: lbs. | AE39: Door Bracket #11316 | AF39: 0.0631 | AG39: 1 | AH39: 0.0631 | AI39: lbs. | AN39: 0 | AO39: lbs.
A40: Medium_Curve_Fabric_Width | B40: =(B39*2)+B4+2 -> 5.5 | J40: Total Weight | L40: =SUM(L28:L38)*1.05 -> 90.56508234 | S40: Nylon Lock Nut #44753 | T40: 0.014 | U40: 2 | V40: 0.028 | W40: lbs. | AB40: 0 | AC40: lbs. | AE40: Screw #11319 | AF40: 0.0019 | AG40: 4 | AH40: 0.0076 | AI40: lbs. | AN40: 0 | AO40: lbs.
A41: Square_Inches_Medium_Curve | B41: =B40*B15 -> 93.5 | S41: Door Bracket #35888 | T41: 0.2004 | U41: 2 | V41: 0.4008 | W41: lbs. | AB41: 0 | AC41: lbs. | AE41: Clamp #92301 | AF41: 0.0025 | AG41: 5 | AH41: 0.0125 | AI41: lbs. | AN41: 0 | AO41: lbs.
A42: Fabric_Weight_oz/sq in. | B42: =28/9/144 -> 0.02160493827 | S42: Nut Clinch #5013 | T42: 0.0146 | U42: 4 | V42: 0.0584 | W42: lbs. | AB42: 0 | AC42: lbs. | AE42: Screw #52703 | AF42: 0.0021 | AG42: 5 | AH42: 0.0105 | AI42: lbs. | AN42: 0 | AO42: lbs.
A43: Fabric_Weight | B43: =B41*B42*0.0625 -> 0.126253858 | C43: lbs. | S43: J-Box Cover #35906 | T43: 0.1188 | U43: 1 | V43: 0.1188 | W43: lbs. | AE43: Pin Hub #80764 | AF43: 0.0232 | AG43: 1 | AH43: 0.0232 | AI43: lbs.
A44: Slat_Weight | B44: =((B40+0.5)/12)*0.806 -> 0.403 | C44: lbs. | G44: (0.806 / lbs. ft.) | S44: Strain Relief #95443 | T44: 0.0009 | U44: 1 | V44: 0.0009 | W44: lbs. | AE44: Pin Cotter #97290 | AF44: 0.0063 | AG44: 1 | AH44: 0.0063 | AI44: lbs.
A45: Total_Medium_Curve_Weight | B45: =(B43+B44)*1.05 -> 0.5557165509 | C45: lbs. | S45: Door Bracket #35889 | T45: 0.611 | U45: 2 | V45: 1.222 | W45: lbs. | AE45: Tube Steel #32258 | AF45: 10.8045 | AG45: 1 | AH45: 10.8045 | AI45: lbs.
A46: Roller_Diameter | B46: 3.25 | S46: Hex Bolt #44731 | T46: 0.047 | U46: 4 | V46: 0.188 | W46: lbs. | AE46: Alum. Bar #33300 | AF46: 1.267 | AG46: 1 | AH46: 1.267 | AI46: lbs.
A47: Motor_Torque_Required_Medium_Curve | B47: =(B46*25.4/2) * (B45/2.20462262) / 100 -> 0.1040413921 | C47: N/m | S47: Washer #44842 | T47: 0.0106 | U47: 4 | V47: 0.0424 | W47: lbs. | AE47: Fabric Strip #69186 | AF47: 2.9 | AG47: 1 | AH47: 2.9 | AI47: lbs.
A48: Motor_Torque_Medium_Curve | B48: =IF(B47 >= 10,20,IF(B47>6,10,IF(B47>3,6,3))) -> 3 | C48: N/m | S48: Screw #87059 | T48: 0.0051 | U48: 6 | V48: 0.0306 | W48: lbs. | AE48: Roll Pin #72567 | AF48: 0.0002 | AG48: 2 | AH48: 0.0004 | AI48: lbs.
S49: Screw #94082 | T49: 0.003 | U49: 6 | V49: 0.018 | W49: lbs. | AE49: Drive Wheel #99621 | AF49: 0.0573 | AG49: 1 | AH49: 0.0573 | AI49: lbs.
S50: Keps Nut #80874 | T50: 0.008 | U50: 6 | V50: 0.048 | W50: lbs. | AE50: Motor Asm | AF50: 3.11 | AG50: 1 | AH50: 3.11 | AI50: lbs.
A51: **** Equations for Large Top Curve Border ******* | S51: Door Hinge #75846 | T51: 0.0822 | U51: 7 | V51: 0.5754 | W51: lbs. | AH51: 0 | AI51: lbs.
A52: y | B52: =B15*0.75 -> 12.75 | S52: Screw #72537 | T52: 0.006 | U52: 15 | V52: 0.09 | W52: lbs. | AH52: 0 | AI52: lbs.
A53: r | B53: 1175 | S53: Screw #52703 | T53: 0.002 | U53: 14 | V53: 0.028 | W53: lbs. | AH53: 0 | AI53: lbs.
A54: n | B54: =B52 * B52 -> 162.5625 | S54: Bracket Hanger #35882 | T54: 0.9472 | U54: 7 | V54: 6.6304 | W54: lbs. | AH54: 0 | AI54: lbs.
A55: P | B55: =B53*B53 -> 1380625 | S55: Bolt Carriage #38040 | T55: 0.065 | U55: 14 | V55: 0.91 | W55: lbs.
A56: s | B56: =SQRT(B55-B54) -> 1174.930822 | S56: Hex Nut #38041 | T56: 0.031 | U56: 14 | V56: 0.434 | W56: lbs.
B57: =B53-B56 -> 0.06917756831 | S57: Washer #44842 | T57: 0.0106 | U57: 14 | V57: 0.1484 | W57: lbs.
B58: =B57-ROUNDDOWN(B57,0) -> 0.06917756831 | S58: Door Bracket #35910 | T58: 0.3183 | U58: 1 | V58: 0.3183 | W58: lbs.
B59: =IF(B58>=0.875,1,IF(B58>=0.625,0.75,IF(B58>=0.375,0.5,IF(B58>=0.125,0.25,0)))) -> 0 | S59: Nut Clinch #4372 | T59: 0.0061 | U59: 2 | V59: 0.0122 | W59: lbs.
A60: Large_Curve_Top_Border | B60: =ROUNDDOWN(B57,0)+B59+2 -> 2 | S60: Screw Hex Cap #35913 | T60: 0.02 | U60: 2 | V60: 0.04 | W60: lbs.
A61: Large_Curve_Top_Width | B61: =(B60*2)+B4 -> 4 | S61: Slat Cap #97788 | T61: 0.0299 | U61: 2 | V61: 0.0598 | W61: lbs.
A62: Square_Inches_Large_Curve | B62: =B61*B15 -> 68 | S62: Hex Bolt #33621 | T62: 0.0231 | U62: 2 | V62: 0.0462 | W62: lbs.
A63: Fabric_Weight_oz/sq in. | B63: =28/9/144 -> 0.02160493827 | S63: Adj. Tube #98215 | T63: 0.0348 | U63: 2 | V63: 0.0696 | W63: lbs.
A64: Fabric_Weight | B64: =B62*B63*0.0625 -> 0.09182098765 | C64: lbs. | S64: Screw #44839 | T64: 0.003 | U64: 4 | V64: =U64*T64 -> 0.012 | W64: lbs.
A65: Slat_Weight | B65: =((B61+0.5)/12)*0.806 -> 0.30225 | C65: lbs. | G65: (0.806 / lbs. ft.) | S65: Spring #81707 | T65: 0.0037 | U65: 2 | V65: =U65*T65 -> 0.0074 | W65: lbs.
A66: Total_Large_Curve_Weight | B66: =(B64+B65)*1.05 -> 0.413774537 | C66: lbs. | V66: =U66*T66 -> 0 | W66: lbs.
A67: Roller_Diameter | B67: 3.25 | V67: 0 | W67: lbs.
A68: Motor_Torque_Required_Large_Curve | B68: =(B67*25.4/2) * (B66/2.20462262) / 100 -> 0.07746697263 | C68: N/m | V68: 0 | W68: lbs.
A69: Motor_Torque_Large_Curve | B69: =IF(B68 >= 10,20,IF(B68>6,10,IF(B68>3,6,3))) -> 3 | C69: N/m | V69: 0 | W69: lbs.
V70: 0 | W70: lbs.
V71: 0 | W71: lbs.
A72: Square_Inches_Non_Tensioned | B72: =B16*(B15-3) -> 63
A73: 3/8_Slat_Weight | B73: =(PI()*(0.1875*0.1875)*(B16+0.5))*0.284 -> 0.1568341958 | C73: lbs. | T73: Total: | V73: =SUM(V24:V70) -> 31.4205 | Z73: Total: | AB73: =SUM(AB24:AB66) -> 11.9922 | AF73: Total: | AH73: =SUM(AH24:AH68) -> 20.4905 | AL73: Total: | AN73: =SUM(AN24:AN66) -> 12.3249
A74: Fabric_Weight_oz/sq in. | B74: =21/9/144 -> 0.0162037037
A75: Fabric_Weight | B75: =B72*B74*0.0625 -> 0.06380208333 | C75: lbs.
A76: Total_Non_Tens_Weight | B76: =(B73+B75)*1.05 -> 0.231668093 | C76: lbs.
A77: Aspect Ratio | B77: =B4/B3 -> 
A78: Roller Diameter | B78: =IF(AND(B16<=108,B77<1.45),3,3.25) -> 
A79: Motor_Torque_Required_N/m | B79: =(B78*25.4/2) * (B76/2.20462262) / 100 ->  | C79: N/m
A80: Motor_Torque_Non_Tensioned | B80: =IF(B79 >= 10,20,IF(B79>6,10,IF(B79>3,6,3))) ->  | C80: N/m
A82: Max Top Black Drop | B82: =IF(G8=1,84,60) -> 60
A83: Max Bottom Black Drop | B83: =IF(G8=1,48,24) -> 24

Sheet Large_Advantage_Deluxe
A1: Advantage (over 14' W with Closure Door)
D2: Centimeters | F2: Note: cm will update inches, inches will not update cm
A3: Enter Viewing Area Height: | B3: 0 | C3: inches | D3: 0 | E3: cm | G3: =IF(B13 < 93,"Small_Curve",IF(AND(B13<145,B4<160),"Medium_Curve",IF(OR(B13>=145,B4>=160),"Large_Curve",0))) -> Small_Curve
A4: Enter Viewing Area Width: | B4: 0 | C4: inches | D4: 0 | E4: cm
A5: Enter Top Black Drop: | B5: 2 | C5: inches | D5: 5 | E5: cm
A6: Enter Border Width: | B6: =ROUND((D6/2.54)*4,0)/4 -> 2 | C6: inches | D6: 5 | E6: cm
A7: Enter Bottom Black Drop: (not including pocket) | B7: =ROUND((D7/2.54)*4,0)/4 -> 0 | C7: inches | D7: 0 | E7: cm
A9: =IF(OR(B3=0,B4=0),"Enter VA",IF(AND(B6<=B6,B16>=264,B16<=288,B15<=216),"Feasible",IF(AND(B6<=6,B16>=100,B16<=264,B15>=60,B15<=264.25),"Feasible","Not Feasible"))) -> Enter VA
A10: =IF(OR(B3=0,B4=0),"Enter VA","APPROX. HANGING WEIGHT") -> Enter VA
A11: =IF(OR(B3=0,B4=0),"Enter VA",IF(AND(B6<=6,B16>=264,B16<=288,B15<=216),ROUNDUP(K35,0)&" LBS / "&ROUNDUP(K35*0.453592,0)&" KG",IF(AND(B6<=6,B16>=100,B16<=264,B15>=60,B15<=264),ROUNDUP(K35,0)&" LBS / "&ROUNDUP(K35*0.453592,0)&" KG","Not Feasible"))) -> Enter VA
A12: Table of Contents
A15: Total_Screen_Height | B15: =B3+B5+B7 -> 2
A16: Fabric Width | B16: =B4+(B6*2) -> 4
H17: FORMULAS | I17: DIMENSIONS
A18: **** Equations for Small Curve Border ******* | H18: Viewing Area Width | I18: Enter Viewing Area Width | K18: =B4 -> 0 | R18: Screen Housing Miscellanous Items | X18: 5.75" Roller Assembly Miscellanous Items | AD18: Closing Door Assembly Miscellanous Items | AI18: 7.00" Roller Assembly Miscellanous Items
B19: =280.34-SQRT(280.34*280.34-0.25*B13*B13) -> 0 | H19: Viewing Area Height | I19: Enter Viewing Area Height | K19: =B3 -> 0 | R19: Part | S19: Weight | T19: Qty. | U19: Total: | X19: Part | Y19: Weight | Z19: Qty. | AA19: Total: | AD19: Part | AE19: Weight | AF19: Qty. | AG19: Total: | AI19: Part | AJ19: Weight | AK19: Qty. | AL19: Total:
B20: =B19-ROUNDDOWN(B19,0) -> 0 | H20: Enter Amount Black Drop | I20: Enter Amount Black Drop | K20: =B5+B7 -> 2 | R20: EndCap Bolt #35907 | S20: 0.017 | T20: 8 | U20: =T20*S20 -> 0.136 | V20: lbs. | X20: Roller Hub #73525 | Y20: 1.1238 | Z20: 1 | AA20: =Z20*Y20 -> 1.1238 | AB20: lbs. | AD20: Door Bracket #23336 | AE20: 0.1207 | AF20: 5 | AG20: =AF20*AE20 -> 0.6035 | AH20: lbs. | AI20: Roller Hub #95515 | AJ20: 1.3221 | AK20: 1 | AL20: =AK20*AJ20 -> 1.3221 | AM20: lbs.
B21: =IF(B20>=0.875,1,IF(B20>=0.625,0.75,IF(B20>=0.375,0.5,IF(B20>=0.125,0.25,0)))) -> 0 | H21: Enter Amount of Side Border | I21: Enter Amount of Side Border | K21: =B6 -> 2 | R21: EndCap #35885 | S21: 6.4264 | T21: 1 | U21: =T21*S21 -> 6.4264 | V21: lbs. | X21: Screw #89592 | Y21: 0.0036 | Z21: 8 | AA21: =Z21*Y21 -> 0.0288 | AB21: lbs. | AD21: Hex Bolt #24270 | AE21: 0.0898 | AF21: 5 | AG21: =AF21*AE21 -> 0.449 | AH21: lbs. | AI21: Screw #89592 | AJ21: 0.0036 | AK21: 8 | AL21: =AK21*AJ21 -> 0.0288 | AM21: lbs.
A22: Small_Curve_Border | B22: =ROUNDDOWN(B19,0)+B21+2 -> 2 | H22: Square Feet of Fabric | K22: =((K18+(K21*2))*(K19+K20+28+2.25)/144) -> 0.8958333333 | L22: sq. ft. | R22: Stud #6167 | S22: 0.0077 | T22: 6 | U22: 0.0462 | V22: lbs. | X22: Mtr Adaptor #81649 | Y22: 4.8446 | Z22: 1 | AA22: 4.8446 | AB22: lbs. | AD22: Door Bracket #35910 | AE22: 0.3183 | AF22: 1 | AG22: 0.3183 | AH22: lbs. | AI22: Mtr Adaptor #88799 | AJ22: 5.42 | AK22: 1 | AL22: 5.42 | AM22: lbs.
A23: Small_Curve_Fabric_Width | B23: =(B22*2)+B4 -> 4 | H23: Weight of Fabric | K23: =((K22/9) * 32)/16 -> 0.1990740741 | L23: lbs. | R23: Endcap #35883 | S23: 5.9645 | T23: 1 | U23: 5.9645 | V23: lbs. | X23: Screen Mtr Asm #39875 | Y23: 5.995 | Z23: 1 | AA23: 5.995 | AB23: lbs. | AD23: Nut Clinch #4372 | AE23: 0.0061 | AF23: 2 | AG23: 0.0122 | AH23: lbs. | AI23: Screen Mtr Asm #39875 | AJ23: 5.554 | AK23: 1 | AL23: 5.554 | AM23: lbs.
A24: Square_Inches_Small_Curve | B24: =B23*B13 -> 0 | H24: Weight of Slat | K24: =((K18+(K21*2))/12)*0.6974 -> 0.2324666667 | L24: lbs. | M24: 0.6974 lbs. / ft. | R24: J-Box Cover #35915 | S24: 0.1406 | T24: 1 | U24: 0.1406 | V24: lbs. | AA24: 0 | AB24: lbs. | AD24: Screw Hex Cap #35913 | AE24: 0.02 | AF24: 2 | AG24: 0.04 | AH24: lbs. | AL24: 0 | AM24: lbs.
A25: Fabric_Weight_oz/sq in. | B25: =28/9/144 -> 0.02160493827 | H25: Weight of Case | K25: =(((K18+(K21*2))+17.25)/12)*8.9606 -> 15.86772917 | L25: lbs. | M25: 8.961 lbs. / ft. | R25: J-Box #35914 | S25: 0.4152 | T25: 1 | U25: 0.4152 | V25: lbs. | AA25: 0 | AB25: lbs. | AD25: Door Slide #24269 | AE25: 0.0219 | AF25: 5 | AG25: 0.1095 | AH25: lbs. | AL25: 0 | AM25: lbs.
A26: Fabric_Weight | B26: =B24*B25*0.0625 -> 0 | C26: lbs. | H26: Weight of Roller | K26: =IF(K18+(K21*2) < 240, (((K18+(K21*2))+2)/12)*2.536,(((K18+(K21*2))+2)/12)*4.02) -> 1.268 | L26: lbs. | M26: (5.75) - 2.536 lbs. / ft. (7.00) - 4.02 lbs. / ft. | R26: Pin End Brkt #35917 | S26: 2.5829 | T26: 1 | U26: 2.5829 | V26: lbs. | AA26: 0 | AB26: lbs. | AD26: Screw Mach #77459 | AE26: 0.009 | AF26: 10 | AG26: 0.09 | AH26: lbs. | AL26: 0 | AM26: lbs.
A27: Slat_Weight | B27: =((B23+0.5)/12)*0.806 -> 0.30225 | C27: lbs. | G27: (0.806 / lbs. ft.) | H27: Weight of Access Door | K27: =(((K18+(K21*2))+17)/12)*1.548 -> 2.709 | L27: lbs. | M27: 1.548 lbs. / ft. | R27: LockWasher #44733 | S27: 0.006 | T27: 2 | U27: 0.012 | V27: lbs. | AA27: 0 | AB27: lbs. | AD27: Door Mtr Bracket #35886 | AE27: 0.222 | AF27: 1 | AG27: 0.222 | AH27: lbs. | AL27: 0 | AM27: lbs.
A28: Total_Small_Curve_Weight | B28: =(B26+B27)*1.05 -> 0.3173625 | C28: lbs. | H28: Weight of Spring Door | K28: =(((K18+(K21*2))+17)/12)*0.562 -> 0.9835 | L28: lbs. | M28: 0.562 lbs. / ft. | R28: Hex Bolt #44731 | S28: 0.047 | T28: 2 | U28: 0.094 | V28: lbs. | AA28: 0 | AB28: lbs. | AD28: Door Pin Bracket #35887 | AE28: 0.224 | AF28: 1 | AG28: 0.224 | AH28: lbs. | AL28: 0 | AM28: lbs.
A29: Roller Diameter | B29: =3.25 -> 3.25 | H29: Spring Door Parts / Hardware | K29: =AG69 -> 20.4905 | L29: lbs. | R29: Hex Bolt #35905 | S29: 0.0278 | T29: 10 | U29: 0.278 | V29: lbs. | AA29: 0 | AB29: lbs. | AD29: Screw Mach #87059 | AE29: 0.0051 | AF29: 15 | AG29: 0.0765 | AH29: lbs. | AL29: 0 | AM29: lbs.
A30: Motor_Torque_Required_Small_Curve | B30: =(B29*25.4/2) * (B28/2.20462262) / 100 -> 0.05941668687 | C30: N/m | H30: Screen Parts / Hardware | K30: =U69 -> 31.4205 | L30: lbs. | R30: Bearing #83107 | S30: 0.2046 | T30: 1 | U30: 0.2046 | V30: lbs. | AA30: 0 | AB30: lbs. | AD30: Square Nut #35903 | AE30: 0.02 | AF30: 1 | AG30: 0.02 | AH30: lbs. | AL30: 0 | AM30: lbs.
A31: Motor_Torque_Small_Curve | B31: =IF(B30 >= 10,20,IF(B30>6,10,IF(B30>3,6,3))) -> 3 | C31: N/m | H31: Roller Assembly Parts | K31: =IF(K18+(K21*2) < 240,AA69,AL69) -> 11.9922 | L31: lbs. | R31: Square Nut #35903 | S31: 0.02 | T31: 9 | U31: 0.18 | V31: lbs. | AA31: 0 | AB31: lbs. | AD31: Washer Lock #95073 | AE31: 0.004 | AF31: 2 | AG31: 0.008 | AH31: lbs. | AL31: 0 | AM31: lbs.
R32: LockWasher #95073 | S32: 0.004 | T32: 10 | U32: 0.04 | V32: lbs. | AA32: 0 | AB32: lbs. | AD32: Screw #72537 | AE32: 0.006 | AF32: 1 | AG32: 0.006 | AH32: lbs. | AL32: 0 | AM32: lbs.
A33: **** Equations for Medium Curve Border ******* | R33: Motor Bracket #35916 | S33: 3.0455 | T33: 1 | U33: 3.0455 | V33: lbs. | AA33: 0 | AB33: lbs. | AD33: Door Bracket #11317 | AE33: 0.0451 | AF33: 1 | AG33: 0.0451 | AH33: lbs. | AL33: 0 | AM33: lbs.
B34: =512.5-SQRT(512.5*512.5-0.25*B13*B13)+1.75 -> 1.75 | R34: Motor Adaptor Brkt #37866 | S34: 0.2434 | T34: 1 | U34: 0.2434 | V34: lbs. | AA34: 0 | AB34: lbs. | AD34: Nut Clinch #11321 | AE34: 0.001 | AF34: 4 | AG34: 0.004 | AH34: lbs. | AL34: 0 | AM34: lbs.
B35: =B34-ROUNDDOWN(B34,0) -> 0.75 | I35: Total Weight | K35: =SUM(K23:K33) -> 85.16296991 | R35: Hex Bolt #38739 | S35: 0.0368 | T35: 2 | U35: 0.0736 | V35: lbs. | AA35: 0 | AB35: lbs. | AD35: Door Bracket #11316 | AE35: 0.0631 | AF35: 1 | AG35: 0.0631 | AH35: lbs. | AL35: 0 | AM35: lbs.
B36: =IF(B35>=0.875,1,IF(B35>=0.625,0.75,IF(B35>=0.375,0.5,IF(B35>=0.125,0.25,0)))) -> 0.75 | R36: Nylon Lock Nut #44753 | S36: 0.014 | T36: 2 | U36: 0.028 | V36: lbs. | AA36: 0 | AB36: lbs. | AD36: Screw #11319 | AE36: 0.0019 | AF36: 4 | AG36: 0.0076 | AH36: lbs. | AL36: 0 | AM36: lbs.
A37: Medium_Curve_Border | B37: =ROUNDDOWN(B34,0)+B36 -> 1.75 | R37: Door Bracket #35888 | S37: 0.2004 | T37: 2 | U37: 0.4008 | V37: lbs. | AA37: 0 | AB37: lbs. | AD37: Clamp #92301 | AE37: 0.0025 | AF37: 5 | AG37: 0.0125 | AH37: lbs. | AL37: 0 | AM37: lbs.
A38: Medium_Curve_Fabric_Width | B38: =(B37*2)+B4+2 -> 5.5 | R38: Nut Clinch #5013 | S38: 0.0146 | T38: 4 | U38: 0.0584 | V38: lbs. | AA38: 0 | AB38: lbs. | AD38: Screw #52703 | AE38: 0.0021 | AF38: 5 | AG38: 0.0105 | AH38: lbs. | AL38: 0 | AM38: lbs.
A39: Square_Inches_Medium_Curve | B39: =B38*B13 -> 0 | R39: J-Box Cover #35906 | S39: 0.1188 | T39: 1 | U39: 0.1188 | V39: lbs. | AD39: Pin Hub #80764 | AE39: 0.0232 | AF39: 1 | AG39: 0.0232 | AH39: lbs.
A40: Fabric_Weight_oz/sq in. | B40: =28/9/144 -> 0.02160493827 | R40: Strain Relief #95443 | S40: 0.0009 | T40: 1 | U40: 0.0009 | V40: lbs. | AD40: Pin Cotter #97290 | AE40: 0.0063 | AF40: 1 | AG40: 0.0063 | AH40: lbs.
A41: Fabric_Weight | B41: =B39*B40*0.0625 -> 0 | C41: lbs. | R41: Door Bracket #35889 | S41: 0.611 | T41: 2 | U41: 1.222 | V41: lbs. | AD41: Tube Steel #32258 | AE41: 10.8045 | AF41: 1 | AG41: 10.8045 | AH41: lbs.
A42: Slat_Weight | B42: =((B38+0.5)/12)*0.806 -> 0.403 | C42: lbs. | G42: (0.806 / lbs. ft.) | R42: Hex Bolt #44731 | S42: 0.047 | T42: 4 | U42: 0.188 | V42: lbs. | AD42: Alum. Bar #33300 | AE42: 1.267 | AF42: 1 | AG42: 1.267 | AH42: lbs.
A43: Total_Medium_Curve_Weight | B43: =(B41+B42)*1.05 -> 0.42315 | C43: lbs. | R43: Washer #44842 | S43: 0.0106 | T43: 4 | U43: 0.0424 | V43: lbs. | AD43: Fabric Strip #69186 | AE43: 2.9 | AF43: 1 | AG43: 2.9 | AH43: lbs.
A44: Roller_Diameter | B44: 3.25 | R44: Screw #87059 | S44: 0.0051 | T44: 6 | U44: 0.0306 | V44: lbs. | AD44: Roll Pin #72567 | AE44: 0.0002 | AF44: 2 | AG44: 0.0004 | AH44: lbs.
A45: Motor_Torque_Required_Medium_Curve | B45: =(B44*25.4/2) * (B43/2.20462262) / 100 -> 0.07922224916 | C45: N/m | R45: Screw #94082 | S45: 0.003 | T45: 6 | U45: 0.018 | V45: lbs. | AD45: Drive Wheel #99621 | AE45: 0.0573 | AF45: 1 | AG45: 0.0573 | AH45: lbs.
A46: Motor_Torque_Medium_Curve | B46: =IF(B45 >= 10,20,IF(B45>6,10,IF(B45>3,6,3))) -> 3 | C46: N/m | R46: Keps Nut #80874 | S46: 0.008 | T46: 6 | U46: 0.048 | V46: lbs. | AD46: Motor Asm | AE46: 3.11 | AF46: 1 | AG46: 3.11 | AH46: lbs.
R47: Door Hinge #75846 | S47: 0.0822 | T47: 7 | U47: 0.5754 | V47: lbs. | AG47: 0 | AH47: lbs.
R48: Screw #72537 | S48: 0.006 | T48: 15 | U48: 0.09 | V48: lbs. | AG48: 0 | AH48: lbs.
A49: **** Equations for Large Top Curve Border ******* | R49: Screw #52703 | S49: 0.002 | T49: 14 | U49: 0.028 | V49: lbs. | AG49: 0 | AH49: lbs.
A50: y | B50: =B13*0.75 -> 0 | R50: Bracket Hanger #35882 | S50: 0.9472 | T50: 7 | U50: 6.6304 | V50: lbs. | AG50: 0 | AH50: lbs.
A51: r | B51: 1175 | R51: Bolt Carriage #38040 | S51: 0.065 | T51: 14 | U51: 0.91 | V51: lbs.
A52: n | B52: =B50 * B50 -> 0 | R52: Hex Nut #38041 | S52: 0.031 | T52: 14 | U52: 0.434 | V52: lbs.
A53: P | B53: =B51*B51 -> 1380625 | R53: Washer #44842 | S53: 0.0106 | T53: 14 | U53: 0.1484 | V53: lbs.
A54: s | B54: =SQRT(B53-B52) -> 1175 | R54: Door Bracket #35910 | S54: 0.3183 | T54: 1 | U54: 0.3183 | V54: lbs.
B55: =B51-B54 -> 0 | R55: Nut Clinch #4372 | S55: 0.0061 | T55: 2 | U55: 0.0122 | V55: lbs.
B56: =B55-ROUNDDOWN(B55,0) -> 0 | R56: Screw Hex Cap #35913 | S56: 0.02 | T56: 2 | U56: 0.04 | V56: lbs.
B57: =IF(B56>=0.875,1,IF(B56>=0.625,0.75,IF(B56>=0.375,0.5,IF(B56>=0.125,0.25,0)))) -> 0 | R57: Slat Cap #97788 | S57: 0.0299 | T57: 2 | U57: 0.0598 | V57: lbs.
A58: Large_Curve_Top_Border | B58: =ROUNDDOWN(B55,0)+B57+2 -> 2 | R58: Hex Bolt #33621 | S58: 0.0231 | T58: 2 | U58: 0.0462 | V58: lbs.
A59: Large_Curve_Top_Width | B59: =(B58*2)+B4 -> 4 | R59: Adj. Tube #98215 | S59: 0.0348 | T59: 2 | U59: 0.0696 | V59: lbs.
A60: Square_Inches_Large_Curve | B60: =B59*B13 -> 0 | R60: Screw #44839 | S60: 0.003 | T60: 4 | U60: 0.012 | V60: lbs.
A61: Fabric_Weight_oz/sq in. | B61: =28/9/144 -> 0.02160493827 | R61: Spring #81707 | S61: 0.0037 | T61: 2 | U61: 0.0074 | V61: lbs.
A62: Fabric_Weight | B62: =B60*B61*0.0625 -> 0 | C62: lbs. | U62: 0 | V62: lbs.
A63: Slat_Weight | B63: =((B59+0.5)/12)*0.806 -> 0.30225 | C63: lbs. | G63: (0.806 / lbs. ft.) | U63: 0 | V63: lbs.
A64: Total_Large_Curve_Weight | B64: =(B62+B63)*1.05 -> 0.3173625 | C64: lbs. | U64: 0 | V64: lbs.
A65: Roller_Diameter | B65: 3.25 | U65: 0 | V65: lbs.
A66: Motor_Torque_Required_Large_Curve | B66: =(B65*25.4/2) * (B64/2.20462262) / 100 -> 0.05941668687 | C66: N/m | U66: 0 | V66: lbs.
A67: Motor_Torque_Large_Curve | B67: =IF(B66 >= 10,20,IF(B66>6,10,IF(B66>3,6,3))) -> 3 | C67: N/m | U67: 0 | V67: lbs.
S69: Total: | U69: =SUM(U20:U66) -> 31.4205 | Y69: Total: | AA69: =SUM(AA20:AA62) -> 11.9922 | AE69: Total: | AG69: =SUM(AG20:AG64) -> 20.4905 | AJ69: Total: | AL69: =SUM(AL20:AL62) -> 12.3249
A70: Square_Inches_Non_Tensioned | B70: =B14*(B13-3) -> 0
A71: 3/8_Slat_Weight | B71: =(PI()*(0.1875*0.1875)*(B14+0.5))*0.284 -> 0.01568341958 | C71: lbs.
A72: Fabric_Weight_oz/sq in. | B72: =21/9/144 -> 0.0162037037
A73: Fabric_Weight | B73: =B70*B72*0.0625 -> 0 | C73: lbs.
A74: Total_Non_Tens_Weight | B74: =(B71+B73)*1.05 -> 0.01646759055 | C74: lbs.
A75: Aspect Ratio | B75: =B4/B3 -> 
A76: Roller Diameter | B76: =IF(AND(B14<=108,B75<1.45),3,3.25) -> 
A77: Motor_Torque_Required_N/m | B77: =(B76*25.4/2) * (B74/2.20462262) / 100 ->  | C77: N/m
A78: Motor_Torque_Non_Tensioned | B78: =IF(B77 >= 10,20,IF(B77>6,10,IF(B77>3,6,3))) ->  | C78: N/m
A80: Max Top Black Drop | B80: =IF(#REF!=1,84,60) -> 
A81: Max Bottom Black Drop | B81: =IF(#REF!=1,48,24) -> 

Sheet Tensioned_Large_Advantage
A1: Tensioned Advantage (over 16' W)
D2: Centimeters | F2: Note: cm will update inches, inches will not update cm
A3: Enter Viewing Area Height: | B3: 0 | C3: inches | D3: 0 | E3: cm | G3: =IF(B15 < 93,"Small_Curve",IF(AND(B15<145,B4<160),"Medium_Curve",IF(OR(B15>=145,B4>=160),"Large_Curve",0))) -> Small_Curve
A4: Enter Viewing Area Width: | B4: 0 | C4: inches | D4: 0 | E4: cm
A5: Enter Top Black Drop: | B5: =ROUND((D5/2.54)*4,0)/4 -> 12 | C5: inches | D5: 30.5 | E5: cm
A6: Enter Bottom Black Drop: | B6: =ROUND((D6/2.54)*4,0)/4 -> 2 | C6: inches | D6: 5 | E6: cm
A7: Material:
G8: 0
H10: Height = 212" Tall Max
A11: "ALL THREE FIELDS TO THE RIGHT MUST BE GREEN" | B11: =IF(OR(B3=0,B4=0),"Enter VA",IF(G8=0,"SELECT FABRIC",IF(AND(B15>60,B15<=215),IF(AND(B16>100,B16<=285.75),IF(OR(B15>195,B4>260),"SEE DESIGN CENTER",IF(AND(B15>169,B16>192),"SEE DESIGN CENTER","Feasible")),"Not Feasible"),"Not Feasible"))) -> Enter VA | H11: if OVH > 169 and the width has to be greater VAW > 260 should be DC
A12: APPROX. HANGING WEIGHT | B12: =IF(OR(B3=0,B4=0),"Enter VA",IF(G8=0,"SELECT FABRIC",IF(B5<=B82,"TOP BLACK DROP OK","TOO MUCH TOP BLACK DROP"))) -> Enter VA | H12: Same for Large Advantage Deluxe
A13: =IF(OR(B3=0,B4=0),"Enter VA",IF(G8=0,"SELECT FABRIC",IF(OR(B11="Not Feasible",B12="TOO MUCH TOP BLACK DROP",B13="TOO MUCH BTM BLACK DROP"),"Not Feasible",ROUNDUP(L41,0)&" LBS / "&ROUNDUP(L41*0.453592,0)&" KG"))) -> Enter VA | B13: =IF(OR(B3=0,B4=0),"Enter VA",IF(G8=0,"SELECT FABRIC",IF(B6<=B83,"BTM BLACK DROP OK","TOO MUCH BTM BLACK DROP"))) -> Enter VA
A14: Table of Contents | I14: =IF(AND(B4<=260,(((B3+B5)*(B4+4))/144<350)),5.75, 7) -> 5.75 | J14: =IF(AND(B4<=260,(((B3+B5)*(B4+4))/144<350)),(((L23+(L27*2))+4.25)/12)*2.536,(((L23+(L27*2))+4.25)/12)*4.02) -> 1.849166667
A15: Total_Screen_Height | B15: =B3+B5+B6+3 -> 17 | I15: =IF(AND(B4<=260,(((B3+B5)*(B4+4))/144<350)),AB74,AG74) -> 11.9922
A16: Fabric Width | B16: =IF(G3="Small_Curve",B25,IF(G3="Medium_Curve",B40,IF(G3="Large_Curve",B61,0))) -> 4.5
A20: **** Equations for Small Curve Border *******
B21: =280.34-SQRT(280.34*280.34-0.25*B15*B15) -> 0.1288910125 | I21: Weight of 5.75" & 7" Diameter Roller Screen Calculator
B22: =B21-ROUNDDOWN(B21,0) -> 0.1288910125 | I22: FORMULAS | J22: DIMENSIONS
B23: =IF(B22>=0.875,1,IF(B22>=0.625,0.75,IF(B22>=0.375,0.5,IF(B22>=0.125,0.25,0)))) -> 0.25 | I23: Viewing Area Width | J23: Enter Viewing Area Width | L23: =B4 -> 0 | S23: Screen Housing Miscellanous Items | Y23: 5.75" Roller Assembly Miscellanous Items | AD23: 7.00" Roller Assembly Miscellanous Items
A24: Small_Curve_Border | B24: =ROUNDDOWN(B21,0)+B23+2 -> 2.25 | I24: Viewing Area Height | J24: Enter Viewing Area Height | L24: =B3 -> 0 | S24: Part | T24: Weight | U24: Qty. | V24: Total: | Y24: Part | Z24: Weight | AA24: Qty. | AB24: Total: | AD24: Part | AE24: Weight | AF24: Qty. | AG24: Total:
A25: Small_Curve_Fabric_Width | B25: =(B24*2)+B4 -> 4.5 | I25: Enter Amount Black Drop | J25: Enter Amount Black Drop | L25: =B5+B6 -> 14 | S25: EndCap Bolt #35907 | T25: 0.017 | U25: 8 | V25: =U25*T25 -> 0.136 | W25: lbs. | Y25: Roller Hub #73525 | Z25: 1.1238 | AA25: 1 | AB25: =AA25*Z25 -> 1.1238 | AC25: lbs. | AD25: Roller Hub #95515 | AE25: 1.3221 | AF25: 1 | AG25: =AF25*AE25 -> 1.3221 | AH25: lbs.
A26: Square_Inches_Small_Curve | B26: =B25*B15 -> 76.5 | I26: Enter Bottom Fabric Width | J26: Enter Bottom Fabric Width | L26: =B4+(L27*2) -> 4.5 | S26: EndCap #35885 | T26: 6.4264 | U26: 1 | V26: 6.4264 | W26: lbs. | Y26: Screw #89592 | Z26: 0.0036 | AA26: 8 | AB26: =AA26*Z26 -> 0.0288 | AC26: lbs. | AD26: Screw #89592 | AE26: 0.0036 | AF26: 8 | AG26: =AF26*AE26 -> 0.0288 | AH26: lbs.
A27: Fabric_Weight_oz/sq in. | B27: =28/9/144 -> 0.02160493827 | I27: Enter Amount of Side Border | J27: Enter Amount of Side Border | L27: =IF(G3="Small_Curve",B24,IF(G3="Medium_Curve",B39,IF(G3="Large_Curve",(B60/1.9),""))) -> 2.25 | S27: Stud #6167 | T27: 0.0077 | U27: 6 | V27: 0.0462 | W27: lbs. | Y27: Mtr Adaptor #81649 | Z27: 4.8446 | AA27: 1 | AB27: =AA27*Z27 -> 4.8446 | AC27: lbs. | AD27: Mtr Adaptor #88799 | AE27: 5.42 | AF27: 1 | AG27: =AF27*AE27 -> 5.42 | AH27: lbs.
A28: Fabric_Weight | B28: =B26*B27*0.0625 -> 0.1032986111 | C28: lbs. | I28: Square Feet of Fabric | L28: =((L23+(L27*2))*(L24+L25+28+4.5)/144) -> 1.453125 | M28: sq. ft. | S28: Endcap #35883 | T28: 5.9645 | U28: 1 | V28: 5.9645 | W28: lbs. | Y28: Screen Mtr Asm #39875 | Z28: 5.995 | AA28: 1 | AB28: =AA28*Z28 -> 5.995 | AC28: lbs. | AD28: Screen Mtr Asm #39875 | AE28: 5.554 | AF28: 1 | AG28: =AF28*AE28 -> 5.554 | AH28: lbs.
A29: Slat_Weight | B29: =((B25+0.5)/12)*0.806 -> 0.3358333333 | C29: lbs. | G29: (0.806 / lbs. ft.) | I29: Weight of Fabric | L29: =((L28/9) * 26)/16 -> 0.2623697917 | M29: lbs. | S29: J-Box Cover #35915 | T29: 0.1406 | U29: 1 | V29: 0.1406 | W29: lbs. | AB29: =AA29*Z29 -> 0 | AC29: lbs. | AG29: =AF29*AE29 -> 0 | AH29: lbs.
A30: Total_Small_Curve_Weight | B30: =(B28+B29)*1.05 -> 0.4610885417 | C30: lbs. | I30: Weight of Slat | L30: =((L26+0.5)/12) * 0.9435 -> 0.393125 | M30: lbs. | N30: 0.9435 lbs. / ft. | S30: J-Box #35914 | T30: 0.4152 | U30: 1 | V30: 0.4152 | W30: lbs. | AB30: 0 | AC30: lbs. | AG30: 0 | AH30: lbs.
A31: Roller Diameter | B31: =3.25 -> 3.25 | I31: Weight of Case | L31: =(((L23+(L27*2))+17.25)/12)*8.9606 -> 16.2410875 | M31: lbs. | N31: 8.961 lbs. / ft. | S31: Pin End Brkt #35917 | T31: 2.5829 | U31: 1 | V31: 2.5829 | W31: lbs. | AB31: 0 | AC31: lbs. | AG31: 0 | AH31: lbs.
A32: Motor_Torque_Required_Small_Curve | B32: =(B31*25.4/2) * (B30/2.20462262) / 100 -> 0.08632511245 | C32: N/m | I32: Weight of Roller | L32: =IF(AND(B4<=260,(((B3+B5)*(B4+4))/144<350)),(((L23+(L27*2))+4.25)/12)*2.536,(((L23+(L27*2))+4.25)/12)*4.02) -> 1.849166667 | M32: lbs. | N32: 5.75" R = 2.536 lbs. / ft.:: 7" R = 4.02 lbs. / ft. | S32: LockWasher #44733 | T32: 0.006 | U32: 2 | V32: 0.012 | W32: lbs. | AB32: 0 | AC32: lbs. | AG32: 0 | AH32: lbs.
A33: Motor_Torque_Small_Curve | B33: =IF(B32 >= 10,20,IF(B32>6,10,IF(B32>3,6,3))) -> 3 | C33: N/m | I33: Weight of Access Door | L33: =(((L23+(L27*2))+17)/12)*1.548 -> 2.7735 | M33: lbs. | N33: 1.548 lbs. / ft. | S33: Hex Bolt #44731 | T33: 0.047 | U33: 2 | V33: 0.094 | W33: lbs. | AB33: 0 | AC33: lbs. | AG33: 0 | AH33: lbs.
I34: Screen Parts / Hardware | L34: =V74 -> 31.4205 | M34: lbs. | S34: Hex Bolt #35905 | T34: 0.0278 | U34: 10 | V34: 0.278 | W34: lbs. | AB34: 0 | AC34: lbs. | AG34: 0 | AH34: lbs.
A35: **** Equations for Medium Curve Border ******* | I35: Roller Asm Parts | L35: =IF(AND(B4<=260,(((B3+B5)*(B4+4))/144<350)),AB74,AG74) -> 11.9922 | M35: lbs. | S35: Bearing #83107 | T35: 0.2046 | U35: 1 | V35: 0.2046 | W35: lbs. | AB35: 0 | AC35: lbs. | AG35: 0 | AH35: lbs.
B36: =512.5-SQRT(512.5*512.5-0.25*B15*B15)+1.75 -> 1.820492653 | S36: Square Nut #35903 | T36: 0.02 | U36: 9 | V36: 0.18 | W36: lbs. | AB36: 0 | AC36: lbs. | AG36: 0 | AH36: lbs.
B37: =B36-ROUNDDOWN(B36,0) -> 0.8204926529 | S37: LockWasher #95073 | T37: 0.004 | U37: 10 | V37: 0.04 | W37: lbs. | AB37: 0 | AC37: lbs. | AG37: 0 | AH37: lbs.
B38: =IF(B37>=0.875,1,IF(B37>=0.625,0.75,IF(B37>=0.375,0.5,IF(B37>=0.125,0.25,0)))) -> 0.75 | S38: Motor Bracket #35916 | T38: 3.0455 | U38: 1 | V38: 3.0455 | W38: lbs. | AB38: 0 | AC38: lbs. | AG38: 0 | AH38: lbs.
A39: Medium_Curve_Border | B39: =ROUNDDOWN(B36,0)+B38 -> 1.75 | S39: Motor Adaptor Brkt #37866 | T39: 0.2434 | U39: 1 | V39: 0.2434 | W39: lbs. | AB39: 0 | AC39: lbs. | AG39: 0 | AH39: lbs.
A40: Medium_Curve_Fabric_Width | B40: =(B39*2)+B4+2 -> 5.5 | S40: Hex Bolt #38739 | T40: 0.0368 | U40: 2 | V40: 0.0736 | W40: lbs. | AB40: 0 | AC40: lbs. | AG40: 0 | AH40: lbs.
A41: Square_Inches_Medium_Curve | B41: =B40*B15 -> 93.5 | J41: Total Weight | L41: =SUM(L29:L39) -> 64.93194896 | S41: Nylon Lock Nut #44753 | T41: 0.014 | U41: 2 | V41: 0.028 | W41: lbs. | AB41: 0 | AC41: lbs. | AG41: 0 | AH41: lbs.
A42: Fabric_Weight_oz/sq in. | B42: =28/9/144 -> 0.02160493827 | S42: Door Bracket #35888 | T42: 0.2004 | U42: 2 | V42: 0.4008 | W42: lbs. | AB42: 0 | AC42: lbs. | AG42: 0 | AH42: lbs.
A43: Fabric_Weight | B43: =B41*B42*0.0625 -> 0.126253858 | C43: lbs. | S43: Nut Clinch #5013 | T43: 0.0146 | U43: 4 | V43: 0.0584 | W43: lbs. | AB43: 0 | AC43: lbs. | AG43: 0 | AH43: lbs.
A44: Slat_Weight | B44: =((B40+0.5)/12)*0.806 -> 0.403 | C44: lbs. | G44: (0.806 / lbs. ft.) | S44: J-Box Cover #35906 | T44: 0.1188 | U44: 1 | V44: 0.1188 | W44: lbs.
A45: Total_Medium_Curve_Weight | B45: =(B43+B44)*1.05 -> 0.5557165509 | C45: lbs. | S45: Strain Relief #95443 | T45: 0.0009 | U45: 1 | V45: 0.0009 | W45: lbs.
A46: Roller_Diameter | B46: 3.25 | S46: Door Bracket #35889 | T46: 0.611 | U46: 2 | V46: 1.222 | W46: lbs.
A47: Motor_Torque_Required_Medium_Curve | B47: =(B46*25.4/2) * (B45/2.20462262) / 100 -> 0.1040413921 | C47: N/m | S47: Hex Bolt #44731 | T47: 0.047 | U47: 4 | V47: 0.188 | W47: lbs.
A48: Motor_Torque_Medium_Curve | B48: =IF(B47 >= 10,20,IF(B47>6,10,IF(B47>3,6,3))) -> 3 | C48: N/m | S48: Washer #44842 | T48: 0.0106 | U48: 4 | V48: 0.0424 | W48: lbs.
S49: Screw #87059 | T49: 0.0051 | U49: 6 | V49: 0.0306 | W49: lbs.
S50: Screw #94082 | T50: 0.003 | U50: 6 | V50: 0.018 | W50: lbs.
A51: **** Equations for Large Top Curve Border ******* | S51: Keps Nut #80874 | T51: 0.008 | U51: 6 | V51: 0.048 | W51: lbs.
A52: y | B52: =B15*0.75 -> 12.75 | S52: Door Hinge #75846 | T52: 0.0822 | U52: 7 | V52: 0.5754 | W52: lbs.
A53: r | B53: 1175 | S53: Screw #72537 | T53: 0.006 | U53: 15 | V53: 0.09 | W53: lbs.
A54: n | B54: =B52 * B52 -> 162.5625 | S54: Screw #52703 | T54: 0.002 | U54: 14 | V54: 0.028 | W54: lbs.
A55: P | B55: =B53*B53 -> 1380625 | S55: Bracket Hanger #35882 | T55: 0.9472 | U55: 7 | V55: 6.6304 | W55: lbs.
A56: s | B56: =SQRT(B55-B54) -> 1174.930822 | S56: Bolt Carriage #38040 | T56: 0.065 | U56: 14 | V56: 0.91 | W56: lbs.
B57: =B53-B56 -> 0.06917756831 | S57: Hex Nut #38041 | T57: 0.031 | U57: 14 | V57: 0.434 | W57: lbs.
B58: =B57-ROUNDDOWN(B57,0) -> 0.06917756831 | S58: Washer #44842 | T58: 0.0106 | U58: 14 | V58: 0.1484 | W58: lbs.
B59: =IF(B58>=0.875,1,IF(B58>=0.625,0.75,IF(B58>=0.375,0.5,IF(B58>=0.125,0.25,0)))) -> 0 | S59: Door Bracket #35910 | T59: 0.3183 | U59: 1 | V59: 0.3183 | W59: lbs.
A60: Large_Curve_Top_Border | B60: =ROUNDDOWN(B57,0)+B59+2 -> 2 | S60: Nut Clinch #4372 | T60: 0.0061 | U60: 2 | V60: 0.0122 | W60: lbs.
A61: Large_Curve_Top_Width | B61: =(B60*2)+B4 -> 4 | S61: Screw Hex Cap #35913 | T61: 0.02 | U61: 2 | V61: 0.04 | W61: lbs.
A62: Square_Inches_Large_Curve | B62: =B61*B15 -> 68 | S62: Slat Cap #97788 | T62: 0.0299 | U62: 2 | V62: 0.0598 | W62: lbs.
A63: Fabric_Weight_oz/sq in. | B63: =28/9/144 -> 0.02160493827 | S63: Hex Bolt #33621 | T63: 0.0231 | U63: 2 | V63: 0.0462 | W63: lbs.
A64: Fabric_Weight | B64: =B62*B63*0.0625 -> 0.09182098765 | C64: lbs. | S64: Adj. Tube #98215 | T64: 0.0348 | U64: 2 | V64: 0.0696 | W64: lbs.
A65: Slat_Weight | B65: =((B61+0.5)/12)*0.806 -> 0.30225 | C65: lbs. | G65: (0.806 / lbs. ft.) | S65: Screw #44839 | T65: 0.003 | U65: 4 | V65: =U65*T65 -> 0.012 | W65: lbs.
A66: Total_Large_Curve_Weight | B66: =(B64+B65)*1.05 -> 0.413774537 | C66: lbs. | S66: Spring #81707 | T66: 0.0037 | U66: 2 | V66: =U66*T66 -> 0.0074 | W66: lbs.
A67: Roller_Diameter | B67: 3.25 | V67: =U67*T67 -> 0 | W67: lbs.
A68: Motor_Torque_Required_Large_Curve | B68: =(B67*25.4/2) * (B66/2.20462262) / 100 -> 0.07746697263 | C68: N/m | V68: 0 | W68: lbs.
A69: Motor_Torque_Large_Curve | B69: =IF(B68 >= 10,20,IF(B68>6,10,IF(B68>3,6,3))) -> 3 | C69: N/m | V69: 0 | W69: lbs.
V70: 0 | W70: lbs.
V71: 0 | W71: lbs.
A72: Square_Inches_Non_Tensioned | B72: =B16*(B15-3) -> 63 | V72: 0 | W72: lbs.
A73: 3/8_Slat_Weight | B73: =(PI()*(0.1875*0.1875)*(B16+0.5))*0.284 -> 0.1568341958 | C73: lbs.
A74: Fabric_Weight_oz/sq in. | B74: =21/9/144 -> 0.0162037037 | T74: Total: | V74: =SUM(V25:V71) -> 31.4205 | Z74: Total: | AB74: =SUM(AB25:AB67) -> 11.9922 | AE74: Total: | AG74: =SUM(AG25:AG67) -> 12.3249
A75: Fabric_Weight | B75: =B72*B74*0.0625 -> 0.06380208333 | C75: lbs.
A76: Total_Non_Tens_Weight | B76: =(B73+B75)*1.05 -> 0.231668093 | C76: lbs.
A77: Aspect Ratio | B77: =B4/B3 -> 
A78: Roller Diameter | B78: =IF(AND(B16<=108,B77<1.45),3,3.25) -> 
A79: Motor_Torque_Required_N/m | B79: =(B78*25.4/2) * (B76/2.20462262) / 100 ->  | C79: N/m
A80: Motor_Torque_Non_Tensioned | B80: =IF(B79 >= 10,20,IF(B79>6,10,IF(B79>3,6,3))) ->  | C80: N/m
A82: Max Top Black Drop | B82: =IF(G8=1,84,60) -> 60
A83: Max Bottom Black Drop | B83: =IF(G8=1,48,24) -> 24

Sheet Large_Advantage
A1: Advantage (over 16' W)
D2: Centimeters | F2: Note: cm will update inches, inches will not update cm
A3: Enter Viewing Area Height: | B3: =ROUND((D3/2.54)*4,0)/4 -> 0 | C3: inches | D3: 0 | E3: cm | G3: =IF(B13 < 93,"Small_Curve",IF(AND(B13<145,B4<160),"Medium_Curve",IF(OR(B13>=145,B4>=160),"Large_Curve",0))) -> Small_Curve
A4: Enter Viewing Area Width: | B4: =ROUND((D4/2.54)*4,0)/4 -> 0 | C4: inches | D4: 0 | E4: cm
A5: Enter Top Black Drop: | B5: =ROUND((D5/2.54)*4,0)/4 -> 2 | C5: inches | D5: 5 | E5: cm
A6: Enter Border Width: | B6: =ROUND((D6/2.54)*4,0)/4 -> 2 | C6: inches | D6: 5 | E6: cm
A7: Enter Bottom Black Drop: (not including pocket) | B7: =ROUND((D7/2.54)*4,0)/4 -> 0 | C7: inches | D7: 0 | E7: cm
A9: =IF(OR(B3=0,B4=0),"Enter VA",IF(AND(B6<=6,B16>=264,B16<=288,B15<=216),"Feasible",IF(AND(B6<=6,B16>=100,B16<=264,B15>=60,B15<=266.25),"Feasible","Not Feasible"))) -> Enter VA
A10: =IF(OR(B3=0,B4=0),"Enter VA","APPROX. HANGING WEIGHT") -> Enter VA
A11: =IF(OR(B3=0,B4=0),"Enter VA",IF(AND(B6<=6,B16>=264,B16<=288,B15<=216),ROUNDUP(K35,0)&" LBS / "&ROUNDUP(K35*0.453592,0)&" KG",IF(AND(B6<=6,B16>=100,B16<=264,B15>=60,B15<=264),ROUNDUP(K35,0)&" LBS / "&ROUNDUP(K35*0.453592,0)&" KG","Not Feasible"))) -> Enter VA | H11: =IF(AND(B16>=264,B16<=288),IF(B15<=216,"Feasible","Not Feasible"),"Not Feasible") -> Not Feasible
A12: Table of Contents
H13: =IF(AND(B16>=264,B16<=288,B15<=216),"Feasible",IF(AND(B16>=100,B16<=264,B15>=60,B15<=266.25),"Feasible","Not Feasible")) -> Not Feasible
A15: Total_Screen_Height | B15: =B3+B5+B7 -> 2
A16: Fabric Width | B16: =B4+(B6*2) -> 4
H17: FORMULAS | I17: DIMENSIONS
A18: **** Equations for Small Curve Border ******* | H18: Viewing Area Width | I18: Enter Viewing Area Width | K18: =B4 -> 0 | R18: Screen Housing Miscellanous Items | X18: 5.75" Roller Assembly Miscellanous Items | AI18: 7.00" Roller Assembly Miscellanous Items
B19: =280.34-SQRT(280.34*280.34-0.25*B13*B13) -> 0 | H19: Viewing Area Height | I19: Enter Viewing Area Height | K19: =B3 -> 0 | R19: Part | S19: Weight | T19: Qty. | U19: Total: | X19: Part | Y19: Weight | Z19: Qty. | AA19: Total: | AI19: Part | AJ19: Weight | AK19: Qty. | AL19: Total:
B20: =B19-ROUNDDOWN(B19,0) -> 0 | H20: Enter Amount Black Drop | I20: Enter Amount Black Drop | K20: =B5+B7 -> 2 | R20: EndCap Bolt #35907 | S20: 0.017 | T20: 8 | U20: =T20*S20 -> 0.136 | V20: lbs. | X20: Roller Hub #73525 | Y20: 1.1238 | Z20: 1 | AA20: =Z20*Y20 -> 1.1238 | AB20: lbs. | AI20: Roller Hub #95515 | AJ20: 1.3221 | AK20: 1 | AL20: =AK20*AJ20 -> 1.3221 | AM20: lbs.
B21: =IF(B20>=0.875,1,IF(B20>=0.625,0.75,IF(B20>=0.375,0.5,IF(B20>=0.125,0.25,0)))) -> 0 | H21: Enter Amount of Side Border | I21: Enter Amount of Side Border | K21: =B7 -> 0 | R21: EndCap #35885 | S21: 6.4264 | T21: 1 | U21: =T21*S21 -> 6.4264 | V21: lbs. | X21: Screw #89592 | Y21: 0.0036 | Z21: 8 | AA21: =Z21*Y21 -> 0.0288 | AB21: lbs. | AI21: Screw #89592 | AJ21: 0.0036 | AK21: 8 | AL21: =AK21*AJ21 -> 0.0288 | AM21: lbs.
A22: Small_Curve_Border | B22: =ROUNDDOWN(B19,0)+B21+2 -> 2 | H22: Square Feet of Fabric | K22: =((K18+(K21*2))*(K19+K20+28+4.5)/144) -> 0 | L22: sq. ft. | R22: Stud #6167 | S22: 0.0077 | T22: 6 | U22: 0.0462 | V22: lbs. | X22: Mtr Adaptor #81649 | Y22: 4.8446 | Z22: 1 | AA22: 4.8446 | AB22: lbs. | AI22: Mtr Adaptor #88799 | AJ22: 5.42 | AK22: 1 | AL22: 5.42 | AM22: lbs.
A23: Small_Curve_Fabric_Width | B23: =(B22*2)+B4 -> 4 | H23: Weight of Fabric | K23: =((K22/9) * 32)/16 -> 0 | L23: lbs. | R23: Endcap #35883 | S23: 5.9645 | T23: 1 | U23: 5.9645 | V23: lbs. | X23: Screen Mtr Asm #39875 | Y23: 5.995 | Z23: 1 | AA23: 5.995 | AB23: lbs. | AI23: Screen Mtr Asm #39875 | AJ23: 5.554 | AK23: 1 | AL23: 5.554 | AM23: lbs.
A24: Square_Inches_Small_Curve | B24: =B23*B13 -> 0 | H24: Weight of Slat | K24: =((K18+(K21*2))/12)*0.6974 -> 0 | L24: lbs. | M24: 0.6974 lbs. / ft. | R24: J-Box Cover #35915 | S24: 0.1406 | T24: 1 | U24: 0.1406 | V24: lbs. | AA24: 0 | AB24: lbs. | AL24: 0 | AM24: lbs.
A25: Fabric_Weight_oz/sq in. | B25: =28/9/144 -> 0.02160493827 | H25: Weight of Case | K25: =(((K18+(K21*2))+17.25)/12)*8.9606 -> 12.8808625 | L25: lbs. | M25: 8.961 lbs. / ft. | R25: J-Box #35914 | S25: 0.4152 | T25: 1 | U25: 0.4152 | V25: lbs. | AA25: 0 | AB25: lbs. | AL25: 0 | AM25: lbs.
A26: Fabric_Weight | B26: =B24*B25*0.0625 -> 0 | C26: lbs. | H26: Weight of Roller | K26: =IF(K18+(K21*2) < 240, (((K18+(K21*2))+2)/12)*2.536,(((K18+(K21*2))+2)/12)*4.02) -> 0.4226666667 | L26: lbs. | M26: (5.75) - 2.536 lbs. / ft. (7.00) - 4.02 lbs. / ft. | R26: Pin End Brkt #35917 | S26: 2.5829 | T26: 1 | U26: 2.5829 | V26: lbs. | AA26: 0 | AB26: lbs. | AL26: 0 | AM26: lbs.
A27: Slat_Weight | B27: =((B23+0.5)/12)*0.806 -> 0.30225 | C27: lbs. | G27: (0.806 / lbs. ft.) | H27: Weight of Access Door | K27: =(((K18+(K21*2))+17)/12)*1.548 -> 2.193 | L27: lbs. | M27: 1.548 lbs. / ft. | R27: LockWasher #44733 | S27: 0.006 | T27: 2 | U27: 0.012 | V27: lbs. | AA27: 0 | AB27: lbs. | AL27: 0 | AM27: lbs.
A28: Total_Small_Curve_Weight | B28: =(B26+B27)*1.05 -> 0.3173625 | C28: lbs. | H28: Screen Parts / Hardware | K28: =U69 -> 31.4205 | L28: lbs. | R28: Hex Bolt #44731 | S28: 0.047 | T28: 2 | U28: 0.094 | V28: lbs. | AA28: 0 | AB28: lbs. | AL28: 0 | AM28: lbs.
A29: Roller Diameter | B29: =3.25 -> 3.25 | H29: Roller Assembly Parts | K29: =IF(K18+(K21*2) < 240,AA69,AL69) -> 11.9922 | L29: lbs. | R29: Hex Bolt #35905 | S29: 0.0278 | T29: 10 | U29: 0.278 | V29: lbs. | AA29: 0 | AB29: lbs. | AL29: 0 | AM29: lbs.
A30: Motor_Torque_Required_Small_Curve | B30: =(B29*25.4/2) * (B28/2.20462262) / 100 -> 0.05941668687 | C30: N/m | R30: Bearing #83107 | S30: 0.2046 | T30: 1 | U30: 0.2046 | V30: lbs. | AA30: 0 | AB30: lbs. | AL30: 0 | AM30: lbs.
A31: Motor_Torque_Small_Curve | B31: =IF(B30 >= 10,20,IF(B30>6,10,IF(B30>3,6,3))) -> 3 | C31: N/m | R31: Square Nut #35903 | S31: 0.02 | T31: 9 | U31: 0.18 | V31: lbs. | AA31: 0 | AB31: lbs. | AL31: 0 | AM31: lbs.
R32: LockWasher #95073 | S32: 0.004 | T32: 10 | U32: 0.04 | V32: lbs. | AA32: 0 | AB32: lbs. | AL32: 0 | AM32: lbs.
A33: **** Equations for Medium Curve Border ******* | R33: Motor Bracket #35916 | S33: 3.0455 | T33: 1 | U33: 3.0455 | V33: lbs. | AA33: 0 | AB33: lbs. | AL33: 0 | AM33: lbs.
B34: =512.5-SQRT(512.5*512.5-0.25*B13*B13)+1.75 -> 1.75 | R34: Motor Adaptor Brkt #37866 | S34: 0.2434 | T34: 1 | U34: 0.2434 | V34: lbs. | AA34: 0 | AB34: lbs. | AL34: 0 | AM34: lbs.
B35: =B34-ROUNDDOWN(B34,0) -> 0.75 | I35: Total Weight | K35: =SUM(K23:K33) -> 58.90922917 | R35: Hex Bolt #38739 | S35: 0.0368 | T35: 2 | U35: 0.0736 | V35: lbs. | AA35: 0 | AB35: lbs. | AL35: 0 | AM35: lbs.
B36: =IF(B35>=0.875,1,IF(B35>=0.625,0.75,IF(B35>=0.375,0.5,IF(B35>=0.125,0.25,0)))) -> 0.75 | R36: Nylon Lock Nut #44753 | S36: 0.014 | T36: 2 | U36: 0.028 | V36: lbs. | AA36: 0 | AB36: lbs. | AL36: 0 | AM36: lbs.
A37: Medium_Curve_Border | B37: =ROUNDDOWN(B34,0)+B36 -> 1.75 | R37: Door Bracket #35888 | S37: 0.2004 | T37: 2 | U37: 0.4008 | V37: lbs. | AA37: 0 | AB37: lbs. | AL37: 0 | AM37: lbs.
A38: Medium_Curve_Fabric_Width | B38: =(B37*2)+B4+2 -> 5.5 | R38: Nut Clinch #5013 | S38: 0.0146 | T38: 4 | U38: 0.0584 | V38: lbs. | AA38: 0 | AB38: lbs. | AL38: 0 | AM38: lbs.
A39: Square_Inches_Medium_Curve | B39: =B38*B13 -> 0 | R39: J-Box Cover #35906 | S39: 0.1188 | T39: 1 | U39: 0.1188 | V39: lbs.
A40: Fabric_Weight_oz/sq in. | B40: =28/9/144 -> 0.02160493827 | R40: Strain Relief #95443 | S40: 0.0009 | T40: 1 | U40: 0.0009 | V40: lbs.
A41: Fabric_Weight | B41: =B39*B40*0.0625 -> 0 | C41: lbs. | R41: Door Bracket #35889 | S41: 0.611 | T41: 2 | U41: 1.222 | V41: lbs.
A42: Slat_Weight | B42: =((B38+0.5)/12)*0.806 -> 0.403 | C42: lbs. | G42: (0.806 / lbs. ft.) | R42: Hex Bolt #44731 | S42: 0.047 | T42: 4 | U42: 0.188 | V42: lbs.
A43: Total_Medium_Curve_Weight | B43: =(B41+B42)*1.05 -> 0.42315 | C43: lbs. | R43: Washer #44842 | S43: 0.0106 | T43: 4 | U43: 0.0424 | V43: lbs.
A44: Roller_Diameter | B44: 3.25 | R44: Screw #87059 | S44: 0.0051 | T44: 6 | U44: 0.0306 | V44: lbs.
A45: Motor_Torque_Required_Medium_Curve | B45: =(B44*25.4/2) * (B43/2.20462262) / 100 -> 0.07922224916 | C45: N/m | R45: Screw #94082 | S45: 0.003 | T45: 6 | U45: 0.018 | V45: lbs.
A46: Motor_Torque_Medium_Curve | B46: =IF(B45 >= 10,20,IF(B45>6,10,IF(B45>3,6,3))) -> 3 | C46: N/m | R46: Keps Nut #80874 | S46: 0.008 | T46: 6 | U46: 0.048 | V46: lbs.
R47: Door Hinge #75846 | S47: 0.0822 | T47: 7 | U47: 0.5754 | V47: lbs.
R48: Screw #72537 | S48: 0.006 | T48: 15 | U48: 0.09 | V48: lbs.
A49: **** Equations for Large Top Curve Border ******* | R49: Screw #52703 | S49: 0.002 | T49: 14 | U49: 0.028 | V49: lbs.
A50: y | B50: =B13*0.75 -> 0 | R50: Bracket Hanger #35882 | S50: 0.9472 | T50: 7 | U50: 6.6304 | V50: lbs.
A51: r | B51: 1175 | R51: Bolt Carriage #38040 | S51: 0.065 | T51: 14 | U51: 0.91 | V51: lbs.
A52: n | B52: =B50 * B50 -> 0 | R52: Hex Nut #38041 | S52: 0.031 | T52: 14 | U52: 0.434 | V52: lbs.
A53: P | B53: =B51*B51 -> 1380625 | R53: Washer #44842 | S53: 0.0106 | T53: 14 | U53: 0.1484 | V53: lbs.
A54: s | B54: =SQRT(B53-B52) -> 1175 | R54: Door Bracket #35910 | S54: 0.3183 | T54: 1 | U54: 0.3183 | V54: lbs.
B55: =B51-B54 -> 0 | R55: Nut Clinch #4372 | S55: 0.0061 | T55: 2 | U55: 0.0122 | V55: lbs.
B56: =B55-ROUNDDOWN(B55,0) -> 0 | R56: Screw Hex Cap #35913 | S56: 0.02 | T56: 2 | U56: 0.04 | V56: lbs.
B57: =IF(B56>=0.875,1,IF(B56>=0.625,0.75,IF(B56>=0.375,0.5,IF(B56>=0.125,0.25,0)))) -> 0 | R57: Slat Cap #97788 | S57: 0.0299 | T57: 2 | U57: 0.0598 | V57: lbs.
A58: Large_Curve_Top_Border | B58: =ROUNDDOWN(B55,0)+B57+2 -> 2 | R58: Hex Bolt #33621 | S58: 0.0231 | T58: 2 | U58: 0.0462 | V58: lbs.
A59: Large_Curve_Top_Width | B59: =(B58*2)+B4 -> 4 | R59: Adj. Tube #98215 | S59: 0.0348 | T59: 2 | U59: 0.0696 | V59: lbs.
A60: Square_Inches_Large_Curve | B60: =B59*B13 -> 0 | R60: Screw #44839 | S60: 0.003 | T60: 4 | U60: 0.012 | V60: lbs.
A61: Fabric_Weight_oz/sq in. | B61: =28/9/144 -> 0.02160493827 | R61: Spring #81707 | S61: 0.0037 | T61: 2 | U61: 0.0074 | V61: lbs.
A62: Fabric_Weight | B62: =B60*B61*0.0625 -> 0 | C62: lbs. | U62: 0 | V62: lbs.
A63: Slat_Weight | B63: =((B59+0.5)/12)*0.806 -> 0.30225 | C63: lbs. | G63: (0.806 / lbs. ft.) | U63: 0 | V63: lbs.
A64: Total_Large_Curve_Weight | B64: =(B62+B63)*1.05 -> 0.3173625 | C64: lbs. | U64: 0 | V64: lbs.
A65: Roller_Diameter | B65: 3.25 | U65: 0 | V65: lbs.
A66: Motor_Torque_Required_Large_Curve | B66: =(B65*25.4/2) * (B64/2.20462262) / 100 -> 0.05941668687 | C66: N/m | U66: 0 | V66: lbs.
A67: Motor_Torque_Large_Curve | B67: =IF(B66 >= 10,20,IF(B66>6,10,IF(B66>3,6,3))) -> 3 | C67: N/m | U67: 0 | V67: lbs.
S69: Total: | U69: =SUM(U20:U66) -> 31.4205 | Y69: Total: | AA69: =SUM(AA20:AA62) -> 11.9922 | AJ69: Total: | AL69: =SUM(AL20:AL62) -> 12.3249
A70: Square_Inches_Non_Tensioned | B70: =B14*(B13-3) -> 0
A71: 3/8_Slat_Weight | B71: =(PI()*(0.1875*0.1875)*(B14+0.5))*0.284 -> 0.01568341958 | C71: lbs.
A72: Fabric_Weight_oz/sq in. | B72: =21/9/144 -> 0.0162037037
A73: Fabric_Weight | B73: =B70*B72*0.0625 -> 0 | C73: lbs.
A74: Total_Non_Tens_Weight | B74: =(B71+B73)*1.05 -> 0.01646759055 | C74: lbs.
A75: Aspect Ratio | B75: =B4/B3 -> 
A76: Roller Diameter | B76: =IF(AND(B14<=108,B75<1.45),3,3.25) -> 
A77: Motor_Torque_Required_N/m | B77: =(B76*25.4/2) * (B74/2.20462262) / 100 ->  | C77: N/m
A78: Motor_Torque_Non_Tensioned | B78: =IF(B77 >= 10,20,IF(B77>6,10,IF(B77>3,6,3))) ->  | C78: N/m
A80: Max Top Black Drop | B80: =IF(#REF!=1,84,60) -> 
A81: Max Bottom Black Drop | B81: =IF(#REF!=1,48,24) -> 

Sheet Tensioned_Professional
A1: TENSIONED PROFESSIONAL ELECTROL
D2: Centimeters | F2: Note: cm will update inches, inches will not update cm
A3: Enter Viewing Area Height: | B3: 0 | C3: inches | D3: 0 | E3: cm | G3: =IF(B15 < 93,"Small_Curve",IF(AND(B15<145,B4<160),"Medium_Curve",IF(OR(B15>=145,B4>=160),"Large_Curve",0))) -> Small_Curve
A4: Enter Viewing Area Width: | B4: 0 | C4: inches | D4: 0 | E4: cm | K4: FORMULA TO DETERMINE ROLLER WEIGHT
A5: Enter Top Black Drop: | B5: 12 | C5: inches | D5: 30.5 | E5: cm | K5: =IF(AND((((B3+B5)*(B4+4)/144))<350,B4<=192),ROUNDUP(L37*1.05,0) & " LBS", IF(AND(B4>144,B4<=260,(((B3+B5)*(B4+4)/144))<350),ROUNDUP(L69*1.05,0) & " LBS",IF(OR((((B3+B5)*(B4+4)/144))>=350,B4>260),ROUNDUP(L113,0) & " LBS","Not Feasible"))) -> 54 LBS
A6: Enter Bottom Black Drop: | B6: =ROUND((D6/2.54)*4,0)/4 -> 2 | C6: inches | D6: 5 | E6: cm | K6: =IF(AND((((B3+B5)*(B4+4)/144))<350,B4<=192),ROUNDUP((L37*1.05) * 0.453592,0) & " KG", IF(AND(B4>144,B4<=260,(((B3+B5)*(B4+4)/144))<350),ROUNDUP((L69*1.05) * 0.453592,0) & " KG",IF(OR((((B3+B5)*(B4+4)/144))>=350,B4>260),ROUNDUP(L113*0.453592,0) & " KG","Not Feasible"))) -> 25 KG
A7: Material:
G8: 0
H10: If OVH > 192 DC | L10: add 3 inches to all heights. | T10: =((B3+B5)*(B4+4)/144) -> 0.3333333333
A11: "ALL THREE FIELDS TO THE RIGHT MUST BE GREEN" | B11: =IF(OR(B3=0,B4=0),"Enter VA",IF(G8=0,"SELECT FABRIC",IF(AND(B15>60,B16>100,B15<=264),IF(B16<=319.5,IF(OR(B15>195,B4>260),"SEE DESIGN CENTER",IF(AND(B15>169,B16>192),"SEE DESIGN CENTER","Feasible")),"Not Feasible"),"Not Feasible"))) -> Enter VA | H11: if OVH > 166 and the width has to be greater VAW > 260 should be DC
A12: APPROX. HANGING WEIGHT | B12: =IF(OR(B3=0,B4=0),"Enter VA",IF(G8=0,"SELECT FABRIC",IF(B5<=B93,"TOP BLACK DROP OK","TOO MUCH TOP BLACK DROP"))) -> Enter VA
A13: =IF(OR(B3=0,B4=0),"Enter VA",IF(G8=0,"SELECT FABRIC",IF(OR(B11="Not Feasible",B12="TOO MUCH TOP BLACK DROP",B13="TOO MUCH BTM BLACK DROP"),"Not Feasible",(IF(OR(B11="SELECT FABRIC",B12="SELECT FABRIC",B13="SELECT FABRIC"),"SELECT FABRIC",K5&" / "&K6))))) -> Enter VA | B13: =IF(OR(B3=0,B4=0),"Enter VA",IF(G8=0,"SELECT FABRIC",IF(B6<=B94,"BTM BLACK DROP OK","TOO MUCH BTM BLACK DROP"))) -> Enter VA
A14: Table of Contents
A15: Total_Screen_Height | B15: =B3+B5+B6+3 -> 17
A16: Fabric Width | B16: =IF(G3="Small_Curve",B25,IF(G3="Medium_Curve",B40,IF(G3="Large_Curve",B61,0))) -> 4.5
A17: Bottom Fabric Width | B17: =B90 -> 
A20: **** Equations for Small Curve Border ******* | I20: Weight of 4.50" Diameter Roller Screen Calculator
B21: =280.34-SQRT(280.34*280.34-0.25*B15*B15) -> 0.1288910125 | I21: FORMULAS | J21: DIMENSIONS | P21: Screen Housing Miscellanous Items | U21: Case Weight Calculation | AA21: 4.50" Roller Assembly Parts
B22: =B21-ROUNDDOWN(B21,0) -> 0.1288910125 | I22: Viewing Area Width | J22: Enter Viewing Area Width | L22: =B4 -> 0 | P22: Part | Q22: Weight | R22: Qty. | S22: Total: | U22: End Board Motor | V22: 1.5975 | W22: lbs. | AA22: Part | AB22: Weight | AC22: Qty. | AD22: Total:
B23: =IF(B22>=0.875,1,IF(B22>=0.625,0.75,IF(B22>=0.375,0.5,IF(B22>=0.125,0.25,0)))) -> 0.25 | I23: Viewing Area Height | J23: Enter Viewing Area Height | L23: =B3 -> 0 | P23: Pin Brkt #83010 | Q23: 1.64546 | R23: 1 | S23: =R23*Q23 -> 1.64546 | T23: lbs. | U23: Pin End Board | V23: 1.5642 | W23: lbs. | AA23: #33304-Mtr Assy | AB23: 6.345 | AC23: 1 | AD23: =AC23*AB23 -> 6.345 | AE23: lbs.
A24: Small_Curve_Border | B24: =ROUNDDOWN(B21,0)+B23+2 -> 2.25 | I24: Enter Amount Black Drop | J24: Enter Amount Black Drop | L24: =B5+B6 -> 14 | P24: Bearing #83107 | Q24: 0.2046 | R24: 1 | S24: =R24*Q24 -> 0.2046 | T24: lbs. | U24: Ends and Top | V24: =(((L22+(L25*2))+12.25)/12)*7.05566 -> 9.848525417 | W24: lbs. | X24: 7.05566 lbs. / ft. | AA24: #96131 - Plug Pin | AB24: 0.348 | AC24: 1 | AD24: =AC24*AB24 -> 0.348 | AE24: lbs.
A25: Small_Curve_Fabric_Width | B25: =(B24*2)+B4 -> 4.5 | I25: Enter Amount of Side Border | J25: Enter Amount of Side Border | L25: =IF(G3="Small_Curve",B24,IF(G3="Medium_Curve",B39,IF(G3="Large_Curve",B60,""))) -> 2.25 | P25: Washer #44725 | Q25: 0.0001864 | R25: 2 | S25: 0.0003728 | T25: lbs. | U25: False Top | V25: =(((L22+(L25*2))+10.75)/12)*1.82082 -> 2.31395875 | W25: lbs. | X25: 1.82082 lbs. / ft. | AA25: #82998 - Screw | AB25: 0.0023 | AC25: 3 | AD25: =AC25*AB25 -> 0.0069 | AE25: lbs.
A26: Square_Inches_Small_Curve | B26: =B25*B15 -> 76.5 | I26: Square Feet of Fabric | L26: =((L22+(L25*2))*(L23+L24+3+25+2.5)/144) -> 1.390625 | M26: sq. ft. | P26: Mtr Brkt #93205 | Q26: 1.77981 | R26: 1 | S26: 1.77981 | T26: lbs. | U26: Runners | V26: =INT((L22+(L25*2)+2.5)/14)+4 -> 4 | AD26: =AC26*AB26 -> 0 | AE26: lbs.
A27: Fabric_Weight_oz/sq in. | B27: =28/9/144 -> 0.02160493827 | I27: Weight of Fabric | L27: =((L26/9) * 26)/16 -> 0.2510850694 | M27: lbs. | P27: Cover J-Box #81657 | Q27: 0.0976 | R27: 1 | S27: 0.0976 | T27: lbs. | U27: Runners Weight | V27: =V26*0.1105 -> 0.442 | W27: lbs. | X27: .1105 lbs / per pc | AD27: =AC27*AB27 -> 0 | AE27: lbs.
A28: Fabric_Weight | B28: =B26*B27*0.0625 -> 0.1032986111 | C28: lbs. | I28: Weight of Slat | L28: =((L22+(L25*2)+0.5)/12) * 0.9435 -> 0.393125 | M28: lbs. | N28: 0.9435 lbs. / ft. | P28: Junction Box #94077 | Q28: 0.324 | R28: 1 | S28: 0.324 | T28: lbs. | U28: Shipping Strips | V28: =((((L22+(L25*2)+12.25)*2)+16)/12)*0.1707 -> 0.7041375 | W28: lbs. | X28: .17070 lbs. / per ft. | AD28: =AC28*AB28 -> 0 | AE28: lbs.
A29: Slat_Weight | B29: =((B25+0.5)/12)*0.806 -> 0.3358333333 | C29: lbs. | G29: (0.806 / lbs. ft.) | I29: Weight of Case | L29: =V50 -> 20.47032167 | M29: lbs. | P29: Screw #44799 | Q29: 0.00603 | R29: 2 | S29: 0.01206 | T29: lbs. | U29: Splice_Connector | V29: =IF(L22+(L25*2)+8.5>169,1.29551,0) -> 0 | W29: lbs. | X29: 1.29551 lbs / per splice | AD29: 0 | AE29: lbs.
A30: Total_Small_Curve_Weight | B30: =(B28+B29)*1.05 -> 0.4610885417 | C30: lbs. | I30: Weight of Roller | L30: =(((L22+(L25*2)+4.25)/12)*2.19) -> 1.596875 | M30: lbs. | N30: 2.19 lbs. / ft. | P30: Nut Tee #44824 | Q30: 0.0091 | R30: 20 | S30: 0.182 | T30: lbs. | AD30: 0 | AE30: lbs.
A31: Roller Diameter | B31: =3.25 -> 3.25 | I31: Miscellanous Items | L31: =S50 -> 21.3397028 | M31: lbs. | P31: End Brkt #82875 | Q31: 0.3957 | R31: 1 | S31: 0.3957 | T31: lbs. | AD31: 0 | AE31: lbs.
A32: Motor_Torque_Required_Small_Curve | B32: =(B31*25.4/2) * (B30/2.20462262) / 100 -> 0.08632511245 | C32: N/m | I32: 4.50" Roller Items | L32: =AD50 -> 6.6999 | M32: lbs. | P32: LockWasher #44733 | Q32: 0.006 | R32: 2 | S32: 0.012 | T32: lbs. | AD32: 0 | AE32: lbs.
A33: Motor_Torque_Small_Curve | B33: =IF(B32 >= 10,20,IF(B32>6,10,IF(B32>3,6,3))) -> 3 | C33: N/m | P33: Hex Bolt #44731 | Q33: 0.047 | R33: 6 | S33: 0.282 | T33: lbs. | AD33: 0 | AE33: lbs.
P34: Screw #83501 | Q34: 0.0198 | R34: 8 | S34: 0.1584 | T34: lbs. | AD34: 0 | AE34: lbs.
A35: **** Equations for Medium Curve Border ******* | P35: Bushing #46458 | Q35: 0.0027 | R35: 1 | S35: 0.0027 | T35: lbs. | AD35: 0 | AE35: lbs.
B36: =512.5-SQRT(512.5*512.5-0.25*B15*B15)+1.75 -> 1.820492653 | P36: Screw #72537 | Q36: 0.006 | R36: 2 | S36: 0.012 | T36: lbs. | AD36: 0 | AE36: lbs.
B37: =B36-ROUNDDOWN(B36,0) -> 0.8204926529 | J37: Total Weight | L37: =SUM(L27:L35) -> 50.75100954 | M37: lbs. | P37: Brkt Hanger #46358 | Q37: 1.7123 | R37: 3 | S37: 5.1369 | T37: lbs. | AD37: 0 | AE37: lbs.
B38: =IF(B37>=0.875,1,IF(B37>=0.625,0.75,IF(B37>=0.375,0.5,IF(B37>=0.125,0.25,0)))) -> 0.75 | P38: Brkt Hanger #46356 | Q38: 2.6964 | R38: 3 | S38: 8.0892 | T38: lbs. | AD38: 0 | AE38: lbs.
A39: Medium_Curve_Border | B39: =ROUNDDOWN(B36,0)+B38 -> 1.75 | P39: Brkt Hanger #46354 | Q39: 0.8548 | R39: 3 | S39: 2.5644 | T39: lbs. | AD39: 0 | AE39: lbs.
A40: Medium_Curve_Fabric_Width | B40: =(B39*2)+B4+2 -> 5.5 | P40: Nylon Lock Nut #44732 | Q40: 0.0215 | R40: 3 | S40: 0.0645 | T40: lbs. | AD40: 0 | AE40: lbs.
A41: Square_Inches_Medium_Curve | B41: =B40*B15 -> 93.5 | P41: Bolt Hex #44731 | Q41: 0.047 | R41: 3 | S41: 0.141 | T41: lbs. | AD41: 0 | AE41: lbs.
A42: Fabric_Weight_oz/sq in. | B42: =28/9/144 -> 0.02160493827 | P42: Screw Hex Cap #35913 | Q42: 0.02 | R42: 2 | S42: 0.04 | T42: lbs. | AD42: =AC42*AB42 -> 0 | AE42: lbs.
A43: Fabric_Weight | B43: =B41*B42*0.0625 -> 0.126253858 | C43: lbs. | P43: Slat Cap #97788 | Q43: 0.0299 | R43: 2 | S43: 0.0598 | T43: lbs. | AD43: =AC43*AB43 -> 0 | AE43: lbs.
A44: Slat_Weight | B44: =((B40+0.5)/12)*0.806 -> 0.403 | C44: lbs. | G44: (0.806 / lbs. ft.) | P44: Hex Bolt #33621 | Q44: 0.0231 | R44: 2 | S44: 0.0462 | T44: lbs. | AD44: =AC44*AB44 -> 0 | AE44: lbs.
A45: Total_Medium_Curve_Weight | B45: =(B43+B44)*1.05 -> 0.5557165509 | C45: lbs. | P45: Adj. Tube #98215 | Q45: 0.0348 | R45: 2 | S45: 0.0696 | T45: lbs. | AD45: =AC45*AB45 -> 0 | AE45: lbs.
A46: Roller_Diameter | B46: 3.25 | P46: Screw #44839 | Q46: 0.003 | R46: 4 | S46: 0.012 | T46: lbs.
A47: Motor_Torque_Required_Medium_Curve | B47: =(B46*25.4/2) * (B45/2.20462262) / 100 -> 0.1040413921 | C47: N/m | P47: Spring #81707 | Q47: 0.0037 | R47: 2 | S47: 0.0074 | T47: lbs.
A48: Motor_Torque_Medium_Curve | B48: =IF(B47 >= 10,20,IF(B47>6,10,IF(B47>3,6,3))) -> 3 | C48: N/m | S48: 0 | T48: lbs.
Q50: Total: | S50: =SUM(S23:S47) -> 21.3397028 | U50: Total: | V50: =SUM(V22:V30) -> 20.47032167 | AB50: Total: | AD50: =SUM(AD23:AD47) -> 6.6999
A51: **** Equations for Large Top Curve Border *******
A52: y | B52: =B15*0.75 -> 12.75 | I52: Weight of 5.75" Diameter Roller Screen Calculator
A53: r | B53: 1175 | I53: FORMULAS | J53: DIMENSIONS | P53: Screen Housing Miscellanous Items | U53: Case Weight Calculation | AA53: 5.75" Roller Assembly Parts
A54: n | B54: =B52 * B52 -> 162.5625 | I54: Viewing Area Width | J54: Enter Viewing Area Width | L54: =B4 -> 0 | P54: Part | Q54: Weight | R54: Qty. | S54: Total: | U54: End Board Motor | V54: 1.5975 | W54: lbs. | AA54: Part | AB54: Weight | AC54: Qty. | AD54: Total:
A55: P | B55: =B53*B53 -> 1380625 | I55: Viewing Area Height | J55: Enter Viewing Area Height | L55: =B3 -> 0 | P55: Pin Brkt #83010 | Q55: 1.64546 | R55: 1 | S55: =R55*Q55 -> 1.64546 | T55: lbs. | U55: Pin End Board | V55: 1.5642 | W55: lbs. | AA55: Roller Hub #73525 | AB55: 1.1238 | AC55: 1 | AD55: =AC55*AB55 -> 1.1238 | AE55: lbs.
A56: s | B56: =SQRT(B55-B54) -> 1174.930822 | I56: Enter Amount Black Drop | J56: Enter Amount Black Drop | L56: =B5+B6 -> 14 | P56: Bearing #83107 | Q56: 0.2046 | R56: 1 | S56: =R56*Q56 -> 0.2046 | T56: lbs. | U56: Ends and Top | V56: =(((L54+(L57*2))+12.25)/12)*7.05566 -> 9.848525417 | W56: lbs. | X56: 7.05566 lbs. / ft. | AA56: Screw #89592 | AB56: 0.0036 | AC56: 8 | AD56: =AC56*AB56 -> 0.0288 | AE56: lbs.
B57: =B53-B56 -> 0.06917756831 | I57: Enter Amount of Side Border | J57: Enter Amount of Side Border | L57: =IF(G3="Small_Curve",B24,IF(G3="Medium_Curve",B39,IF(G3="Large_Curve",(B60/2),""))) -> 2.25 | P57: Washer #44725 | Q57: 0.0001864 | R57: 2 | S57: 0.0003728 | T57: lbs. | AA57: Mtr Adaptor #81649 | AB57: 4.8446 | AC57: 1 | AD57: =AC57*AB57 -> 4.8446 | AE57: lbs.
B58: =B57-ROUNDDOWN(B57,0) -> 0.06917756831 | I58: Square Feet of Fabric | L58: =((L54+(L57*2))*(L55+L56+3+25)/144) -> 1.3125 | M58: sq. ft. | P58: Mtr Brkt #93205 | Q58: 1.77981 | R58: 1 | S58: 1.77981 | T58: lbs. | U58: Runners | V58: =INT((L54+(L57*2)+2.5)/14)+4 -> 4 | AA58: Screen Mtr Asm #39875 | AB58: 5.995 | AC58: 1 | AD58: =AC58*AB58 -> 5.995 | AE58: lbs.
B59: =IF(B58>=0.875,1,IF(B58>=0.625,0.75,IF(B58>=0.375,0.5,IF(B58>=0.125,0.25,0)))) -> 0 | I59: Weight of Fabric | L59: =((L58/9) * 26)/16 -> 0.2369791667 | M59: lbs. | P59: Cover J-Box #81657 | Q59: 0.0976 | R59: 1 | S59: 0.0976 | T59: lbs. | U59: Runners Weight | V59: =V58*0.1105 -> 0.442 | W59: lbs. | X59: .1105 lbs / per pc | AD59: =AC59*AB59 -> 0 | AE59: lbs.
A60: Large_Curve_Top_Border | B60: =ROUNDDOWN(B57,0)+B59+2 -> 2 | I60: Weight of Slat | L60: =((L54+(L57*2)+0.5)/12) * 0.9435 -> 0.393125 | M60: lbs. | N60: 0.9435 lbs. / ft. | P60: Junction Box #94077 | Q60: 0.324 | R60: 1 | S60: 0.324 | T60: lbs. | U60: Shipping Strips | V60: =((((L54+(L57*2)+12.25)*2)+16)/12)*0.1707 -> 0.7041375 | W60: lbs. | X60: .17070 lbs. / per ft. | AD60: =AC60*AB60 -> 0 | AE60: lbs.
A61: Large_Curve_Top_Width | B61: =(B60*2)+B4 -> 4 | I61: Weight of Case | L61: =V93 -> 18.15636292 | M61: lbs. | P61: Screw #44799 | Q61: 0.00603 | R61: 2 | S61: 0.01206 | T61: lbs. | U61: Splice_Connector | V61: =IF(L54+(L57*2)+8.5>169,1.29551,0) -> 0 | W61: lbs. | X61: 1.29551 lbs / per splice | AD61: 0 | AE61: lbs.
A62: Square_Inches_Large_Curve | B62: =B61*B15 -> 68 | I62: Weight of Roller | L62: =(((L54+(L57*2)+2)/12)*2.536) -> 1.373666667 | M62: lbs. | N62: 2.536 lbs. / ft. | P62: Nut Tee #44824 | Q62: 0.0091 | R62: 20 | S62: 0.182 | T62: lbs. | AD62: 0 | AE62: lbs.
A63: Fabric_Weight_oz/sq in. | B63: =28/9/144 -> 0.02160493827 | I63: Miscellanous Items | L63: =S93 -> 26.6717028 | M63: lbs. | P63: End Brkt #82875 | Q63: 0.3957 | R63: 1 | S63: 0.3957 | T63: lbs. | AD63: 0 | AE63: lbs.
A64: Fabric_Weight | B64: =B62*B63*0.0625 -> 0.09182098765 | C64: lbs. | I64: 5.75" Roller Items | L64: =AD93 -> 11.9922 | M64: lbs. | P64: LockWasher #44733 | Q64: 0.006 | R64: 2 | S64: 0.012 | T64: lbs. | AD64: 0 | AE64: lbs.
A65: Slat_Weight | B65: =((B61+0.5)/12)*0.806 -> 0.30225 | C65: lbs. | G65: (0.806 / lbs. ft.) | P65: Hex Bolt #44731 | Q65: 0.047 | R65: 6 | S65: 0.282 | T65: lbs. | AD65: 0 | AE65: lbs.
A66: Total_Large_Curve_Weight | B66: =(B64+B65)*1.05 -> 0.413774537 | C66: lbs. | P66: Screw #83501 | Q66: 0.0198 | R66: 8 | S66: 0.1584 | T66: lbs. | AD66: 0 | AE66: lbs.
A67: Roller_Diameter | B67: 7 | P67: Bushing #46458 | Q67: 0.0027 | R67: 1 | S67: 0.0027 | T67: lbs. | AD67: 0 | AE67: lbs.
A68: Motor_Torque_Required_Large_Curve | B68: =(B67*25.4/2) * (B66/2.20462262) / 100 -> 0.166851941 | C68: N/m | P68: Screw #72537 | Q68: 0.006 | R68: 2 | S68: 0.012 | T68: lbs. | AD68: 0 | AE68: lbs.
A69: Motor_Torque_Large_Curve | B69: =IF(B68 >= 10,20,IF(B68>6,10,IF(B68>3,6,3))) -> 3 | C69: N/m | J69: Total Weight | L69: =SUM(L59:L67) -> 58.82403655 | M69: lbs. | P69: Brkt Hanger #46358 | Q69: 1.7123 | R69: 4 | S69: 6.8492 | T69: lbs. | AD69: 0 | AE69: lbs.
A70: g | B70: =B15*0.25 -> 4.25
A71: r1 | B71: 350
A72: n1 | B72: =B70*B70 -> 18.0625
A73: p1 | B73: =B71*B71 -> 122500
A74: s1 | B74: =SQRT(B73-B72) -> 349.9741955
B75: =B71-B74 -> 0.02580452268
B76: =B75-ROUNDDOWN(B75,0) -> 0.02580452268
B77: =IF(B76>=0.875,1,IF(B76>=0.625,0.75,IF(B76>=0.375,0.5,IF(B76>=0.125,0.25,0)))) -> 0
A78: Large_Curve_Btm_Border | B78: =2+ROUNDDOWN(B75,0)+B77 -> 2
A79: Large_Curve_Btm_Width | B79: =B4+(B78*2) -> 4
P81: Brkt Hanger #46356 | Q81: 2.6964 | R81: 4 | S81: 10.7856 | T81: lbs. | AD81: 0 | AE81: lbs.
P82: Brkt Hanger #46354 | Q82: 0.8548 | R82: 4 | S82: 3.4192 | T82: lbs. | AD82: 0 | AE82: lbs.
A83: Square_Inches_Non_Tensioned | B83: =B16*(B15-3) -> 63 | P83: Nylon Lock Nut #44732 | Q83: 0.0215 | R83: 4 | S83: 0.086 | T83: lbs. | AD83: 0 | AE83: lbs.
A84: 3/8_Slat_Weight | B84: =(PI()*(0.1875*0.1875)*(B16+0.5))*0.284 -> 0.1568341958 | C84: lbs. | P84: Bolt Hex #44731 | Q84: 0.047 | R84: 4 | S84: 0.188 | T84: lbs. | AD84: 0 | AE84: lbs.
A85: Fabric_Weight_oz/sq in. | B85: =21/9/144 -> 0.0162037037 | P85: Screw Hex Cap #35913 | Q85: 0.02 | R85: 2 | S85: 0.04 | T85: lbs. | AD85: =AC85*AB85 -> 0 | AE85: lbs.
A86: Fabric_Weight | B86: =B83*B85*0.0625 -> 0.06380208333 | C86: lbs. | K86: =L64+L62+L60+L59 -> 13.99597083 | P86: Slat Cap #97788 | Q86: 0.0299 | R86: 2 | S86: 0.0598 | T86: lbs. | AD86: =AC86*AB86 -> 0 | AE86: lbs.
A87: Total_Non_Tens_Weight | B87: =(B84+B86)*1.05 -> 0.231668093 | C87: lbs. | P87: Hex Bolt #33621 | Q87: 0.0231 | R87: 2 | S87: 0.0462 | T87: lbs. | AD87: =AC87*AB87 -> 0 | AE87: lbs.
A88: Aspect Ratio | B88: =B4/B3 ->  | P88: Adj. Tube #98215 | Q88: 0.0348 | R88: 2 | S88: 0.0696 | T88: lbs. | AD88: =AC88*AB88 -> 0 | AE88: lbs.
A89: Roller Diameter | B89: =IF(AND(B16<=108,B88<1.45),3,3.25) ->  | P89: Screw #44839 | Q89: 0.003 | R89: 4 | S89: 0.012 | T89: lbs.
A90: Motor_Torque_Required_N/m | B90: =(B89*25.4/2) * (B87/2.20462262) / 100 ->  | C90: N/m | P90: Spring #81707 | Q90: 0.0037 | R90: 2 | S90: 0.0074 | T90: lbs.
A91: Motor_Torque_Non_Tensioned | B91: =IF(B90 >= 10,20,IF(B90>6,10,IF(B90>3,6,3))) ->  | C91: N/m | S91: 0 | T91: lbs.
S92: 0 | T92: lbs.
A93: Max Top Black Drop | B93: =IF(G8=1,84,(IF(G8=2,60,0))) -> 0 | Q93: Total: | S93: =SUM(S55:S92) -> 26.6717028 | U93: Total: | V93: =SUM(V54:V62) -> 18.15636292 | AB93: Total: | AD93: =SUM(AD55:AD92) -> 11.9922
A94: Max Bottom Black Drop | B94: =IF(G8=1,48,(IF(G8=2,24,0))) -> 0
I95: Weight of 7" Diameter Roller Screen Calculator
I96: FORMULAS | J96: DIMENSIONS | P96: Screen Housing Miscellanous Items | U96: Case Weight Calculation | AB96: 7.00" Roller Assembly Miscellanous Items
I97: Viewing Area Width | J97: Enter Viewing Area Width | L97: =B4 -> 0 | P97: Part | Q97: Weight | R97: Qty. | S97: Total: | U97: End Board Motor | V97: 2.072 | W97: lbs. | AB97: Part | AC97: Weight | AD97: Qty. | AE97: Total:
I98: Viewing Area Height | J98: Enter Viewing Area Height | L98: =B3 -> 0 | P98: Pin Brkt #89038 | Q98: 1.8657 | R98: 1 | S98: =R98*Q98 -> 1.8657 | T98: lbs. | U98: Pin End Board | V98: 2.0383 | W98: lbs. | AB98: Roller Hub #95515 | AC98: 1.3221 | AD98: 1 | AE98: =AD98*AC98 -> 1.3221 | AF98: lbs.
I99: Enter Amount Black Drop | J99: Enter Amount Black Drop | L99: =B5+B6 -> 14 | P99: Bearing #83107 | Q99: 0.2046 | R99: 1 | S99: =R99*Q99 -> 0.2046 | T99: lbs. | U99: Ends and Top | V99: =(((L97+(L101*2))+10)/12)*7.909169153 -> 9.556912727 | W99: lbs. | X99: 7.909169 lbs. / ft. | AB99: Screw #89592 | AC99: 0.0036 | AD99: 8 | AE99: =AD99*AC99 -> 0.0288 | AF99: lbs.
I100: Enter Bottom Fabric Width | J100: Enter Bottom Fabric Width | L100: =B4+(L101*2) -> 4.5 | P100: Washer #44725 | Q100: 0.0001864 | R100: 2 | S100: 0.0003728 | T100: lbs. | U100: False Top | V100: =((L97+(L101*2)+8.5)/12)*2.1053184 -> 2.2807616 | W100: lbs. | X100: 2.1053184 lbs. / ft. | AB100: Mtr Adaptor #88799 | AC100: 5.42 | AD100: 1 | AE100: 5.42 | AF100: lbs.
I101: Enter Amount of Side Border | J101: Enter Amount of Side Border | L101: =IF(G3="Small_Curve",B24,IF(G3="Medium_Curve",B39,IF(G3="Large_Curve",(B60/1.9),""))) -> 2.25 | P101: Mtr Brkt #93207 | Q101: 2.0013 | R101: 1 | S101: 2.0013 | T101: lbs. | U101: Runners | V101: =INT((L97+(L101*2)+2.5)/14)+4 -> 4 | AB101: Screen Mtr Asm #39875 | AC101: 5.554 | AD101: 1 | AE101: 5.554 | AF101: lbs.
I102: Square Feet of Fabric | L102: =((L97+(L101*2))*(L98+L99+36+4.5)/144) -> 1.703125 | M102: sq. ft. | P102: Cover J-Box #81657 | Q102: 0.0976 | R102: 1 | S102: 0.0976 | T102: lbs. | U102: Runners Weight | V102: =V101*0.12782 -> 0.51128 | W102: lbs. | X102: .12782 lbs / per pc | AE102: 0 | AF102: lbs.
I103: Weight of Fabric | L103: =((L102/9) * 26)/16 -> 0.3075086806 | M103: lbs. | P103: Junction Box #94077 | Q103: 0.324 | R103: 1 | S103: 0.324 | T103: lbs. | U103: Shipping Strips | V103: =((((L97+(L101*2)+10)*2)+18.5)/12)*0.1707 -> 0.6756875 | W103: lbs. | X103: .17070 lbs. / per ft. | AE103: 0 | AF103: lbs.
I104: Weight of Slat | L104: =((L100+0.5)/12)*0.9435 -> 0.393125 | M104: lbs. | N104: 0.9435 lbs. / ft. | P104: Screw #44799 | Q104: 0.00603 | R104: 2 | S104: 0.01206 | T104: lbs. | U104: Splice_Connector | V104: =IF(L97+(L101*2)+8.5>169,1.36478,0) -> 0 | W104: lbs. | X104: 1.36478 lbs / per splice | AE104: 0 | AF104: lbs.
I105: Weight of Case | L105: =V125 -> 21.13494183 | M105: lbs. | P105: Nut Tee #44824 | Q105: 0.0091 | R105: 20 | S105: 0.182 | T105: lbs. | AE105: 0 | AF105: lbs.
I106: Weight of Roller | L106: =(((L97+(L101*2)+4.25)/12)*4.02) -> 2.93125 | M106: lbs. | N106: 4.02 lbs. / ft. | P106: End Brkt #82875 | Q106: 0.3957 | R106: 1 | S106: 0.3957 | T106: lbs. | AE106: 0 | AF106: lbs.
I107: Miscellanous Items | L107: =S125 -> 28.7998328 | M107: lbs. | P107: LockWasher #44733 | Q107: 0.006 | R107: 2 | S107: 0.012 | T107: lbs. | AE107: 0 | AF107: lbs.
I108: 7.00" Roller Items | L108: =AE125 -> 12.3249 | M108: lbs. | P108: Hex Bolt #44731 | Q108: 0.047 | R108: 6 | S108: 0.282 | T108: lbs. | AE108: 0 | AF108: lbs.
P109: Screw #83501 | Q109: 0.0198 | R109: 8 | S109: 0.1584 | T109: lbs. | AE109: 0 | AF109: lbs.
P110: Bushing #46458 | Q110: 0.0027 | R110: 1 | S110: 0.0027 | T110: lbs. | AE110: 0 | AF110: lbs.
P111: Screw #72537 | Q111: 0.006 | R111: 2 | S111: 0.012 | T111: lbs. | AE111: 0 | AF111: lbs.
P112: Brkt Hanger #88788 | Q112: 1.8562 | R112: 4 | S112: 7.4248 | T112: lbs. | AE112: 0 | AF112: lbs.
J113: Total Weight | L113: =SUM(L103:L111) -> 65.89155831 | M113: lbs. | P113: Brkt Hanger #88786 | Q113: 2.9741 | R113: 4 | S113: 11.8964 | T113: lbs. | AE113: 0 | AF113: lbs.
P114: Brkt Hanger #46354 | Q114: 0.8548 | R114: 4 | S114: 3.4192 | T114: lbs. | AE114: 0 | AF114: lbs.
P115: Nylon Lock Nut #44732 | Q115: 0.0215 | R115: 4 | S115: 0.086 | T115: lbs. | AE115: 0 | AF115: lbs.
P116: Bolt Hex #44731 | Q116: 0.047 | R116: 4 | S116: =R116*Q116 -> 0.188 | T116: lbs. | AE116: 0 | AF116: lbs.
P117: Screw Hex Cap #35913 | Q117: 0.02 | R117: 2 | S117: =R117*Q117 -> 0.04 | T117: lbs.
P118: Slat Cap #97788 | Q118: 0.0299 | R118: 2 | S118: 0.0598 | T118: lbs.
P119: Hex Bolt #33621 | Q119: 0.0231 | R119: 2 | S119: 0.0462 | T119: lbs.
P120: Adj. Tube #98215 | Q120: 0.0348 | R120: 2 | S120: 0.0696 | T120: lbs.
P121: Screw #44839 | Q121: 0.003 | R121: 4 | S121: 0.012 | T121: lbs.
P122: Spring #81707 | Q122: 0.0037 | R122: 2 | S122: 0.0074 | T122: lbs.
S123: 0 | T123: lbs.
Q125: Total: | S125: =SUM(S98:S123) -> 28.7998328 | U125: Total: | V125: =SUM(V97:V105) -> 21.13494183 | AC125: Total: | AE125: =SUM(AE98:AE123) -> 12.3249

Sheet Professional
A1: PROFESSIONAL ELECTROL
D2: Centimeters | F2: Note: cm will update inches, inches will not update cm
A3: Enter Viewing Area Height: | B3: 0 | C3: inches | D3: 0 | E3: cm | G3: =IF(B13 < 93,"Small_Curve",IF(AND(B13<145,B4<160),"Medium_Curve",IF(OR(B13>=145,B4>=160),"Large_Curve",0))) -> Small_Curve
A4: Enter Viewing Area Width: | B4: 0 | C4: inches | D4: 0 | E4: cm
A5: Enter Top Black Drop: | B5: 2 | C5: inches | D5: 5 | E5: cm | K5: Formula to determine which roller weight
A6: Enter Border Width: | B6: 2 | C6: inches | D6: 5 | E6: cm | K6: =IF(AND(B15<220,B16<=144),ROUNDUP(K94,0) & " LBS", IF(AND(B16>144,B16<220),ROUNDUP(K34,0) & " LBS",IF(OR(B15>=220,AND(B16>=220,B16<=288)),ROUNDUP(K64,0) & " LBS","Not Feasible"))) -> 49 LBS
A7: Enter Bottom Black Drop: (not including pocket) | B7: 0 | C7: inches | D7: 0 | E7: cm | K7: =IF(AND(B15<220,B16<=144),ROUNDUP(K94,0) & " LBS", IF(AND(B16>144,B16<220),ROUNDUP(K34*0.453592,0) & " KG",IF(OR(B15>=220,AND(B16>=220,B16<=288)),ROUNDUP(K64*0.453592,0) & " KG","Not Feasible"))) -> 49 LBS
A9: =IF(OR(B3=0,B4=0),"Enter VA",IF(AND(B6<=6,B15>60,B16>100,B16>=264,B16<=288,B15<=216),"Feasible",IF(AND(B6<=6,B16>=100,B16<=264,B15>=60,B15<=264.25),"Feasible","Not Feasible"))) -> Enter VA
A10: =IF(OR(B3=0,B4=0),"Enter VA","APPROX. HANGING WEIGHT") -> Enter VA
A11: =IF(OR(B3=0,B4=0),"Enter VA",IF(A9="Not Feasible","Not Feasible",K6&" / "&K7)) -> Enter VA
A12: Table of Contents
A15: Total_Screen_Height | B15: =B3+B5+B7 -> 2
A16: Fabric Width | B16: =B4+(B6*2) -> 4
H17: 5.75" Diameter weights
A18: **** Equations for Small Curve Border ******* | H18: FORMULAS | I18: DIMENSIONS | O18: Screen Housing Miscellanous Items | T18: Case Weight Calculation | Z18: 5.75" Roller Assembly Parts
B19: =280.34-SQRT(280.34*280.34-0.25*B13*B13) -> 0 | H19: Viewing Area Width | I19: Enter Viewing Area Width | K19: =B4 -> 0 | O19: Part | P19: Weight | Q19: Qty. | R19: Total: | T19: End Board Motor | U19: 1.5975 | V19: lbs. | Z19: Part | AA19: Weight | AB19: Qty. | AC19: Total:
B20: =B19-ROUNDDOWN(B19,0) -> 0 | H20: Viewing Area Height | I20: Enter Viewing Area Height | K20: =B3 -> 0 | O20: Pin Brkt #83010 | P20: 1.64546 | Q20: 1 | R20: =Q20*P20 -> 1.64546 | S20: lbs. | T20: Pin End Board | U20: 1.5642 | V20: lbs. | Z20: Roller Hub #73525 | AA20: 1.1238 | AB20: 1 | AC20: =AB20*AA20 -> 1.1238 | AD20: lbs.
B21: =IF(B20>=0.875,1,IF(B20>=0.625,0.75,IF(B20>=0.375,0.5,IF(B20>=0.125,0.25,0)))) -> 0 | H21: Enter Amount Black Drop | I21: Enter Amount Black Drop | K21: =B5+B7 -> 2 | O21: Bearing #83107 | P21: 0.2046 | Q21: 1 | R21: =Q21*P21 -> 0.2046 | S21: lbs. | T21: Ends and Top | U21: =(((K19+(K22*2))+10)/12)*7.05566 -> 8.231603333 | V21: lbs. | W21: 7.05566 lbs. / ft. | Z21: Screw #89592 | AA21: 0.0036 | AB21: 8 | AC21: =AB21*AA21 -> 0.0288 | AD21: lbs.
A22: Small_Curve_Border | B22: =ROUNDDOWN(B19,0)+B21+2 -> 2 | H22: Enter Amount of Side Border | I22: Enter Amount of Side Border | K22: =B6 -> 2 | O22: Washer #44725 | P22: 0.0001864 | Q22: 2 | R22: 0.0003728 | S22: lbs. | Z22: Mtr Adaptor #81649 | AA22: 4.8446 | AB22: 1 | AC22: =AB22*AA22 -> 4.8446 | AD22: lbs.
A23: Small_Curve_Fabric_Width | B23: =(B22*2)+B4 -> 4 | H23: Square Feet of Fabric | K23: =((K19+(K22*2))*(K20+K21+36+4.5)/144) -> 1.180555556 | L23: sq. ft. | O23: Mtr Brkt #93205 | P23: 1.77981 | Q23: 1 | R23: 1.77981 | S23: lbs. | T23: Runners | U23: =INT((K19+(K22*2)+2.5)/14)+4 -> 4 | Z23: Screen Mtr Asm #39875 | AA23: 5.995 | AB23: 1 | AC23: =AB23*AA23 -> 5.995 | AD23: lbs.
A24: Square_Inches_Small_Curve | B24: =B23*B13 -> 0 | H24: Weight of Fabric | K24: =((K23/9) * 32)/16 -> 0.262345679 | L24: lbs. | O24: Cover J-Box #81657 | P24: 0.0976 | Q24: 1 | R24: 0.0976 | S24: lbs. | T24: Runners Weight | U24: =U23*0.1105 -> 0.442 | V24: lbs. | W24: .1105 lbs / per pc | AC24: =AB24*AA24 -> 0 | AD24: lbs.
A25: Fabric_Weight_oz/sq in. | B25: =28/9/144 -> 0.02160493827 | H25: Weight of Slat | K25: =((PI()*(0.1875^2))*((K19+(K22*2))+0.75))*0.284 -> 0.148992486 | L25: lbs. | O25: Junction Box #94077 | P25: 0.324 | Q25: 1 | R25: 0.324 | S25: lbs. | T25: Shipping Strips | U25: =((((K19+(K22*2)+10)*2)+16)/12)*0.1707 -> 0.6259 | V25: lbs. | W25: .17070 lbs. / per ft. | AC25: =AB25*AA25 -> 0 | AD25: lbs.
A26: Fabric_Weight | B26: =B24*B25*0.0625 -> 0 | C26: lbs. | H26: Weight of Case | K26: =U44 -> 16.46120333 | L26: lbs. | O26: Screw #44799 | P26: 0.00603 | Q26: 2 | R26: 0.01206 | S26: lbs. | T26: Splice_Connector | U26: =IF(K19+(K22*2)+8.5>169,1.29551,0) -> 0 | V26: lbs. | W26: 1.29551 lbs / per splice | AC26: 0 | AD26: lbs.
A27: Slat_Weight | B27: =((B23+0.5)/12)*0.806 -> 0.30225 | C27: lbs. | G27: (0.806 / lbs. ft.) | H27: Weight of Roller | K27: =(((K19+(K22*2)+2)/12)*2.536) -> 1.268 | L27: lbs. | M27: 2.536 lbs. / ft. | O27: Nut Tee #44824 | P27: 0.0091 | Q27: 20 | R27: 0.182 | S27: lbs. | AC27: 0 | AD27: lbs.
A28: Total_Small_Curve_Weight | B28: =(B26+B27)*1.05 -> 0.3173625 | C28: lbs. | H28: Miscellanous Items | K28: =R44 -> 24.3172828 | L28: lbs. | O28: End Brkt #82875 | P28: 0.3957 | Q28: 1 | R28: 0.3957 | S28: lbs. | AC28: 0 | AD28: lbs.
A29: Roller Diameter | B29: =3.25 -> 3.25 | H29: 5.75" Roller Items | K29: =AC44 -> 11.9922 | L29: lbs. | O29: LockWasher #44733 | P29: 0.006 | Q29: 2 | R29: 0.012 | S29: lbs. | AC29: 0 | AD29: lbs.
A30: Motor_Torque_Required_Small_Curve | B30: =(B29*25.4/2) * (B28/2.20462262) / 100 -> 0.05941668687 | C30: N/m | H30: Ironing Board | K30: =((K19+(K22*2)+2)/12)*0.3353 -> 0.16765 | L30: lbs. | M30: .3353 lbs. / ft. | O30: Hex Bolt #44731 | P30: 0.047 | Q30: 6 | R30: 0.282 | S30: lbs. | AC30: 0 | AD30: lbs.
A31: Motor_Torque_Small_Curve | B31: =IF(B30 >= 10,20,IF(B30>6,10,IF(B30>3,6,3))) -> 3 | C31: N/m | O31: Screw #83501 | P31: 0.0198 | Q31: 8 | R31: 0.1584 | S31: lbs. | AC31: 0 | AD31: lbs.
O32: Bushing #46458 | P32: 0.0027 | Q32: 1 | R32: 0.0027 | S32: lbs. | AC32: 0 | AD32: lbs.
A33: **** Equations for Medium Curve Border ******* | O33: Screw #72537 | P33: 0.006 | Q33: 2 | R33: 0.012 | S33: lbs. | AC33: 0 | AD33: lbs.
B34: =512.5-SQRT(512.5*512.5-0.25*B13*B13)+1.75 -> 1.75 | I34: Total Weight | K34: =SUM(K24:K32) -> 54.6176743 | L34: lbs. | O34: Brkt Hanger #46358 | P34: 1.7123 | Q34: 3 | R34: 5.1369 | S34: lbs. | AC34: 0 | AD34: lbs.
B35: =B34-ROUNDDOWN(B34,0) -> 0.75 | O35: Brkt Hanger #46356 | P35: 2.6964 | Q35: 3 | R35: 8.0892 | S35: lbs. | AC35: 0 | AD35: lbs.
B36: =IF(B35>=0.875,1,IF(B35>=0.625,0.75,IF(B35>=0.375,0.5,IF(B35>=0.125,0.25,0)))) -> 0.75 | O36: Brkt Hanger #46354 | P36: 0.8548 | Q36: 3 | R36: 2.5644 | S36: lbs. | AC36: 0 | AD36: lbs.
A37: Medium_Curve_Border | B37: =ROUNDDOWN(B34,0)+B36 -> 1.75 | O37: Nylon Lock Nut #44732 | P37: 0.0215 | Q37: 3 | R37: 0.0645 | S37: lbs. | AC37: 0 | AD37: lbs.
A38: Medium_Curve_Fabric_Width | B38: =(B37*2)+B4+2 -> 5.5 | O38: Bolt Hex #44731 | P38: 0.047 | Q38: 3 | R38: =Q38*P38 -> 0.141 | S38: lbs. | AC38: 0 | AD38: lbs.
A39: Square_Inches_Medium_Curve | B39: =B38*B13 -> 0 | O39: Bracket #97724 - Iron Board | P39: 0.132 | Q39: 7 | R39: 0.924 | S39: lbs. | AC39: =AB39*AA39 -> 0 | AD39: lbs.
A40: Fabric_Weight_oz/sq in. | B40: =28/9/144 -> 0.02160493827 | O40: Screw #83702 | P40: 0.01184 | Q40: 7 | R40: 0.08288 | S40: lbs. | AC40: =AB40*AA40 -> 0 | AD40: lbs.
A41: Fabric_Weight | B41: =B39*B40*0.0625 -> 0 | C41: lbs. | O41: Nut Weld #50877 | P41: 0.296 | Q41: 7 | R41: 2.072 | S41: lbs. | AC41: =AB41*AA41 -> 0 | AD41: lbs.
A42: Slat_Weight | B42: =((B38+0.5)/12)*0.806 -> 0.403 | C42: lbs. | G42: (0.806 / lbs. ft.) | O42: Bolt #44777 | P42: 0.0191 | Q42: 7 | R42: 0.1337 | S42: lbs. | AC42: =AB42*AA42 -> 0 | AD42: lbs.
A43: Total_Medium_Curve_Weight | B43: =(B41+B42)*1.05 -> 0.42315 | C43: lbs. | R43: 0 | S43: lbs.
A44: Roller_Diameter | B44: 3.25 | P44: Total: | R44: =SUM(R20:R43) -> 24.3172828 | T44: Total: | U44: =SUM(U19:U27) -> 16.46120333 | AA44: Total: | AC44: =SUM(AC20:AC43) -> 11.9922
A45: Motor_Torque_Required_Medium_Curve | B45: =(B44*25.4/2) * (B43/2.20462262) / 100 -> 0.07922224916 | C45: N/m
A46: Motor_Torque_Medium_Curve | B46: =IF(B45 >= 10,20,IF(B45>6,10,IF(B45>3,6,3))) -> 3 | C46: N/m
H47: Weight of 7" Diameter Roller Screen Calculator
H48: FORMULAS | I48: DIMENSIONS | O48: Screen Housing Miscellanous Items | T48: Case Weight Calculation | AA48: 7.00" Roller Assembly Miscellanous Items
A49: **** Equations for Large Top Curve Border ******* | H49: Viewing Area Width | I49: Enter Viewing Area Width | K49: =B4 -> 0 | O49: Part | P49: Weight | Q49: Qty. | R49: Total: | T49: End Board Motor | U49: 2.072 | V49: lbs. | AA49: Part | AB49: Weight | AC49: Qty. | AD49: Total:
A50: y | B50: =B13*0.75 -> 0 | H50: Viewing Area Height | I50: Enter Viewing Area Height | K50: =B3 -> 0 | O50: Pin Brkt #89038 | P50: 1.8657 | Q50: 1 | R50: =Q50*P50 -> 1.8657 | S50: lbs. | T50: Pin End Board | U50: 2.0383 | V50: lbs. | AA50: Roller Hub #95515 | AB50: 1.3221 | AC50: 1 | AD50: =AC50*AB50 -> 1.3221 | AE50: lbs.
A51: r | B51: 1175 | H51: Enter Amount Black Drop | I51: Enter Amount Black Drop | K51: =B5+B7 -> 2 | O51: Bearing #83107 | P51: 0.2046 | Q51: 1 | R51: =Q51*P51 -> 0.2046 | S51: lbs. | T51: Ends and Top | U51: =(((K49+(K52*2))+10)/12)*7.909169153 -> 9.227364012 | V51: lbs. | W51: 7.909169 lbs. / ft. | AA51: Screw #89592 | AB51: 0.0036 | AC51: 8 | AD51: =AC51*AB51 -> 0.0288 | AE51: lbs.
A52: n | B52: =B50 * B50 -> 0 | H52: Enter Amount of Side Border | I52: Enter Amount of Side Border | K52: =B6 -> 2 | O52: Washer #44725 | P52: 0.0001864 | Q52: 2 | R52: 0.0003728 | S52: lbs. | AA52: Mtr Adaptor #88799 | AB52: 5.42 | AC52: 1 | AD52: 5.42 | AE52: lbs.
A53: P | B53: =B51*B51 -> 1380625 | H53: Square Feet of Fabric | K53: =((K49+(K52*2))*(K50+K51+36+4.5)/144) -> 1.180555556 | L53: sq. ft. | O53: Mtr Brkt #93207 | P53: 2.0013 | Q53: 1 | R53: 2.0013 | S53: lbs. | T53: Runners | U53: =INT((K49+(K52*2)+2.5)/14)+4 -> 4 | AA53: Screen Mtr Asm #39875 | AB53: 5.554 | AC53: 1 | AD53: 5.554 | AE53: lbs.
A54: s | B54: =SQRT(B53-B52) -> 1175 | H54: Weight of Fabric | K54: =((K53/9) * 32)/16 -> 0.262345679 | L54: lbs. | O54: Cover J-Box #81657 | P54: 0.0976 | Q54: 1 | R54: 0.0976 | S54: lbs. | T54: Runners Weight | U54: =U53*0.12782 -> 0.51128 | V54: lbs. | W54: .12782 lbs / per pc | AD54: 0 | AE54: lbs.
B55: =B51-B54 -> 0 | H55: Weight of Slat | K55: =((PI()*(0.25^2))*((K49+(K52*2))+0.75))*0.284 -> 0.2648755306 | L55: lbs. | O55: Junction Box #94077 | P55: 0.324 | Q55: 1 | R55: 0.324 | S55: lbs. | T55: Shipping Strips | U55: =((((K49+(K52*2)+10)*2)+18.5)/12)*0.1707 -> 0.6614625 | V55: lbs. | W55: .17070 lbs. / per ft. | AD55: 0 | AE55: lbs.
B56: =B55-ROUNDDOWN(B55,0) -> 0 | H56: Weight of Case | K56: =U74 -> 18.51040651 | L56: lbs. | O56: Screw #44799 | P56: 0.00603 | Q56: 2 | R56: 0.01206 | S56: lbs. | T56: Splice_Connector | U56: =IF(K49+(K52*2)+8.5>169,1.36478,0) -> 0 | V56: lbs. | W56: 1.36478 lbs / per splice | AD56: 0 | AE56: lbs.
B57: =IF(B56>=0.875,1,IF(B56>=0.625,0.75,IF(B56>=0.375,0.5,IF(B56>=0.125,0.25,0)))) -> 0 | H57: Weight of Roller | K57: =(((K49+(K52*2)+2)/12)*4.02) -> 2.01 | L57: lbs. | M57: 4.02 lbs. / ft. | O57: Nut Tee #44824 | P57: 0.0091 | Q57: 20 | R57: 0.182 | S57: lbs. | AD57: 0 | AE57: lbs.
A58: Large_Curve_Top_Border | B58: =ROUNDDOWN(B55,0)+B57+2 -> 2 | H58: Miscellanous Items | K58: =R74 -> 31.7774128 | L58: lbs. | O58: End Brkt #82875 | P58: 0.3957 | Q58: 1 | R58: 0.3957 | S58: lbs. | AD58: 0 | AE58: lbs.
A59: Large_Curve_Top_Width | B59: =(B58*2)+B4 -> 4 | H59: 7.00" Roller Items | K59: =AD74 -> 12.3249 | L59: lbs. | O59: LockWasher #44733 | P59: 0.006 | Q59: 2 | R59: 0.012 | S59: lbs. | AD59: 0 | AE59: lbs.
A60: Square_Inches_Large_Curve | B60: =B59*B13 -> 0 | H60: Ironing Board | K60: =((K49+(K52*2)+2)/12)*0.3353 -> 0.16765 | L60: lbs. | M60: .3353 lbs. / ft. | O60: Hex Bolt #44731 | P60: 0.047 | Q60: 6 | R60: 0.282 | S60: lbs. | AD60: 0 | AE60: lbs.
A61: Fabric_Weight_oz/sq in. | B61: =28/9/144 -> 0.02160493827 | O61: Screw #83501 | P61: 0.0198 | Q61: 8 | R61: 0.1584 | S61: lbs. | AD61: 0 | AE61: lbs.
A62: Fabric_Weight | B62: =B60*B61*0.0625 -> 0 | C62: lbs. | O62: Bushing #46458 | P62: 0.0027 | Q62: 1 | R62: 0.0027 | S62: lbs. | AD62: 0 | AE62: lbs.
A63: Slat_Weight | B63: =((B59+0.5)/12)*0.806 -> 0.30225 | C63: lbs. | G63: (0.806 / lbs. ft.) | O63: Screw #72537 | P63: 0.006 | Q63: 2 | R63: 0.012 | S63: lbs. | AD63: 0 | AE63: lbs.
A64: Total_Large_Curve_Weight | B64: =(B62+B63)*1.05 -> 0.3173625 | C64: lbs. | I64: Total Weight | K64: =SUM(K54:K62) -> 65.31759052 | L64: lbs. | O64: Brkt Hanger #88788 | P64: 1.8562 | Q64: 4 | R64: 7.4248 | S64: lbs. | AD64: 0 | AE64: lbs.
A65: Roller_Diameter | B65: 3.25 | O65: Brkt Hanger #88786 | P65: 2.9741 | Q65: 4 | R65: 11.8964 | S65: lbs. | AD65: 0 | AE65: lbs.
A66: Motor_Torque_Required_Large_Curve | B66: =(B65*25.4/2) * (B64/2.20462262) / 100 -> 0.05941668687 | C66: N/m | O66: Brkt Hanger #46354 | P66: 0.8548 | Q66: 4 | R66: 3.4192 | S66: lbs. | AD66: 0 | AE66: lbs.
A67: Motor_Torque_Large_Curve | B67: =IF(B66 >= 10,20,IF(B66>6,10,IF(B66>3,6,3))) -> 3 | C67: N/m | O67: Nylon Lock Nut #44732 | P67: 0.0215 | Q67: 4 | R67: 0.086 | S67: lbs. | AD67: 0 | AE67: lbs.
O68: Bolt Hex #44731 | P68: 0.047 | Q68: 4 | R68: =Q68*P68 -> 0.188 | S68: lbs. | AD68: 0 | AE68: lbs.
O69: Bracket #97724 - Iron Board | P69: 0.132 | Q69: 7 | R69: 0.924 | S69: lbs.
A70: Square_Inches_Non_Tensioned | B70: =B14*(B13-3) -> 0 | O70: Screw #83702 | P70: 0.01184 | Q70: 7 | R70: 0.08288 | S70: lbs.
A71: 3/8_Slat_Weight | B71: =(PI()*(0.1875*0.1875)*(B14+0.5))*0.284 -> 0.01568341958 | C71: lbs. | O71: Nut Weld #50877 | P71: 0.296 | Q71: 7 | R71: 2.072 | S71: lbs.
A72: Fabric_Weight_oz/sq in. | B72: =21/9/144 -> 0.0162037037 | O72: Bolt #44777 | P72: 0.0191 | Q72: 7 | R72: 0.1337 | S72: lbs.
A73: Fabric_Weight | B73: =B70*B72*0.0625 -> 0 | C73: lbs. | R73: 0 | S73: lbs.
A74: Total_Non_Tens_Weight | B74: =(B71+B73)*1.05 -> 0.01646759055 | C74: lbs. | P74: Total: | R74: =SUM(R50:R73) -> 31.7774128 | T74: Total: | U74: =SUM(U49:U57) -> 18.51040651 | AB74: Total: | AD74: =SUM(AD50:AD73) -> 12.3249
A75: Aspect Ratio | B75: =B4/B3 -> 
A76: Roller Diameter | B76: =IF(AND(B14<=108,B75<1.45),3,3.25) -> 
A77: Motor_Torque_Required_N/m | B77: =(B76*25.4/2) * (B74/2.20462262) / 100 ->  | C77: N/m | H77: 3.25" Diameter weights
A78: Motor_Torque_Non_Tensioned | B78: =IF(B77 >= 10,20,IF(B77>6,10,IF(B77>3,6,3))) ->  | C78: N/m | H78: FORMULAS | I78: DIMENSIONS | O78: Screen Housing Miscellanous Items | T78: Case Weight Calculation | Z78: 3.25" Roller Assembly Parts
H79: Viewing Area Width | I79: Enter Viewing Area Width | K79: =B4 -> 0 | O79: Part | P79: Weight | Q79: Qty. | R79: Total: | T79: End Board Motor | U79: 1.5975 | V79: lbs. | Z79: Part | AA79: Weight | AB79: Qty. | AC79: Total:
A80: Max Top Black Drop | B80: =IF(#REF!=1,84,60) ->  | H80: Viewing Area Height | I80: Enter Viewing Area Height | K80: =B3 -> 0 | O80: Pin Brkt #83010 | P80: 1.64546 | Q80: 1 | R80: =Q80*P80 -> 1.64546 | S80: lbs. | T80: Pin End Board | U80: 1.5642 | V80: lbs. | Z80: Screen Mtr Asm | AA80: 5.995 | AB80: 1 | AC80: =AB80*AA80 -> 5.995 | AD80: lbs.
A81: Max Bottom Black Drop | B81: =IF(#REF!=1,48,24) ->  | H81: Enter Amount Black Drop | I81: Enter Amount Black Drop | K81: =B5+B7 -> 2 | O81: Bearing #83107 | P81: 0.2046 | Q81: 1 | R81: =Q81*P81 -> 0.2046 | S81: lbs. | T81: Ends and Top | U81: =(((K79+(K82*2))+10)/12)*7.05566 -> 8.231603333 | V81: lbs. | W81: 7.05566 lbs. / ft. | Z81: Roller Plug #99136 | AA81: 0.1562 | AB81: 1 | AC81: =AB81*AA81 -> 0.1562 | AD81: lbs.
H82: Enter Amount of Side Border | I82: Enter Amount of Side Border | K82: =B6 -> 2 | O82: Washer #44725 | P82: 0.0001864 | Q82: 2 | R82: 0.0003728 | S82: lbs. | Z82: Screw #82998 | AA82: 0.002 | AB82: 3 | AC82: =AB82*AA82 -> 0.006 | AD82: lbs.
H83: Square Feet of Fabric | K83: =((K79+(K82*2))*(K80+K81+36+4.5)/144) -> 1.180555556 | L83: sq. ft. | O83: Mtr Brkt #93205 | P83: 1.77981 | Q83: 1 | R83: 1.77981 | S83: lbs. | T83: Runners | U83: =INT((K79+(K82*2)+2.5)/14)+4 -> 4 | AC83: =AB83*AA83 -> 0 | AD83: lbs.
H84: Weight of Fabric | K84: =((K83/9) * 32)/16 -> 0.262345679 | L84: lbs. | O84: Cover J-Box #81657 | P84: 0.0976 | Q84: 1 | R84: 0.0976 | S84: lbs. | T84: Runners Weight | U84: =U83*0.1105 -> 0.442 | V84: lbs. | W84: .1105 lbs / per pc | AC84: =AB84*AA84 -> 0 | AD84: lbs.
H85: Weight of Slat | K85: =((PI()*(0.1875^2))*((K79+(K82*2))+0.75))*0.284 -> 0.148992486 | L85: lbs. | O85: Junction Box #94077 | P85: 0.324 | Q85: 1 | R85: 0.324 | S85: lbs. | T85: Shipping Strips | U85: =((((K79+(K82*2)+10)*2)+16)/12)*0.1707 -> 0.6259 | V85: lbs. | W85: .17070 lbs. / per ft. | AC85: =AB85*AA85 -> 0 | AD85: lbs.
H86: Weight of Case | K86: =U104 -> 16.46120333 | L86: lbs. | O86: Screw #44799 | P86: 0.00603 | Q86: 2 | R86: 0.01206 | S86: lbs. | T86: Splice_Connector | U86: =IF(K79+(K82*2)+8.5>169,1.29551,0) -> 0 | V86: lbs. | W86: 1.29551 lbs / per splice | AC86: 0 | AD86: lbs.
H87: Weight of Roller | K87: =(((K79+(K82*2)+2)/12)*2.21) -> 1.105 | L87: lbs. | M87: 2.210 lbs. / ft. | O87: Nut Tee #44824 | P87: 0.0091 | Q87: 20 | R87: 0.182 | S87: lbs. | AC87: 0 | AD87: lbs.
H88: Miscellanous Items | K88: =R104 -> 24.3172828 | L88: lbs. | O88: End Brkt #82875 | P88: 0.3957 | Q88: 1 | R88: 0.3957 | S88: lbs. | AC88: 0 | AD88: lbs.
H89: 3.25" Roller Items | K89: =AC104 -> 6.1572 | L89: lbs. | O89: LockWasher #44733 | P89: 0.006 | Q89: 2 | R89: 0.012 | S89: lbs. | AC89: 0 | AD89: lbs.
H90: Ironing Board | K90: =((K79+(K82*2)+2)/12)*0.3353 -> 0.16765 | L90: lbs. | M90: .3353 lbs. / ft. | O90: Hex Bolt #44731 | P90: 0.047 | Q90: 6 | R90: 0.282 | S90: lbs. | AC90: 0 | AD90: lbs.
O91: Screw #83501 | P91: 0.0198 | Q91: 8 | R91: 0.1584 | S91: lbs. | AC91: 0 | AD91: lbs.
O92: Bushing #46458 | P92: 0.0027 | Q92: 1 | R92: 0.0027 | S92: lbs. | AC92: 0 | AD92: lbs.
O93: Screw #72537 | P93: 0.006 | Q93: 2 | R93: 0.012 | S93: lbs. | AC93: 0 | AD93: lbs.
I94: Total Weight | K94: =SUM(K84:K92) -> 48.6196743 | L94: lbs. | O94: Brkt Hanger #46358 | P94: 1.7123 | Q94: 3 | R94: 5.1369 | S94: lbs. | AC94: 0 | AD94: lbs.
O95: Brkt Hanger #46356 | P95: 2.6964 | Q95: 3 | R95: 8.0892 | S95: lbs. | AC95: 0 | AD95: lbs.
O96: Brkt Hanger #46354 | P96: 0.8548 | Q96: 3 | R96: 2.5644 | S96: lbs. | AC96: 0 | AD96: lbs.
O97: Nylon Lock Nut #44732 | P97: 0.0215 | Q97: 3 | R97: 0.0645 | S97: lbs. | AC97: 0 | AD97: lbs.
O98: Bolt Hex #44731 | P98: 0.047 | Q98: 3 | R98: =Q98*P98 -> 0.141 | S98: lbs. | AC98: 0 | AD98: lbs.
O99: Bracket #97724 - Iron Board | P99: 0.132 | Q99: 7 | R99: 0.924 | S99: lbs. | AC99: =AB99*AA99 -> 0 | AD99: lbs.
O100: Screw #83702 | P100: 0.01184 | Q100: 7 | R100: 0.08288 | S100: lbs. | AC100: =AB100*AA100 -> 0 | AD100: lbs.
O101: Nut Weld #50877 | P101: 0.296 | Q101: 7 | R101: 2.072 | S101: lbs. | AC101: =AB101*AA101 -> 0 | AD101: lbs.
O102: Bolt #44777 | P102: 0.0191 | Q102: 7 | R102: 0.1337 | S102: lbs. | AC102: =AB102*AA102 -> 0 | AD102: lbs.
R103: 0 | S103: lbs.
P104: Total: | R104: =SUM(R80:R103) -> 24.3172828 | T104: Total: | U104: =SUM(U79:U87) -> 16.46120333 | AA104: Total: | AC104: =SUM(AC80:AC103) -> 6.1572
